{"text_format":"3","workbook":"xlsx","n_sheets":15,"sheets":["Come utilizzare questo modello","Elenco studenti","Agosto","Settembre","Ottobre","Novembre","Dicembre","Gennaio","Febbraio","Marzo","Aprile","Maggio","Giugno","Luglio","Report di frequenza studenti"],"not_rendered":{"external_links":1,"defined_names":31},"read":"whole","date_system":"1900"}

{"sheet":"Come utilizzare questo modello","index":0,"n_rows":25,"n_cols":5,"rows_kept":25,"merged":[[3,2,3,12],[4,4,4,12],[5,4,5,12],[6,4,6,12],[7,4,7,12],[8,4,8,7],[11,2,11,12],[12,4,12,12],[13,4,13,12],[14,4,14,12],[17,2,17,12],[18,4,18,12],[19,4,19,12],[20,4,20,12],[21,4,21,12],[24,2,24,12]]}
["COME UTILIZZARE QUESTO MODELLO"]
[]
[null,"DOVE SI INIZIA?"]
[null,null,"Prima di iniziare a registrare la frequenza degli studenti, è necessario eseguire alcuni passaggi:"]
[{"$nulls":3},"1.","Aggiungere gli studenti: nel foglio Elenco studenti immettere le informazioni su ogni studente, \nad esempio i nomi dei tutori e i dati di contatto. L'ID studente è una voce importante poiché fornisce un identificatore univoco per ogni studente e viene utilizzato nell'intera cartella di lavoro per i vari elenchi a discesa ID studente, per facilitare l'immissione dei dati. Le informazioni specificate nell'Elenco studenti vengono utilizzate anche negli altri fogli, ad esempio nel Report di frequenza studenti e nei diversi record di frequenza mensile."]
[{"$nulls":3},"2.","Modificare l'anno del calendario scolastico: nel foglio di frequenza Agosto fare clic sulla casella di selezione sul bordo superiore destro dell'intestazione per aggiornare l'anno del calendario scolastico. Questa modifica determinerà l'aggiornamento dell'intestazione su tutti i record di frequenza mensile della cartella di lavoro (si noti che la casella di selezione non verrà stampata)."]
[{"$nulls":3},"3.","(Facoltativo) Modificare i colori nella cartella di lavoro:  passare innanzitutto all'ultimo foglio, Report di frequenza studenti e, nella scheda Revisione , nel gruppo Modifiche , fare clic su Rimuovi protezione foglio. Nella scheda Layout di pagina , nel gruppo Temi , fare clic su Colori e selezionare un altro colore tema dalla raccolta dei colori. Dopo aver apportato le modifiche ai colori ed eventuali altre modifiche ai temi, tornare al foglio Report di frequenza studenti e, nella scheda Revisione , nel gruppo Modifiche , fare clic su Proteggi foglio e quindi su OK."]
[{"$nulls":4},"Suggerimento: creare un set di colori tema personalizzato corrispondente ai colori della scuola. \nA tale scopo, nella scheda Layout di pagina , nel gruppo Temi , fare clic su Colori e quindi, nella parte inferiore della raccolta dei colori, fare clic su Crea nuovi colori tema. Per ulteriori informazioni su come creare un set di colori personalizzato, visualizzare il seguente argomento della Guida: "]
[{"$nulls":4},"Personalizzare un tema del documento."]
[]
[null,"DOPO AVER AGGIUNTO GLI STUDENTI, COME SI PROCEDE?"]
[null,null,"Dopo aver inserito gli studenti nel foglio Elenco studenti, è possibile iniziare a registrare la frequenza per l'anno scolastico desiderato mediante la seguente procedura:"]
[{"$nulls":3},"1.","Per aggiungere uno studente a un record di frequenza, fare clic in una cella sotto la colonna  ID studente e selezionare un ID dall'elenco. Il nome dello studente verrà automaticamente visualizzato dopo la selezione di un ID. "]
[{"$nulls":4},"Suggerimento: salvare i passaggi di immissione dati. Dopo aver aggiunto gli studenti per un mese, selezionare gli ID studente immessi, copiarli e quindi incollarli nella colonna ID studente per i mesi rimanenti. "]
[{"$nulls":3},"2.","Immettere quindi il record di frequenza per ogni giorno del mese utilizzando i tipi di frequenza indicati nella leggenda dei colori. La frequenza verrà quindi automaticamente calcolata in base al tipo per ogni studente nella colonna Totali. Le assenze totali per ogni giorno verranno automaticamente calcolate in fondo alla tabella, nella riga Totale."]
[]
[null,"COME SI AGGIUNGONO ALTRI STUDENTI A UN RECORD DI FREQUENZA MENSILE?"]
[null,null,"I fogli dei record di frequenza mensile e l'Elenco studenti sono tabelle di Excel. Per aggiungere nuove righe a una tabella di Excel, eseguire una delle operazioni seguenti:"]
[{"$nulls":3},"● ","Se la tabella non include una riga Totale, iniziare a digitare sotto di essa. La tabella verrà infatti automaticamente estesa quando si preme INVIO o TAB."]
[{"$nulls":3},"● ","Posizionare il puntatore nell'ultima cella sopra la riga Totale, ad esempio la cella Giorni di assenza dell'ultimo studente, quindi premere TAB."]
[{"$nulls":3},"● ","Fare clic con il pulsante destro del mouse nella tabella e scegliere Inserisci dal menu di scelta rapida, quindi fare clic su Righe tabella sopra o Righe tabella sotto. "]
[{"$nulls":3},"● ","Nell'angolo inferiore destro della tabella posizionare il mouse sul quadratino di ridimensionamento e trascinarlo verso il basso, per aumentare il numero di righe disponibili."]
[]
[null,"È POSSIBILE VISUALIZZARE LA FREQUENZA DI UNO STUDENTE PER L'INTERO ANNO SCOLASTICO?"]
[null,null,"L'ultimo foglio di questa cartella di lavoro, Report di frequenza studenti, tiene traccia della frequenza ad oggi. Per visualizzare un report per uno specifico studente, fare clic nella cella sotto ID studente e selezionare un ID dall'elenco a discesa. Le informazioni immesse in precedenza nel foglio Elenco studenti per lo studente selezionato verranno automaticamente visualizzate. Si noti che la prima volta che si utilizza il Report di frequenza studenti è necessario immettere Scuola, Voto, Insegnante e Stanza. \nQueste informazioni non verranno modificate se si seleziona un altro studente. "]

{"sheet":"Elenco studenti","index":1,"n_rows":8,"n_cols":19,"rows_kept":8}
["ELENCO STUDENTI"]
[]
[null,"ID studente","Nome studente","Cognome studente","Sesso","Data di nascita","Genitore o tutore 1","Relazione genitore/tutore 1","Telefono ufficio genitore/tutore 1","Telefono abitazione genitore/tutore 1","Genitore/tutore 2","Relazione genitore/tutore 2","Telefono ufficio genitore/tutore 2","Telefono abitazione genitore/tutore 2","Contatto emergenze","Relazione contatto emergenze","Telefono ufficio contatto emergenze","Telefono abitazione contatto emergenze","Nome e cognome studente"]
[null,"S001","Davide","Alessandri","M","1997-03-28","Daniela","Alessandri",1235550134,2345550134,"Michele Alessandri","Padre",1235550134,2345550134,"Davide Ruspini","Nonno",7895550189,7895550134,{"$f":"ElencoStudenti[[#This Row],[Nome studente]]&\" \" &ElencoStudenti[[#This Row],[Cognome studente]]","v":"Davide Alessandri"}]
[null,"S002","Studente",2,{"$nulls":14},{"$f":"ElencoStudenti[[#This Row],[Nome studente]]&\" \" &ElencoStudenti[[#This Row],[Cognome studente]]","v":"Studente 2"}]
[null,"S003","Studente",3,{"$nulls":14},{"$f":"ElencoStudenti[[#This Row],[Nome studente]]&\" \" &ElencoStudenti[[#This Row],[Cognome studente]]","v":"Studente 3"}]
[null,"S004","Studente",4,{"$nulls":14},{"$f":"ElencoStudenti[[#This Row],[Nome studente]]&\" \" &ElencoStudenti[[#This Row],[Cognome studente]]","v":"Studente 4"}]
[null,"S005","Studente",5,{"$nulls":14},{"$f":"ElencoStudenti[[#This Row],[Nome studente]]&\" \" &ElencoStudenti[[#This Row],[Cognome studente]]","v":"Studente 5"}]

{"sheet":"Agosto","index":2,"n_rows":12,"n_cols":39,"rows_kept":12,"merged":[[4,34,4,38]]}
["RECORD DI FREQUENZA STUDENTE",{"$nulls":36},"Inizio anno scolastico:",2012]
[]
[null,null,"LEGGENDA COLORI ","I","In ritardo",null,null,"G","Giustificato",null,null,"N","Non giustificato",null,null,"P","Presente",null,null,"S","Scuola chiusa"]
[]
[null,{"$f":"DATE(AnnoCalendario,8,1)","v":"2012-08-01"},null,{"$f":"TEXT(WEEKDAY(DATE(AnnoCalendario,8,1),1),\"[$-410]aaa\")","v":"mer"},{"$f":"TEXT(WEEKDAY(DATE(AnnoCalendario,8,2),1),\"[$-410]aaa\")","v":"gio"},{"$f":"TEXT(WEEKDAY(DATE(AnnoCalendario,8,3),1),\"[$-410]aaa\")","v":"ven"},{"$f":"TEXT(WEEKDAY(DATE(AnnoCalendario,8,4),1),\"[$-410]aaa\")","v":"sab"},{"$f":"TEXT(WEEKDAY(DATE(AnnoCalendario,8,5),1),\"[$-410]aaa\")","v":"dom"},{"$f":"TEXT(WEEKDAY(DATE(AnnoCalendario,8,6),1),\"[$-410]aaa\")","v":"lun"},{"$f":"TEXT(WEEKDAY(DATE(AnnoCalendario,8,7),1),\"[$-410]aaa\")","v":"mar"},{"$f":"TEXT(WEEKDAY(DATE(AnnoCalendario,8,8),1),\"[$-410]aaa\")","v":"mer"},{"$f":"TEXT(WEEKDAY(DATE(AnnoCalendario,8,9),1),\"[$-410]aaa\")","v":"gio"},{"$f":"TEXT(WEEKDAY(DATE(AnnoCalendario,8,10),1),\"[$-410]aaa\")","v":"ven"},{"$f":"TEXT(WEEKDAY(DATE(AnnoCalendario,8,11),1),\"[$-410]aaa\")","v":"sab"},{"$f":"TEXT(WEEKDAY(DATE(AnnoCalendario,8,12),1),\"[$-410]aaa\")","v":"dom"},{"$f":"TEXT(WEEKDAY(DATE(AnnoCalendario,8,13),1),\"[$-410]aaa\")","v":"lun"},{"$f":"TEXT(WEEKDAY(DATE(AnnoCalendario,8,14),1),\"[$-410]aaa\")","v":"mar"},{"$f":"TEXT(WEEKDAY(DATE(AnnoCalendario,8,15),1),\"[$-410]aaa\")","v":"mer"},{"$f":"TEXT(WEEKDAY(DATE(AnnoCalendario,8,16),1),\"[$-410]aaa\")","v":"gio"},{"$f":"TEXT(WEEKDAY(DATE(AnnoCalendario,8,17),1),\"[$-410]aaa\")","v":"ven"},{"$f":"TEXT(WEEKDAY(DATE(AnnoCalendario,8,18),1),\"[$-410]aaa\")","v":"sab"},{"$f":"TEXT(WEEKDAY(DATE(AnnoCalendario,8,19),1),\"[$-410]aaa\")","v":"dom"},{"$f":"TEXT(WEEKDAY(DATE(AnnoCalendario,8,20),1),\"[$-410]aaa\")","v":"lun"},{"$f":"TEXT(WEEKDAY(DATE(AnnoCalendario,8,21),1),\"[$-410]aaa\")","v":"mar"},{"$f":"TEXT(WEEKDAY(DATE(AnnoCalendario,8,22),1),\"[$-410]aaa\")","v":"mer"},{"$f":"TEXT(WEEKDAY(DATE(AnnoCalendario,8,23),1),\"[$-410]aaa\")","v":"gio"},{"$f":"TEXT(WEEKDAY(DATE(AnnoCalendario,8,24),1),\"[$-410]aaa\")","v":"ven"},{"$f":"TEXT(WEEKDAY(DATE(AnnoCalendario,8,25),1),\"[$-410]aaa\")","v":"sab"},{"$f":"TEXT(WEEKDAY(DATE(AnnoCalendario,8,26),1),\"[$-410]aaa\")","v":"dom"},{"$f":"TEXT(WEEKDAY(DATE(AnnoCalendario,8,27),1),\"[$-410]aaa\")","v":"lun"},{"$f":"TEXT(WEEKDAY(DATE(AnnoCalendario,8,28),1),\"[$-410]aaa\")","v":"mar"},{"$f":"TEXT(WEEKDAY(DATE(AnnoCalendario,8,29),1),\"[$-410]aaa\")","v":"mer"},{"$f":"TEXT(WEEKDAY(DATE(AnnoCalendario,8,30),1),\"[$-410]aaa\")","v":"gio"},{"$f":"TEXT(WEEKDAY(DATE(AnnoCalendario,8,31),1),\"[$-410]aaa\")","v":"ven"},"Totale"]
[null,"ID studente","Nome studente","1","2","3","4","5","6","7","8","9","10","11","12","13","14","15","16","17","18","19","20","21","22","23","24","25","26","27","28","29","30","31","I","N","G","P","Giorni di assenza"]
[null,"S001",{"$f":"IFERROR(VLOOKUP(FrequenzaAgosto[[#This Row],[ID studente]],ElencoStudenti[],18,FALSE),\"\")","v":"Davide Alessandri"},"P","P","I","I","P","S","S","P","P","G","P","P","S","S","P","P","P","P","P","S","S","P","P","P","P","P","S","S","P","P","P",{"$f":"COUNTIF(FrequenzaAgosto[[#This Row],[1]:[31]],Codice1)","v":2},{"$f":"COUNTIF(FrequenzaAgosto[[#This Row],[1]:[31]],Codice2)","v":1},{"$f":"COUNTIF(FrequenzaAgosto[[#This Row],[1]:[31]],Codice3)","v":0},{"$f":"COUNTIF(FrequenzaAgosto[[#This Row],[1]:[31]],Codice4)","v":20},{"$f":"SUM(FrequenzaAgosto[[#This Row],[N]:[G]])","v":1}]
[null,"S002",{"$f":"IFERROR(VLOOKUP(FrequenzaAgosto[[#This Row],[ID studente]],ElencoStudenti[],18,FALSE),\"\")","v":"Studente 2"},"P","N","P","P","P","S","S","P","G","G","G","G","S","S","P","P","P","P","P","S","S","P","P","P","I","I","S","S","P","P","P",{"$f":"COUNTIF(FrequenzaAgosto[[#This Row],[1]:[31]],Codice1)","v":2},{"$f":"COUNTIF(FrequenzaAgosto[[#This Row],[1]:[31]],Codice2)","v":4},{"$f":"COUNTIF(FrequenzaAgosto[[#This Row],[1]:[31]],Codice3)","v":1},{"$f":"COUNTIF(FrequenzaAgosto[[#This Row],[1]:[31]],Codice4)","v":16},{"$f":"SUM(FrequenzaAgosto[[#This Row],[N]:[G]])","v":5}]
[null,"S003",{"$f":"IFERROR(VLOOKUP(FrequenzaAgosto[[#This Row],[ID studente]],ElencoStudenti[],18,FALSE),\"\")","v":"Studente 3"},"P","G","P","P","P","S","S","P","P","N","P","P","S","S","P","P","P","P","P","S","S","P","P","G","G","P","S","S","P","P","P",{"$f":"COUNTIF(FrequenzaAgosto[[#This Row],[1]:[31]],Codice1)","v":0},{"$f":"COUNTIF(FrequenzaAgosto[[#This Row],[1]:[31]],Codice2)","v":3},{"$f":"COUNTIF(FrequenzaAgosto[[#This Row],[1]:[31]],Codice3)","v":1},{"$f":"COUNTIF(FrequenzaAgosto[[#This Row],[1]:[31]],Codice4)","v":19},{"$f":"SUM(FrequenzaAgosto[[#This Row],[N]:[G]])","v":4}]
[null,"S004",{"$f":"IFERROR(VLOOKUP(FrequenzaAgosto[[#This Row],[ID studente]],ElencoStudenti[],18,FALSE),\"\")","v":"Studente 4"},"P","P","P","P","P","S","S","P","P","P","P","P","S","S","P","P","P","P","P","S","S","P","N","P","P","G","S","S","P","G","P",{"$f":"COUNTIF(FrequenzaAgosto[[#This Row],[1]:[31]],Codice1)","v":0},{"$f":"COUNTIF(FrequenzaAgosto[[#This Row],[1]:[31]],Codice2)","v":2},{"$f":"COUNTIF(FrequenzaAgosto[[#This Row],[1]:[31]],Codice3)","v":1},{"$f":"COUNTIF(FrequenzaAgosto[[#This Row],[1]:[31]],Codice4)","v":20},{"$f":"SUM(FrequenzaAgosto[[#This Row],[N]:[G]])","v":3}]
[null,"S005",{"$f":"IFERROR(VLOOKUP(FrequenzaAgosto[[#This Row],[ID studente]],ElencoStudenti[],18,FALSE),\"\")","v":"Studente 5"},"P","P","P","P","P","S","S","P","P","P","P","P","S","S","P","P","P","P","P","S","S","P","P","P","P","P","S","S","P","P","P",{"$f":"COUNTIF(FrequenzaAgosto[[#This Row],[1]:[31]],Codice1)","v":0},{"$f":"COUNTIF(FrequenzaAgosto[[#This Row],[1]:[31]],Codice2)","v":0},{"$f":"COUNTIF(FrequenzaAgosto[[#This Row],[1]:[31]],Codice3)","v":0},{"$f":"COUNTIF(FrequenzaAgosto[[#This Row],[1]:[31]],Codice4)","v":23},{"$f":"SUM(FrequenzaAgosto[[#This Row],[N]:[G]])","v":0}]
[null,null,"Totale giorni di assenza",{"$f":"COUNTIF(FrequenzaAgosto[1],\"N\")+COUNTIF(FrequenzaAgosto[1],\"G\")","v":0},{"$f":"COUNTIF(FrequenzaAgosto[2],\"N\")+COUNTIF(FrequenzaAgosto[2],\"G\")","v":2},{"$f":"COUNTIF(FrequenzaAgosto[3],\"N\")+COUNTIF(FrequenzaAgosto[3],\"G\")","v":0},{"$f":"COUNTIF(FrequenzaAgosto[4],\"N\")+COUNTIF(FrequenzaAgosto[4],\"G\")","v":0},{"$f":"COUNTIF(FrequenzaAgosto[5],\"N\")+COUNTIF(FrequenzaAgosto[5],\"G\")","v":0},{"$f":"COUNTIF(FrequenzaAgosto[6],\"N\")+COUNTIF(FrequenzaAgosto[6],\"G\")","v":0},{"$f":"COUNTIF(FrequenzaAgosto[7],\"N\")+COUNTIF(FrequenzaAgosto[7],\"G\")","v":0},{"$f":"COUNTIF(FrequenzaAgosto[8],\"N\")+COUNTIF(FrequenzaAgosto[8],\"G\")","v":0},{"$f":"COUNTIF(FrequenzaAgosto[9],\"N\")+COUNTIF(FrequenzaAgosto[9],\"G\")","v":1},{"$f":"COUNTIF(FrequenzaAgosto[10],\"N\")+COUNTIF(FrequenzaAgosto[10],\"G\")","v":3},{"$f":"COUNTIF(FrequenzaAgosto[11],\"N\")+COUNTIF(FrequenzaAgosto[11],\"G\")","v":1},{"$f":"COUNTIF(FrequenzaAgosto[12],\"N\")+COUNTIF(FrequenzaAgosto[12],\"G\")","v":1},{"$f":"COUNTIF(FrequenzaAgosto[13],\"N\")+COUNTIF(FrequenzaAgosto[13],\"G\")","v":0},{"$f":"COUNTIF(FrequenzaAgosto[14],\"N\")+COUNTIF(FrequenzaAgosto[14],\"G\")","v":0},{"$f":"COUNTIF(FrequenzaAgosto[15],\"N\")+COUNTIF(FrequenzaAgosto[15],\"G\")","v":0},{"$f":"COUNTIF(FrequenzaAgosto[16],\"N\")+COUNTIF(FrequenzaAgosto[16],\"G\")","v":0},{"$f":"COUNTIF(FrequenzaAgosto[17],\"N\")+COUNTIF(FrequenzaAgosto[17],\"G\")","v":0},{"$f":"COUNTIF(FrequenzaAgosto[18],\"N\")+COUNTIF(FrequenzaAgosto[18],\"G\")","v":0},{"$f":"COUNTIF(FrequenzaAgosto[19],\"N\")+COUNTIF(FrequenzaAgosto[19],\"G\")","v":0},{"$f":"COUNTIF(FrequenzaAgosto[20],\"N\")+COUNTIF(FrequenzaAgosto[20],\"G\")","v":0},{"$f":"COUNTIF(FrequenzaAgosto[21],\"N\")+COUNTIF(FrequenzaAgosto[21],\"G\")","v":0},{"$f":"COUNTIF(FrequenzaAgosto[22],\"N\")+COUNTIF(FrequenzaAgosto[22],\"G\")","v":0},{"$f":"COUNTIF(FrequenzaAgosto[23],\"N\")+COUNTIF(FrequenzaAgosto[23],\"G\")","v":1},{"$f":"COUNTIF(FrequenzaAgosto[24],\"N\")+COUNTIF(FrequenzaAgosto[24],\"G\")","v":1},{"$f":"COUNTIF(FrequenzaAgosto[25],\"N\")+COUNTIF(FrequenzaAgosto[25],\"G\")","v":1},{"$f":"COUNTIF(FrequenzaAgosto[26],\"N\")+COUNTIF(FrequenzaAgosto[26],\"G\")","v":1},{"$f":"COUNTIF(FrequenzaAgosto[27],\"N\")+COUNTIF(FrequenzaAgosto[27],\"G\")","v":0},{"$f":"COUNTIF(FrequenzaAgosto[28],\"N\")+COUNTIF(FrequenzaAgosto[28],\"G\")","v":0},{"$f":"COUNTIF(FrequenzaAgosto[29],\"N\")+COUNTIF(FrequenzaAgosto[29],\"G\")","v":0},{"$f":"COUNTIF(FrequenzaAgosto[30],\"N\")+COUNTIF(FrequenzaAgosto[30],\"G\")","v":1},{"$f":"COUNTIF(FrequenzaAgosto[31],\"N\")+COUNTIF(FrequenzaAgosto[31],\"G\")","v":0},{"$f":"SUBTOTAL(109,FrequenzaAgosto[I])","v":4},{"$f":"SUBTOTAL(109,FrequenzaAgosto[N])","v":10},{"$f":"SUBTOTAL(109,FrequenzaAgosto[G])","v":3},{"$f":"SUBTOTAL(109,FrequenzaAgosto[P])","v":98},{"$f":"SUBTOTAL(109,FrequenzaAgosto[Giorni di assenza])","v":13}]

{"sheet":"Settembre","index":3,"n_rows":12,"n_cols":39,"rows_kept":12,"merged":[[4,34,4,38]]}
["RECORD DI FREQUENZA STUDENTE",{"$nulls":36},"Inizio anno scolastico:",{"$f":"AnnoCalendario","v":2012}]
[]
[null,null,{"$f":"TestoLeggendaColori","v":"LEGGENDA COLORI "},{"$f":"Codice1","v":"I"},{"$f":"TestoCodice1","v":"In ritardo"},null,null,{"$f":"Codice2","v":"G"},{"$f":"TestoCodice2","v":"Giustificato"},null,null,{"$f":"Codice3","v":"N"},{"$f":"TestoCodice3","v":"Non giustificato"},null,null,{"$f":"Codice4","v":"P"},{"$f":"TestoCodice4","v":"Presente"},null,null,{"$f":"Codice5","v":"S"},{"$f":"TestoCodice5","v":"Scuola chiusa"}]
[]
[null,{"$f":"DATE(AnnoCalendario,9,1)","v":"2012-09-01"},null,{"$f":"TEXT(WEEKDAY(DATE(AnnoCalendario,9,1),1),\"[$-410]aaa\")","v":"sab"},{"$f":"TEXT(WEEKDAY(DATE(AnnoCalendario,9,2),1),\"[$-410]aaa\")","v":"dom"},{"$f":"TEXT(WEEKDAY(DATE(AnnoCalendario,9,3),1),\"[$-410]aaa\")","v":"lun"},{"$f":"TEXT(WEEKDAY(DATE(AnnoCalendario,9,4),1),\"[$-410]aaa\")","v":"mar"},{"$f":"TEXT(WEEKDAY(DATE(AnnoCalendario,9,5),1),\"[$-410]aaa\")","v":"mer"},{"$f":"TEXT(WEEKDAY(DATE(AnnoCalendario,9,6),1),\"[$-410]aaa\")","v":"gio"},{"$f":"TEXT(WEEKDAY(DATE(AnnoCalendario,9,7),1),\"[$-410]aaa\")","v":"ven"},{"$f":"TEXT(WEEKDAY(DATE(AnnoCalendario,9,8),1),\"[$-410]aaa\")","v":"sab"},{"$f":"TEXT(WEEKDAY(DATE(AnnoCalendario,9,9),1),\"[$-410]aaa\")","v":"dom"},{"$f":"TEXT(WEEKDAY(DATE(AnnoCalendario,9,10),1),\"[$-410]aaa\")","v":"lun"},{"$f":"TEXT(WEEKDAY(DATE(AnnoCalendario,9,11),1),\"[$-410]aaa\")","v":"mar"},{"$f":"TEXT(WEEKDAY(DATE(AnnoCalendario,9,12),1),\"[$-410]aaa\")","v":"mer"},{"$f":"TEXT(WEEKDAY(DATE(AnnoCalendario,9,13),1),\"[$-410]aaa\")","v":"gio"},{"$f":"TEXT(WEEKDAY(DATE(AnnoCalendario,9,14),1),\"[$-410]aaa\")","v":"ven"},{"$f":"TEXT(WEEKDAY(DATE(AnnoCalendario,9,15),1),\"[$-410]aaa\")","v":"sab"},{"$f":"TEXT(WEEKDAY(DATE(AnnoCalendario,9,16),1),\"[$-410]aaa\")","v":"dom"},{"$f":"TEXT(WEEKDAY(DATE(AnnoCalendario,9,17),1),\"[$-410]aaa\")","v":"lun"},{"$f":"TEXT(WEEKDAY(DATE(AnnoCalendario,9,18),1),\"[$-410]aaa\")","v":"mar"},{"$f":"TEXT(WEEKDAY(DATE(AnnoCalendario,9,19),1),\"[$-410]aaa\")","v":"mer"},{"$f":"TEXT(WEEKDAY(DATE(AnnoCalendario,9,20),1),\"[$-410]aaa\")","v":"gio"},{"$f":"TEXT(WEEKDAY(DATE(AnnoCalendario,9,21),1),\"[$-410]aaa\")","v":"ven"},{"$f":"TEXT(WEEKDAY(DATE(AnnoCalendario,9,22),1),\"[$-410]aaa\")","v":"sab"},{"$f":"TEXT(WEEKDAY(DATE(AnnoCalendario,9,23),1),\"[$-410]aaa\")","v":"dom"},{"$f":"TEXT(WEEKDAY(DATE(AnnoCalendario,9,24),1),\"[$-410]aaa\")","v":"lun"},{"$f":"TEXT(WEEKDAY(DATE(AnnoCalendario,9,25),1),\"[$-410]aaa\")","v":"mar"},{"$f":"TEXT(WEEKDAY(DATE(AnnoCalendario,9,26),1),\"[$-410]aaa\")","v":"mer"},{"$f":"TEXT(WEEKDAY(DATE(AnnoCalendario,9,27),1),\"[$-410]aaa\")","v":"gio"},{"$f":"TEXT(WEEKDAY(DATE(AnnoCalendario,9,28),1),\"[$-410]aaa\")","v":"ven"},{"$f":"TEXT(WEEKDAY(DATE(AnnoCalendario,9,29),1),\"[$-410]aaa\")","v":"sab"},{"$f":"TEXT(WEEKDAY(DATE(AnnoCalendario,9,30),1),\"[$-410]aaa\")","v":"dom"},null,"Totale"]
[null,"ID studente","Nome studente","1","2","3","4","5","6","7","8","9","10","11","12","13","14","15","16","17","18","19","20","21","22","23","24","25","26","27","28","29","30"," ","I","N","G","P","Giorni di assenza"]
[null,null,{"$f":"IFERROR(VLOOKUP(FrequenzaSettembre[[#This Row],[ID studente]],ElencoStudenti[],18,FALSE),\"\")","v":""},{"$nulls":31},{"$f":"COUNTIF(FrequenzaSettembre[[#This Row],[1]:[ ]],Codice1)","v":0},{"$f":"COUNTIF(FrequenzaSettembre[[#This Row],[1]:[ ]],Codice2)","v":0},{"$f":"COUNTIF(FrequenzaSettembre[[#This Row],[1]:[ ]],Codice3)","v":0},{"$f":"COUNTIF(FrequenzaSettembre[[#This Row],[1]:[ ]],Codice4)","v":0},{"$f":"SUM(FrequenzaSettembre[[#This Row],[N]:[G]])","v":0}]
[null,null,{"$f":"IFERROR(VLOOKUP(FrequenzaSettembre[[#This Row],[ID studente]],ElencoStudenti[],18,FALSE),\"\")","v":""},{"$nulls":31},{"$f":"COUNTIF(FrequenzaSettembre[[#This Row],[1]:[ ]],Codice1)","v":0},{"$f":"COUNTIF(FrequenzaSettembre[[#This Row],[1]:[ ]],Codice2)","v":0},{"$f":"COUNTIF(FrequenzaSettembre[[#This Row],[1]:[ ]],Codice3)","v":0},{"$f":"COUNTIF(FrequenzaSettembre[[#This Row],[1]:[ ]],Codice4)","v":0},{"$f":"SUM(FrequenzaSettembre[[#This Row],[N]:[G]])","v":0}]
[null,null,{"$f":"IFERROR(VLOOKUP(FrequenzaSettembre[[#This Row],[ID studente]],ElencoStudenti[],18,FALSE),\"\")","v":""},{"$nulls":31},{"$f":"COUNTIF(FrequenzaSettembre[[#This Row],[1]:[ ]],Codice1)","v":0},{"$f":"COUNTIF(FrequenzaSettembre[[#This Row],[1]:[ ]],Codice2)","v":0},{"$f":"COUNTIF(FrequenzaSettembre[[#This Row],[1]:[ ]],Codice3)","v":0},{"$f":"COUNTIF(FrequenzaSettembre[[#This Row],[1]:[ ]],Codice4)","v":0},{"$f":"SUM(FrequenzaSettembre[[#This Row],[N]:[G]])","v":0}]
[null,null,{"$f":"IFERROR(VLOOKUP(FrequenzaSettembre[[#This Row],[ID studente]],ElencoStudenti[],18,FALSE),\"\")","v":""},{"$nulls":31},{"$f":"COUNTIF(FrequenzaSettembre[[#This Row],[1]:[ ]],Codice1)","v":0},{"$f":"COUNTIF(FrequenzaSettembre[[#This Row],[1]:[ ]],Codice2)","v":0},{"$f":"COUNTIF(FrequenzaSettembre[[#This Row],[1]:[ ]],Codice3)","v":0},{"$f":"COUNTIF(FrequenzaSettembre[[#This Row],[1]:[ ]],Codice4)","v":0},{"$f":"SUM(FrequenzaSettembre[[#This Row],[N]:[G]])","v":0}]
[null,null,{"$f":"IFERROR(VLOOKUP(FrequenzaSettembre[[#This Row],[ID studente]],ElencoStudenti[],18,FALSE),\"\")","v":""},{"$nulls":31},{"$f":"COUNTIF(FrequenzaSettembre[[#This Row],[1]:[ ]],Codice1)","v":0},{"$f":"COUNTIF(FrequenzaSettembre[[#This Row],[1]:[ ]],Codice2)","v":0},{"$f":"COUNTIF(FrequenzaSettembre[[#This Row],[1]:[ ]],Codice3)","v":0},{"$f":"COUNTIF(FrequenzaSettembre[[#This Row],[1]:[ ]],Codice4)","v":0},{"$f":"SUM(FrequenzaSettembre[[#This Row],[N]:[G]])","v":0}]
[null,null,"Totale giorni di assenza",{"$f":"COUNTIF(FrequenzaSettembre[1],\"N\")+COUNTIF(FrequenzaSettembre[1],\"G\")","v":0},{"$f":"COUNTIF(FrequenzaSettembre[2],\"N\")+COUNTIF(FrequenzaSettembre[2],\"G\")","v":0},{"$f":"COUNTIF(FrequenzaSettembre[3],\"N\")+COUNTIF(FrequenzaSettembre[3],\"G\")","v":0},{"$f":"COUNTIF(FrequenzaSettembre[4],\"N\")+COUNTIF(FrequenzaSettembre[4],\"G\")","v":0},{"$f":"COUNTIF(FrequenzaSettembre[5],\"N\")+COUNTIF(FrequenzaSettembre[5],\"G\")","v":0},{"$f":"COUNTIF(FrequenzaSettembre[6],\"N\")+COUNTIF(FrequenzaSettembre[6],\"G\")","v":0},{"$f":"COUNTIF(FrequenzaSettembre[7],\"N\")+COUNTIF(FrequenzaSettembre[7],\"G\")","v":0},{"$f":"COUNTIF(FrequenzaSettembre[8],\"N\")+COUNTIF(FrequenzaSettembre[8],\"G\")","v":0},{"$f":"COUNTIF(FrequenzaSettembre[9],\"N\")+COUNTIF(FrequenzaSettembre[9],\"G\")","v":0},{"$f":"COUNTIF(FrequenzaSettembre[10],\"N\")+COUNTIF(FrequenzaSettembre[10],\"G\")","v":0},{"$f":"COUNTIF(FrequenzaSettembre[11],\"N\")+COUNTIF(FrequenzaSettembre[11],\"G\")","v":0},{"$f":"COUNTIF(FrequenzaSettembre[12],\"N\")+COUNTIF(FrequenzaSettembre[12],\"G\")","v":0},{"$f":"COUNTIF(FrequenzaSettembre[13],\"N\")+COUNTIF(FrequenzaSettembre[13],\"G\")","v":0},{"$f":"COUNTIF(FrequenzaSettembre[14],\"N\")+COUNTIF(FrequenzaSettembre[14],\"G\")","v":0},{"$f":"COUNTIF(FrequenzaSettembre[15],\"N\")+COUNTIF(FrequenzaSettembre[15],\"G\")","v":0},{"$f":"COUNTIF(FrequenzaSettembre[16],\"N\")+COUNTIF(FrequenzaSettembre[16],\"G\")","v":0},{"$f":"COUNTIF(FrequenzaSettembre[17],\"N\")+COUNTIF(FrequenzaSettembre[17],\"G\")","v":0},{"$f":"COUNTIF(FrequenzaSettembre[18],\"N\")+COUNTIF(FrequenzaSettembre[18],\"G\")","v":0},{"$f":"COUNTIF(FrequenzaSettembre[19],\"N\")+COUNTIF(FrequenzaSettembre[19],\"G\")","v":0},{"$f":"COUNTIF(FrequenzaSettembre[20],\"N\")+COUNTIF(FrequenzaSettembre[20],\"G\")","v":0},{"$f":"COUNTIF(FrequenzaSettembre[21],\"N\")+COUNTIF(FrequenzaSettembre[21],\"G\")","v":0},{"$f":"COUNTIF(FrequenzaSettembre[22],\"N\")+COUNTIF(FrequenzaSettembre[22],\"G\")","v":0},{"$f":"COUNTIF(FrequenzaSettembre[23],\"N\")+COUNTIF(FrequenzaSettembre[23],\"G\")","v":0},{"$f":"COUNTIF(FrequenzaSettembre[24],\"N\")+COUNTIF(FrequenzaSettembre[24],\"G\")","v":0},{"$f":"COUNTIF(FrequenzaSettembre[25],\"N\")+COUNTIF(FrequenzaSettembre[25],\"G\")","v":0},{"$f":"COUNTIF(FrequenzaSettembre[26],\"N\")+COUNTIF(FrequenzaSettembre[26],\"G\")","v":0},{"$f":"COUNTIF(FrequenzaSettembre[27],\"N\")+COUNTIF(FrequenzaSettembre[27],\"G\")","v":0},{"$f":"COUNTIF(FrequenzaSettembre[28],\"N\")+COUNTIF(FrequenzaSettembre[28],\"G\")","v":0},{"$f":"COUNTIF(FrequenzaSettembre[29],\"N\")+COUNTIF(FrequenzaSettembre[29],\"G\")","v":0},{"$f":"COUNTIF(FrequenzaSettembre[30],\"N\")+COUNTIF(FrequenzaSettembre[30],\"G\")","v":0},{"$f":"COUNTIF(FrequenzaSettembre[[ ]],\"N\")+COUNTIF(FrequenzaSettembre[[ ]],\"G\")","v":0},{"$f":"SUBTOTAL(109,FrequenzaSettembre[I])","v":0},{"$f":"SUBTOTAL(109,FrequenzaSettembre[N])","v":0},{"$f":"SUBTOTAL(109,FrequenzaSettembre[G])","v":0},{"$f":"SUBTOTAL(109,FrequenzaSettembre[P])","v":0},{"$f":"SUBTOTAL(109,FrequenzaSettembre[Giorni di assenza])","v":0}]

{"sheet":"Ottobre","index":4,"n_rows":12,"n_cols":39,"rows_kept":12,"merged":[[4,34,4,38]]}
["RECORD DI FREQUENZA STUDENTE",{"$nulls":36},"Inizio anno scolastico:",{"$f":"AnnoCalendario","v":2012}]
[]
[null,null,{"$f":"TestoLeggendaColori","v":"LEGGENDA COLORI "},{"$f":"Codice1","v":"I"},{"$f":"TestoCodice1","v":"In ritardo"},null,null,{"$f":"Codice2","v":"G"},{"$f":"TestoCodice2","v":"Giustificato"},null,null,{"$f":"Codice3","v":"N"},{"$f":"TestoCodice3","v":"Non giustificato"},null,null,{"$f":"Codice4","v":"P"},{"$f":"TestoCodice4","v":"Presente"},null,null,{"$f":"Codice5","v":"S"},{"$f":"TestoCodice5","v":"Scuola chiusa"}]
[]
[null,{"$f":"DATE(AnnoCalendario,10,1)","v":"2012-10-01"},null,{"$f":"TEXT(WEEKDAY(DATE(AnnoCalendario,10,1),1),\"[$-410]aaa\")","v":"lun"},{"$f":"TEXT(WEEKDAY(DATE(AnnoCalendario,10,2),1),\"[$-410]aaa\")","v":"mar"},{"$f":"TEXT(WEEKDAY(DATE(AnnoCalendario,10,3),1),\"[$-410]aaa\")","v":"mer"},{"$f":"TEXT(WEEKDAY(DATE(AnnoCalendario,10,4),1),\"[$-410]aaa\")","v":"gio"},{"$f":"TEXT(WEEKDAY(DATE(AnnoCalendario,10,5),1),\"[$-410]aaa\")","v":"ven"},{"$f":"TEXT(WEEKDAY(DATE(AnnoCalendario,10,6),1),\"[$-410]aaa\")","v":"sab"},{"$f":"TEXT(WEEKDAY(DATE(AnnoCalendario,10,7),1),\"[$-410]aaa\")","v":"dom"},{"$f":"TEXT(WEEKDAY(DATE(AnnoCalendario,10,8),1),\"[$-410]aaa\")","v":"lun"},{"$f":"TEXT(WEEKDAY(DATE(AnnoCalendario,10,9),1),\"[$-410]aaa\")","v":"mar"},{"$f":"TEXT(WEEKDAY(DATE(AnnoCalendario,10,10),1),\"[$-410]aaa\")","v":"mer"},{"$f":"TEXT(WEEKDAY(DATE(AnnoCalendario,10,11),1),\"[$-410]aaa\")","v":"gio"},{"$f":"TEXT(WEEKDAY(DATE(AnnoCalendario,10,12),1),\"[$-410]aaa\")","v":"ven"},{"$f":"TEXT(WEEKDAY(DATE(AnnoCalendario,10,13),1),\"[$-410]aaa\")","v":"sab"},{"$f":"TEXT(WEEKDAY(DATE(AnnoCalendario,10,14),1),\"[$-410]aaa\")","v":"dom"},{"$f":"TEXT(WEEKDAY(DATE(AnnoCalendario,10,15),1),\"[$-410]aaa\")","v":"lun"},{"$f":"TEXT(WEEKDAY(DATE(AnnoCalendario,10,16),1),\"[$-410]aaa\")","v":"mar"},{"$f":"TEXT(WEEKDAY(DATE(AnnoCalendario,10,17),1),\"[$-410]aaa\")","v":"mer"},{"$f":"TEXT(WEEKDAY(DATE(AnnoCalendario,10,18),1),\"[$-410]aaa\")","v":"gio"},{"$f":"TEXT(WEEKDAY(DATE(AnnoCalendario,10,19),1),\"[$-410]aaa\")","v":"ven"},{"$f":"TEXT(WEEKDAY(DATE(AnnoCalendario,10,20),1),\"[$-410]aaa\")","v":"sab"},{"$f":"TEXT(WEEKDAY(DATE(AnnoCalendario,10,21),1),\"[$-410]aaa\")","v":"dom"},{"$f":"TEXT(WEEKDAY(DATE(AnnoCalendario,10,22),1),\"[$-410]aaa\")","v":"lun"},{"$f":"TEXT(WEEKDAY(DATE(AnnoCalendario,10,23),1),\"[$-410]aaa\")","v":"mar"},{"$f":"TEXT(WEEKDAY(DATE(AnnoCalendario,10,24),1),\"[$-410]aaa\")","v":"mer"},{"$f":"TEXT(WEEKDAY(DATE(AnnoCalendario,10,25),1),\"[$-410]aaa\")","v":"gio"},{"$f":"TEXT(WEEKDAY(DATE(AnnoCalendario,10,26),1),\"[$-410]aaa\")","v":"ven"},{"$f":"TEXT(WEEKDAY(DATE(AnnoCalendario,10,27),1),\"[$-410]aaa\")","v":"sab"},{"$f":"TEXT(WEEKDAY(DATE(AnnoCalendario,10,28),1),\"[$-410]aaa\")","v":"dom"},{"$f":"TEXT(WEEKDAY(DATE(AnnoCalendario,10,29),1),\"[$-410]aaa\")","v":"lun"},{"$f":"TEXT(WEEKDAY(DATE(AnnoCalendario,10,30),1),\"[$-410]aaa\")","v":"mar"},{"$f":"TEXT(WEEKDAY(DATE(AnnoCalendario,10,31),1),\"[$-410]aaa\")","v":"mer"},"Totale"]
[null,"ID studente","Nome studente","1","2","3","4","5","6","7","8","9","10","11","12","13","14","15","16","17","18","19","20","21","22","23","24","25","26","27","28","29","30","31","I","N","G","P","Giorni di assenza"]
[null,null,{"$f":"IFERROR(VLOOKUP(FrequenzaOttobre[[#This Row],[ID studente]],ElencoStudenti[],18,FALSE),\"\")","v":""},{"$nulls":31},{"$f":"COUNTIF(FrequenzaOttobre[[#This Row],[1]:[31]],Codice1)","v":0},{"$f":"COUNTIF(FrequenzaOttobre[[#This Row],[1]:[31]],Codice2)","v":0},{"$f":"COUNTIF(FrequenzaOttobre[[#This Row],[1]:[31]],Codice3)","v":0},{"$f":"COUNTIF(FrequenzaOttobre[[#This Row],[1]:[31]],Codice4)","v":0},{"$f":"SUM(FrequenzaOttobre[[#This Row],[N]:[G]])","v":0}]
[null,null,{"$f":"IFERROR(VLOOKUP(FrequenzaOttobre[[#This Row],[ID studente]],ElencoStudenti[],18,FALSE),\"\")","v":""},{"$nulls":31},{"$f":"COUNTIF(FrequenzaOttobre[[#This Row],[1]:[31]],Codice1)","v":0},{"$f":"COUNTIF(FrequenzaOttobre[[#This Row],[1]:[31]],Codice2)","v":0},{"$f":"COUNTIF(FrequenzaOttobre[[#This Row],[1]:[31]],Codice3)","v":0},{"$f":"COUNTIF(FrequenzaOttobre[[#This Row],[1]:[31]],Codice4)","v":0},{"$f":"SUM(FrequenzaOttobre[[#This Row],[N]:[G]])","v":0}]
[null,null,{"$f":"IFERROR(VLOOKUP(FrequenzaOttobre[[#This Row],[ID studente]],ElencoStudenti[],18,FALSE),\"\")","v":""},{"$nulls":31},{"$f":"COUNTIF(FrequenzaOttobre[[#This Row],[1]:[31]],Codice1)","v":0},{"$f":"COUNTIF(FrequenzaOttobre[[#This Row],[1]:[31]],Codice2)","v":0},{"$f":"COUNTIF(FrequenzaOttobre[[#This Row],[1]:[31]],Codice3)","v":0},{"$f":"COUNTIF(FrequenzaOttobre[[#This Row],[1]:[31]],Codice4)","v":0},{"$f":"SUM(FrequenzaOttobre[[#This Row],[N]:[G]])","v":0}]
[null,null,{"$f":"IFERROR(VLOOKUP(FrequenzaOttobre[[#This Row],[ID studente]],ElencoStudenti[],18,FALSE),\"\")","v":""},{"$nulls":31},{"$f":"COUNTIF(FrequenzaOttobre[[#This Row],[1]:[31]],Codice1)","v":0},{"$f":"COUNTIF(FrequenzaOttobre[[#This Row],[1]:[31]],Codice2)","v":0},{"$f":"COUNTIF(FrequenzaOttobre[[#This Row],[1]:[31]],Codice3)","v":0},{"$f":"COUNTIF(FrequenzaOttobre[[#This Row],[1]:[31]],Codice4)","v":0},{"$f":"SUM(FrequenzaOttobre[[#This Row],[N]:[G]])","v":0}]
[null,null,{"$f":"IFERROR(VLOOKUP(FrequenzaOttobre[[#This Row],[ID studente]],ElencoStudenti[],18,FALSE),\"\")","v":""},{"$nulls":31},{"$f":"COUNTIF(FrequenzaOttobre[[#This Row],[1]:[31]],Codice1)","v":0},{"$f":"COUNTIF(FrequenzaOttobre[[#This Row],[1]:[31]],Codice2)","v":0},{"$f":"COUNTIF(FrequenzaOttobre[[#This Row],[1]:[31]],Codice3)","v":0},{"$f":"COUNTIF(FrequenzaOttobre[[#This Row],[1]:[31]],Codice4)","v":0},{"$f":"SUM(FrequenzaOttobre[[#This Row],[N]:[G]])","v":0}]
[null,null,"Totale giorni di assenza",{"$f":"COUNTIF(FrequenzaOttobre[1],\"N\")+COUNTIF(FrequenzaOttobre[1],\"G\")","v":0},{"$f":"COUNTIF(FrequenzaOttobre[2],\"N\")+COUNTIF(FrequenzaOttobre[2],\"G\")","v":0},{"$f":"COUNTIF(FrequenzaOttobre[3],\"N\")+COUNTIF(FrequenzaOttobre[3],\"G\")","v":0},{"$f":"COUNTIF(FrequenzaOttobre[4],\"N\")+COUNTIF(FrequenzaOttobre[4],\"G\")","v":0},{"$f":"COUNTIF(FrequenzaOttobre[5],\"N\")+COUNTIF(FrequenzaOttobre[5],\"G\")","v":0},{"$f":"COUNTIF(FrequenzaOttobre[6],\"N\")+COUNTIF(FrequenzaOttobre[6],\"G\")","v":0},{"$f":"COUNTIF(FrequenzaOttobre[7],\"N\")+COUNTIF(FrequenzaOttobre[7],\"G\")","v":0},{"$f":"COUNTIF(FrequenzaOttobre[8],\"N\")+COUNTIF(FrequenzaOttobre[8],\"G\")","v":0},{"$f":"COUNTIF(FrequenzaOttobre[9],\"N\")+COUNTIF(FrequenzaOttobre[9],\"G\")","v":0},{"$f":"COUNTIF(FrequenzaOttobre[10],\"N\")+COUNTIF(FrequenzaOttobre[10],\"G\")","v":0},{"$f":"COUNTIF(FrequenzaOttobre[11],\"N\")+COUNTIF(FrequenzaOttobre[11],\"G\")","v":0},{"$f":"COUNTIF(FrequenzaOttobre[12],\"N\")+COUNTIF(FrequenzaOttobre[12],\"G\")","v":0},{"$f":"COUNTIF(FrequenzaOttobre[13],\"N\")+COUNTIF(FrequenzaOttobre[13],\"G\")","v":0},{"$f":"COUNTIF(FrequenzaOttobre[14],\"N\")+COUNTIF(FrequenzaOttobre[14],\"G\")","v":0},{"$f":"COUNTIF(FrequenzaOttobre[15],\"N\")+COUNTIF(FrequenzaOttobre[15],\"G\")","v":0},{"$f":"COUNTIF(FrequenzaOttobre[16],\"N\")+COUNTIF(FrequenzaOttobre[16],\"G\")","v":0},{"$f":"COUNTIF(FrequenzaOttobre[17],\"N\")+COUNTIF(FrequenzaOttobre[17],\"G\")","v":0},{"$f":"COUNTIF(FrequenzaOttobre[18],\"N\")+COUNTIF(FrequenzaOttobre[18],\"G\")","v":0},{"$f":"COUNTIF(FrequenzaOttobre[19],\"N\")+COUNTIF(FrequenzaOttobre[19],\"G\")","v":0},{"$f":"COUNTIF(FrequenzaOttobre[20],\"N\")+COUNTIF(FrequenzaOttobre[20],\"G\")","v":0},{"$f":"COUNTIF(FrequenzaOttobre[21],\"N\")+COUNTIF(FrequenzaOttobre[21],\"G\")","v":0},{"$f":"COUNTIF(FrequenzaOttobre[22],\"N\")+COUNTIF(FrequenzaOttobre[22],\"G\")","v":0},{"$f":"COUNTIF(FrequenzaOttobre[23],\"N\")+COUNTIF(FrequenzaOttobre[23],\"G\")","v":0},{"$f":"COUNTIF(FrequenzaOttobre[24],\"N\")+COUNTIF(FrequenzaOttobre[24],\"G\")","v":0},{"$f":"COUNTIF(FrequenzaOttobre[25],\"N\")+COUNTIF(FrequenzaOttobre[25],\"G\")","v":0},{"$f":"COUNTIF(FrequenzaOttobre[26],\"N\")+COUNTIF(FrequenzaOttobre[26],\"G\")","v":0},{"$f":"COUNTIF(FrequenzaOttobre[27],\"N\")+COUNTIF(FrequenzaOttobre[27],\"G\")","v":0},{"$f":"COUNTIF(FrequenzaOttobre[28],\"N\")+COUNTIF(FrequenzaOttobre[28],\"G\")","v":0},{"$f":"COUNTIF(FrequenzaOttobre[29],\"N\")+COUNTIF(FrequenzaOttobre[29],\"G\")","v":0},{"$f":"COUNTIF(FrequenzaOttobre[30],\"N\")+COUNTIF(FrequenzaOttobre[30],\"G\")","v":0},{"$f":"COUNTIF(FrequenzaOttobre[31],\"N\")+COUNTIF(FrequenzaOttobre[31],\"G\")","v":0},{"$f":"SUBTOTAL(109,FrequenzaOttobre[I])","v":0},{"$f":"SUBTOTAL(109,FrequenzaOttobre[N])","v":0},{"$f":"SUBTOTAL(109,FrequenzaOttobre[G])","v":0},{"$f":"SUBTOTAL(109,FrequenzaOttobre[P])","v":0},{"$f":"SUBTOTAL(109,FrequenzaOttobre[Giorni di assenza])","v":0}]

{"sheet":"Novembre","index":5,"n_rows":12,"n_cols":39,"rows_kept":12,"merged":[[4,34,4,38]]}
["RECORD DI FREQUENZA STUDENTE",{"$nulls":36},"Inizio anno scolastico:",{"$f":"AnnoCalendario","v":2012}]
[]
[null,null,{"$f":"TestoLeggendaColori","v":"LEGGENDA COLORI "},{"$f":"Codice1","v":"I"},{"$f":"TestoCodice1","v":"In ritardo"},null,null,{"$f":"Codice2","v":"G"},{"$f":"TestoCodice2","v":"Giustificato"},null,null,{"$f":"Codice3","v":"N"},{"$f":"TestoCodice3","v":"Non giustificato"},null,null,{"$f":"Codice4","v":"P"},{"$f":"TestoCodice4","v":"Presente"},null,null,{"$f":"Codice5","v":"S"},{"$f":"TestoCodice5","v":"Scuola chiusa"}]
[]
[null,{"$f":"DATE(AnnoCalendario,11,1)","v":"2012-11-01"},null,{"$f":"TEXT(WEEKDAY(DATE(AnnoCalendario,11,1),1),\"[$-410]aaa\")","v":"gio"},{"$f":"TEXT(WEEKDAY(DATE(AnnoCalendario,11,2),1),\"[$-410]aaa\")","v":"ven"},{"$f":"TEXT(WEEKDAY(DATE(AnnoCalendario,11,3),1),\"[$-410]aaa\")","v":"sab"},{"$f":"TEXT(WEEKDAY(DATE(AnnoCalendario,11,4),1),\"[$-410]aaa\")","v":"dom"},{"$f":"TEXT(WEEKDAY(DATE(AnnoCalendario,11,5),1),\"[$-410]aaa\")","v":"lun"},{"$f":"TEXT(WEEKDAY(DATE(AnnoCalendario,11,6),1),\"[$-410]aaa\")","v":"mar"},{"$f":"TEXT(WEEKDAY(DATE(AnnoCalendario,11,7),1),\"[$-410]aaa\")","v":"mer"},{"$f":"TEXT(WEEKDAY(DATE(AnnoCalendario,11,8),1),\"[$-410]aaa\")","v":"gio"},{"$f":"TEXT(WEEKDAY(DATE(AnnoCalendario,11,9),1),\"[$-410]aaa\")","v":"ven"},{"$f":"TEXT(WEEKDAY(DATE(AnnoCalendario,11,10),1),\"[$-410]aaa\")","v":"sab"},{"$f":"TEXT(WEEKDAY(DATE(AnnoCalendario,11,11),1),\"[$-410]aaa\")","v":"dom"},{"$f":"TEXT(WEEKDAY(DATE(AnnoCalendario,11,12),1),\"[$-410]aaa\")","v":"lun"},{"$f":"TEXT(WEEKDAY(DATE(AnnoCalendario,11,13),1),\"[$-410]aaa\")","v":"mar"},{"$f":"TEXT(WEEKDAY(DATE(AnnoCalendario,11,14),1),\"[$-410]aaa\")","v":"mer"},{"$f":"TEXT(WEEKDAY(DATE(AnnoCalendario,11,15),1),\"[$-410]aaa\")","v":"gio"},{"$f":"TEXT(WEEKDAY(DATE(AnnoCalendario,11,16),1),\"[$-410]aaa\")","v":"ven"},{"$f":"TEXT(WEEKDAY(DATE(AnnoCalendario,11,17),1),\"[$-410]aaa\")","v":"sab"},{"$f":"TEXT(WEEKDAY(DATE(AnnoCalendario,11,18),1),\"[$-410]aaa\")","v":"dom"},{"$f":"TEXT(WEEKDAY(DATE(AnnoCalendario,11,19),1),\"[$-410]aaa\")","v":"lun"},{"$f":"TEXT(WEEKDAY(DATE(AnnoCalendario,11,20),1),\"[$-410]aaa\")","v":"mar"},{"$f":"TEXT(WEEKDAY(DATE(AnnoCalendario,11,21),1),\"[$-410]aaa\")","v":"mer"},{"$f":"TEXT(WEEKDAY(DATE(AnnoCalendario,11,22),1),\"[$-410]aaa\")","v":"gio"},{"$f":"TEXT(WEEKDAY(DATE(AnnoCalendario,11,23),1),\"[$-410]aaa\")","v":"ven"},{"$f":"TEXT(WEEKDAY(DATE(AnnoCalendario,11,24),1),\"[$-410]aaa\")","v":"sab"},{"$f":"TEXT(WEEKDAY(DATE(AnnoCalendario,11,25),1),\"[$-410]aaa\")","v":"dom"},{"$f":"TEXT(WEEKDAY(DATE(AnnoCalendario,11,26),1),\"[$-410]aaa\")","v":"lun"},{"$f":"TEXT(WEEKDAY(DATE(AnnoCalendario,11,27),1),\"[$-410]aaa\")","v":"mar"},{"$f":"TEXT(WEEKDAY(DATE(AnnoCalendario,11,28),1),\"[$-410]aaa\")","v":"mer"},{"$f":"TEXT(WEEKDAY(DATE(AnnoCalendario,11,29),1),\"[$-410]aaa\")","v":"gio"},{"$f":"TEXT(WEEKDAY(DATE(AnnoCalendario,11,30),1),\"[$-410]aaa\")","v":"ven"},null,"Totale"]
[null,"ID studente","Nome studente","1","2","3","4","5","6","7","8","9","10","11","12","13","14","15","16","17","18","19","20","21","22","23","24","25","26","27","28","29","30"," ","I","N","G","P","Giorni di assenza"]
[null,null,{"$f":"IFERROR(VLOOKUP(FrequenzaNovembre[[#This Row],[ID studente]],ElencoStudenti[],18,FALSE),\"\")","v":""},{"$nulls":31},{"$f":"COUNTIF(FrequenzaNovembre[[#This Row],[1]:[ ]],Codice1)","v":0},{"$f":"COUNTIF(FrequenzaNovembre[[#This Row],[1]:[ ]],Codice2)","v":0},{"$f":"COUNTIF(FrequenzaNovembre[[#This Row],[1]:[ ]],Codice3)","v":0},{"$f":"COUNTIF(FrequenzaNovembre[[#This Row],[1]:[ ]],Codice4)","v":0},{"$f":"SUM(FrequenzaNovembre[[#This Row],[N]:[G]])","v":0}]
[null,null,{"$f":"IFERROR(VLOOKUP(FrequenzaNovembre[[#This Row],[ID studente]],ElencoStudenti[],18,FALSE),\"\")","v":""},{"$nulls":31},{"$f":"COUNTIF(FrequenzaNovembre[[#This Row],[1]:[ ]],Codice1)","v":0},{"$f":"COUNTIF(FrequenzaNovembre[[#This Row],[1]:[ ]],Codice2)","v":0},{"$f":"COUNTIF(FrequenzaNovembre[[#This Row],[1]:[ ]],Codice3)","v":0},{"$f":"COUNTIF(FrequenzaNovembre[[#This Row],[1]:[ ]],Codice4)","v":0},{"$f":"SUM(FrequenzaNovembre[[#This Row],[N]:[G]])","v":0}]
[null,null,{"$f":"IFERROR(VLOOKUP(FrequenzaNovembre[[#This Row],[ID studente]],ElencoStudenti[],18,FALSE),\"\")","v":""},{"$nulls":31},{"$f":"COUNTIF(FrequenzaNovembre[[#This Row],[1]:[ ]],Codice1)","v":0},{"$f":"COUNTIF(FrequenzaNovembre[[#This Row],[1]:[ ]],Codice2)","v":0},{"$f":"COUNTIF(FrequenzaNovembre[[#This Row],[1]:[ ]],Codice3)","v":0},{"$f":"COUNTIF(FrequenzaNovembre[[#This Row],[1]:[ ]],Codice4)","v":0},{"$f":"SUM(FrequenzaNovembre[[#This Row],[N]:[G]])","v":0}]
[null,null,{"$f":"IFERROR(VLOOKUP(FrequenzaNovembre[[#This Row],[ID studente]],ElencoStudenti[],18,FALSE),\"\")","v":""},{"$nulls":31},{"$f":"COUNTIF(FrequenzaNovembre[[#This Row],[1]:[ ]],Codice1)","v":0},{"$f":"COUNTIF(FrequenzaNovembre[[#This Row],[1]:[ ]],Codice2)","v":0},{"$f":"COUNTIF(FrequenzaNovembre[[#This Row],[1]:[ ]],Codice3)","v":0},{"$f":"COUNTIF(FrequenzaNovembre[[#This Row],[1]:[ ]],Codice4)","v":0},{"$f":"SUM(FrequenzaNovembre[[#This Row],[N]:[G]])","v":0}]
[null,null,{"$f":"IFERROR(VLOOKUP(FrequenzaNovembre[[#This Row],[ID studente]],ElencoStudenti[],18,FALSE),\"\")","v":""},{"$nulls":31},{"$f":"COUNTIF(FrequenzaNovembre[[#This Row],[1]:[ ]],Codice1)","v":0},{"$f":"COUNTIF(FrequenzaNovembre[[#This Row],[1]:[ ]],Codice2)","v":0},{"$f":"COUNTIF(FrequenzaNovembre[[#This Row],[1]:[ ]],Codice3)","v":0},{"$f":"COUNTIF(FrequenzaNovembre[[#This Row],[1]:[ ]],Codice4)","v":0},{"$f":"SUM(FrequenzaNovembre[[#This Row],[N]:[G]])","v":0}]
[null,null,"Totale giorni di assenza",{"$f":"COUNTIF(FrequenzaNovembre[1],\"N\")+COUNTIF(FrequenzaNovembre[1],\"G\")","v":0},{"$f":"COUNTIF(FrequenzaNovembre[2],\"N\")+COUNTIF(FrequenzaNovembre[2],\"G\")","v":0},{"$f":"COUNTIF(FrequenzaNovembre[3],\"N\")+COUNTIF(FrequenzaNovembre[3],\"G\")","v":0},{"$f":"COUNTIF(FrequenzaNovembre[4],\"N\")+COUNTIF(FrequenzaNovembre[4],\"G\")","v":0},{"$f":"COUNTIF(FrequenzaNovembre[5],\"N\")+COUNTIF(FrequenzaNovembre[5],\"G\")","v":0},{"$f":"COUNTIF(FrequenzaNovembre[6],\"N\")+COUNTIF(FrequenzaNovembre[6],\"G\")","v":0},{"$f":"COUNTIF(FrequenzaNovembre[7],\"N\")+COUNTIF(FrequenzaNovembre[7],\"G\")","v":0},{"$f":"COUNTIF(FrequenzaNovembre[8],\"N\")+COUNTIF(FrequenzaNovembre[8],\"G\")","v":0},{"$f":"COUNTIF(FrequenzaNovembre[9],\"N\")+COUNTIF(FrequenzaNovembre[9],\"G\")","v":0},{"$f":"COUNTIF(FrequenzaNovembre[10],\"N\")+COUNTIF(FrequenzaNovembre[10],\"G\")","v":0},{"$f":"COUNTIF(FrequenzaNovembre[11],\"N\")+COUNTIF(FrequenzaNovembre[11],\"G\")","v":0},{"$f":"COUNTIF(FrequenzaNovembre[12],\"N\")+COUNTIF(FrequenzaNovembre[12],\"G\")","v":0},{"$f":"COUNTIF(FrequenzaNovembre[13],\"N\")+COUNTIF(FrequenzaNovembre[13],\"G\")","v":0},{"$f":"COUNTIF(FrequenzaNovembre[14],\"N\")+COUNTIF(FrequenzaNovembre[14],\"G\")","v":0},{"$f":"COUNTIF(FrequenzaNovembre[15],\"N\")+COUNTIF(FrequenzaNovembre[15],\"G\")","v":0},{"$f":"COUNTIF(FrequenzaNovembre[16],\"N\")+COUNTIF(FrequenzaNovembre[16],\"G\")","v":0},{"$f":"COUNTIF(FrequenzaNovembre[17],\"N\")+COUNTIF(FrequenzaNovembre[17],\"G\")","v":0},{"$f":"COUNTIF(FrequenzaNovembre[18],\"N\")+COUNTIF(FrequenzaNovembre[18],\"G\")","v":0},{"$f":"COUNTIF(FrequenzaNovembre[19],\"N\")+COUNTIF(FrequenzaNovembre[19],\"G\")","v":0},{"$f":"COUNTIF(FrequenzaNovembre[20],\"N\")+COUNTIF(FrequenzaNovembre[20],\"G\")","v":0},{"$f":"COUNTIF(FrequenzaNovembre[21],\"N\")+COUNTIF(FrequenzaNovembre[21],\"G\")","v":0},{"$f":"COUNTIF(FrequenzaNovembre[22],\"N\")+COUNTIF(FrequenzaNovembre[22],\"G\")","v":0},{"$f":"COUNTIF(FrequenzaNovembre[23],\"N\")+COUNTIF(FrequenzaNovembre[23],\"G\")","v":0},{"$f":"COUNTIF(FrequenzaNovembre[24],\"N\")+COUNTIF(FrequenzaNovembre[24],\"G\")","v":0},{"$f":"COUNTIF(FrequenzaNovembre[25],\"N\")+COUNTIF(FrequenzaNovembre[25],\"G\")","v":0},{"$f":"COUNTIF(FrequenzaNovembre[26],\"N\")+COUNTIF(FrequenzaNovembre[26],\"G\")","v":0},{"$f":"COUNTIF(FrequenzaNovembre[27],\"N\")+COUNTIF(FrequenzaNovembre[27],\"G\")","v":0},{"$f":"COUNTIF(FrequenzaNovembre[28],\"N\")+COUNTIF(FrequenzaNovembre[28],\"G\")","v":0},{"$f":"COUNTIF(FrequenzaNovembre[29],\"N\")+COUNTIF(FrequenzaNovembre[29],\"G\")","v":0},{"$f":"COUNTIF(FrequenzaNovembre[30],\"N\")+COUNTIF(FrequenzaNovembre[30],\"G\")","v":0},{"$f":"COUNTIF(FrequenzaNovembre[[ ]],\"N\")+COUNTIF(FrequenzaNovembre[[ ]],\"G\")","v":0},{"$f":"SUBTOTAL(109,FrequenzaNovembre[I])","v":0},{"$f":"SUBTOTAL(109,FrequenzaNovembre[N])","v":0},{"$f":"SUBTOTAL(109,FrequenzaNovembre[G])","v":0},{"$f":"SUBTOTAL(109,FrequenzaNovembre[P])","v":0},{"$f":"SUBTOTAL(109,FrequenzaNovembre[Giorni di assenza])","v":0}]

{"sheet":"Dicembre","index":6,"n_rows":12,"n_cols":39,"rows_kept":12,"merged":[[4,34,4,38]]}
["RECORD DI FREQUENZA STUDENTE",{"$nulls":36},"Inizio anno scolastico:",{"$f":"AnnoCalendario","v":2012}]
[]
[null,null,{"$f":"TestoLeggendaColori","v":"LEGGENDA COLORI "},{"$f":"Codice1","v":"I"},{"$f":"TestoCodice1","v":"In ritardo"},null,null,{"$f":"Codice2","v":"G"},{"$f":"TestoCodice2","v":"Giustificato"},null,null,{"$f":"Codice3","v":"N"},{"$f":"TestoCodice3","v":"Non giustificato"},null,null,{"$f":"Codice4","v":"P"},{"$f":"TestoCodice4","v":"Presente"},null,null,{"$f":"Codice5","v":"S"},{"$f":"TestoCodice5","v":"Scuola chiusa"}]
[]
[null,{"$f":"DATE(AnnoCalendario,12,1)","v":"2012-12-01"},null,{"$f":"TEXT(WEEKDAY(DATE(AnnoCalendario,12,1),1),\"[$-410]aaa\")","v":"sab"},{"$f":"TEXT(WEEKDAY(DATE(AnnoCalendario,12,2),1),\"[$-410]aaa\")","v":"dom"},{"$f":"TEXT(WEEKDAY(DATE(AnnoCalendario,12,3),1),\"[$-410]aaa\")","v":"lun"},{"$f":"TEXT(WEEKDAY(DATE(AnnoCalendario,12,4),1),\"[$-410]aaa\")","v":"mar"},{"$f":"TEXT(WEEKDAY(DATE(AnnoCalendario,12,5),1),\"[$-410]aaa\")","v":"mer"},{"$f":"TEXT(WEEKDAY(DATE(AnnoCalendario,12,6),1),\"[$-410]aaa\")","v":"gio"},{"$f":"TEXT(WEEKDAY(DATE(AnnoCalendario,12,7),1),\"[$-410]aaa\")","v":"ven"},{"$f":"TEXT(WEEKDAY(DATE(AnnoCalendario,12,8),1),\"[$-410]aaa\")","v":"sab"},{"$f":"TEXT(WEEKDAY(DATE(AnnoCalendario,12,9),1),\"[$-410]aaa\")","v":"dom"},{"$f":"TEXT(WEEKDAY(DATE(AnnoCalendario,12,10),1),\"[$-410]aaa\")","v":"lun"},{"$f":"TEXT(WEEKDAY(DATE(AnnoCalendario,12,11),1),\"[$-410]aaa\")","v":"mar"},{"$f":"TEXT(WEEKDAY(DATE(AnnoCalendario,12,12),1),\"[$-410]aaa\")","v":"mer"},{"$f":"TEXT(WEEKDAY(DATE(AnnoCalendario,12,13),1),\"[$-410]aaa\")","v":"gio"},{"$f":"TEXT(WEEKDAY(DATE(AnnoCalendario,12,14),1),\"[$-410]aaa\")","v":"ven"},{"$f":"TEXT(WEEKDAY(DATE(AnnoCalendario,12,15),1),\"[$-410]aaa\")","v":"sab"},{"$f":"TEXT(WEEKDAY(DATE(AnnoCalendario,12,16),1),\"[$-410]aaa\")","v":"dom"},{"$f":"TEXT(WEEKDAY(DATE(AnnoCalendario,12,17),1),\"[$-410]aaa\")","v":"lun"},{"$f":"TEXT(WEEKDAY(DATE(AnnoCalendario,12,18),1),\"[$-410]aaa\")","v":"mar"},{"$f":"TEXT(WEEKDAY(DATE(AnnoCalendario,12,19),1),\"[$-410]aaa\")","v":"mer"},{"$f":"TEXT(WEEKDAY(DATE(AnnoCalendario,12,20),1),\"[$-410]aaa\")","v":"gio"},{"$f":"TEXT(WEEKDAY(DATE(AnnoCalendario,12,21),1),\"[$-410]aaa\")","v":"ven"},{"$f":"TEXT(WEEKDAY(DATE(AnnoCalendario,12,22),1),\"[$-410]aaa\")","v":"sab"},{"$f":"TEXT(WEEKDAY(DATE(AnnoCalendario,12,23),1),\"[$-410]aaa\")","v":"dom"},{"$f":"TEXT(WEEKDAY(DATE(AnnoCalendario,12,24),1),\"[$-410]aaa\")","v":"lun"},{"$f":"TEXT(WEEKDAY(DATE(AnnoCalendario,12,25),1),\"[$-410]aaa\")","v":"mar"},{"$f":"TEXT(WEEKDAY(DATE(AnnoCalendario,12,26),1),\"[$-410]aaa\")","v":"mer"},{"$f":"TEXT(WEEKDAY(DATE(AnnoCalendario,12,27),1),\"[$-410]aaa\")","v":"gio"},{"$f":"TEXT(WEEKDAY(DATE(AnnoCalendario,12,28),1),\"[$-410]aaa\")","v":"ven"},{"$f":"TEXT(WEEKDAY(DATE(AnnoCalendario,12,29),1),\"[$-410]aaa\")","v":"sab"},{"$f":"TEXT(WEEKDAY(DATE(AnnoCalendario,12,30),1),\"[$-410]aaa\")","v":"dom"},{"$f":"TEXT(WEEKDAY(DATE(AnnoCalendario,12,31),1),\"[$-410]aaa\")","v":"lun"},"Totale"]
[null,"ID studente","Nome studente","1","2","3","4","5","6","7","8","9","10","11","12","13","14","15","16","17","18","19","20","21","22","23","24","25","26","27","28","29","30","31","I","N","G","P","Giorni di assenza"]
[null,null,{"$f":"IFERROR(VLOOKUP(FrequenzaDicembre[[#This Row],[ID studente]],ElencoStudenti[],18,FALSE),\"\")","v":""},{"$nulls":31},{"$f":"COUNTIF(FrequenzaDicembre[[#This Row],[1]:[31]],Codice1)","v":0},{"$f":"COUNTIF(FrequenzaDicembre[[#This Row],[1]:[31]],Codice2)","v":0},{"$f":"COUNTIF(FrequenzaDicembre[[#This Row],[1]:[31]],Codice3)","v":0},{"$f":"COUNTIF(FrequenzaDicembre[[#This Row],[1]:[31]],Codice4)","v":0},{"$f":"SUM(FrequenzaDicembre[[#This Row],[N]:[G]])","v":0}]
[null,null,{"$f":"IFERROR(VLOOKUP(FrequenzaDicembre[[#This Row],[ID studente]],ElencoStudenti[],18,FALSE),\"\")","v":""},{"$nulls":31},{"$f":"COUNTIF(FrequenzaDicembre[[#This Row],[1]:[31]],Codice1)","v":0},{"$f":"COUNTIF(FrequenzaDicembre[[#This Row],[1]:[31]],Codice2)","v":0},{"$f":"COUNTIF(FrequenzaDicembre[[#This Row],[1]:[31]],Codice3)","v":0},{"$f":"COUNTIF(FrequenzaDicembre[[#This Row],[1]:[31]],Codice4)","v":0},{"$f":"SUM(FrequenzaDicembre[[#This Row],[N]:[G]])","v":0}]
[null,null,{"$f":"IFERROR(VLOOKUP(FrequenzaDicembre[[#This Row],[ID studente]],ElencoStudenti[],18,FALSE),\"\")","v":""},{"$nulls":31},{"$f":"COUNTIF(FrequenzaDicembre[[#This Row],[1]:[31]],Codice1)","v":0},{"$f":"COUNTIF(FrequenzaDicembre[[#This Row],[1]:[31]],Codice2)","v":0},{"$f":"COUNTIF(FrequenzaDicembre[[#This Row],[1]:[31]],Codice3)","v":0},{"$f":"COUNTIF(FrequenzaDicembre[[#This Row],[1]:[31]],Codice4)","v":0},{"$f":"SUM(FrequenzaDicembre[[#This Row],[N]:[G]])","v":0}]
[null,null,{"$f":"IFERROR(VLOOKUP(FrequenzaDicembre[[#This Row],[ID studente]],ElencoStudenti[],18,FALSE),\"\")","v":""},{"$nulls":31},{"$f":"COUNTIF(FrequenzaDicembre[[#This Row],[1]:[31]],Codice1)","v":0},{"$f":"COUNTIF(FrequenzaDicembre[[#This Row],[1]:[31]],Codice2)","v":0},{"$f":"COUNTIF(FrequenzaDicembre[[#This Row],[1]:[31]],Codice3)","v":0},{"$f":"COUNTIF(FrequenzaDicembre[[#This Row],[1]:[31]],Codice4)","v":0},{"$f":"SUM(FrequenzaDicembre[[#This Row],[N]:[G]])","v":0}]
[null,null,{"$f":"IFERROR(VLOOKUP(FrequenzaDicembre[[#This Row],[ID studente]],ElencoStudenti[],18,FALSE),\"\")","v":""},{"$nulls":31},{"$f":"COUNTIF(FrequenzaDicembre[[#This Row],[1]:[31]],Codice1)","v":0},{"$f":"COUNTIF(FrequenzaDicembre[[#This Row],[1]:[31]],Codice2)","v":0},{"$f":"COUNTIF(FrequenzaDicembre[[#This Row],[1]:[31]],Codice3)","v":0},{"$f":"COUNTIF(FrequenzaDicembre[[#This Row],[1]:[31]],Codice4)","v":0},{"$f":"SUM(FrequenzaDicembre[[#This Row],[N]:[G]])","v":0}]
[null,null,"Totale giorni di assenza",{"$f":"COUNTIF(FrequenzaDicembre[1],\"N\")+COUNTIF(FrequenzaDicembre[1],\"G\")","v":0},{"$f":"COUNTIF(FrequenzaDicembre[2],\"N\")+COUNTIF(FrequenzaDicembre[2],\"G\")","v":0},{"$f":"COUNTIF(FrequenzaDicembre[3],\"N\")+COUNTIF(FrequenzaDicembre[3],\"G\")","v":0},{"$f":"COUNTIF(FrequenzaDicembre[4],\"N\")+COUNTIF(FrequenzaDicembre[4],\"G\")","v":0},{"$f":"COUNTIF(FrequenzaDicembre[5],\"N\")+COUNTIF(FrequenzaDicembre[5],\"G\")","v":0},{"$f":"COUNTIF(FrequenzaDicembre[6],\"N\")+COUNTIF(FrequenzaDicembre[6],\"G\")","v":0},{"$f":"COUNTIF(FrequenzaDicembre[7],\"N\")+COUNTIF(FrequenzaDicembre[7],\"G\")","v":0},{"$f":"COUNTIF(FrequenzaDicembre[8],\"N\")+COUNTIF(FrequenzaDicembre[8],\"G\")","v":0},{"$f":"COUNTIF(FrequenzaDicembre[9],\"N\")+COUNTIF(FrequenzaDicembre[9],\"G\")","v":0},{"$f":"COUNTIF(FrequenzaDicembre[10],\"N\")+COUNTIF(FrequenzaDicembre[10],\"G\")","v":0},{"$f":"COUNTIF(FrequenzaDicembre[11],\"N\")+COUNTIF(FrequenzaDicembre[11],\"G\")","v":0},{"$f":"COUNTIF(FrequenzaDicembre[12],\"N\")+COUNTIF(FrequenzaDicembre[12],\"G\")","v":0},{"$f":"COUNTIF(FrequenzaDicembre[13],\"N\")+COUNTIF(FrequenzaDicembre[13],\"G\")","v":0},{"$f":"COUNTIF(FrequenzaDicembre[14],\"N\")+COUNTIF(FrequenzaDicembre[14],\"G\")","v":0},{"$f":"COUNTIF(FrequenzaDicembre[15],\"N\")+COUNTIF(FrequenzaDicembre[15],\"G\")","v":0},{"$f":"COUNTIF(FrequenzaDicembre[16],\"N\")+COUNTIF(FrequenzaDicembre[16],\"G\")","v":0},{"$f":"COUNTIF(FrequenzaDicembre[17],\"N\")+COUNTIF(FrequenzaDicembre[17],\"G\")","v":0},{"$f":"COUNTIF(FrequenzaDicembre[18],\"N\")+COUNTIF(FrequenzaDicembre[18],\"G\")","v":0},{"$f":"COUNTIF(FrequenzaDicembre[19],\"N\")+COUNTIF(FrequenzaDicembre[19],\"G\")","v":0},{"$f":"COUNTIF(FrequenzaDicembre[20],\"N\")+COUNTIF(FrequenzaDicembre[20],\"G\")","v":0},{"$f":"COUNTIF(FrequenzaDicembre[21],\"N\")+COUNTIF(FrequenzaDicembre[21],\"G\")","v":0},{"$f":"COUNTIF(FrequenzaDicembre[22],\"N\")+COUNTIF(FrequenzaDicembre[22],\"G\")","v":0},{"$f":"COUNTIF(FrequenzaDicembre[23],\"N\")+COUNTIF(FrequenzaDicembre[23],\"G\")","v":0},{"$f":"COUNTIF(FrequenzaDicembre[24],\"N\")+COUNTIF(FrequenzaDicembre[24],\"G\")","v":0},{"$f":"COUNTIF(FrequenzaDicembre[25],\"N\")+COUNTIF(FrequenzaDicembre[25],\"G\")","v":0},{"$f":"COUNTIF(FrequenzaDicembre[26],\"N\")+COUNTIF(FrequenzaDicembre[26],\"G\")","v":0},{"$f":"COUNTIF(FrequenzaDicembre[27],\"N\")+COUNTIF(FrequenzaDicembre[27],\"G\")","v":0},{"$f":"COUNTIF(FrequenzaDicembre[28],\"N\")+COUNTIF(FrequenzaDicembre[28],\"G\")","v":0},{"$f":"COUNTIF(FrequenzaDicembre[29],\"N\")+COUNTIF(FrequenzaDicembre[29],\"G\")","v":0},{"$f":"COUNTIF(FrequenzaDicembre[30],\"N\")+COUNTIF(FrequenzaDicembre[30],\"G\")","v":0},{"$f":"COUNTIF(FrequenzaDicembre[31],\"N\")+COUNTIF(FrequenzaDicembre[31],\"G\")","v":0},{"$f":"SUBTOTAL(109,FrequenzaDicembre[I])","v":0},{"$f":"SUBTOTAL(109,FrequenzaDicembre[N])","v":0},{"$f":"SUBTOTAL(109,FrequenzaDicembre[G])","v":0},{"$f":"SUBTOTAL(109,FrequenzaDicembre[P])","v":0},{"$f":"SUBTOTAL(109,FrequenzaDicembre[Giorni di assenza])","v":0}]

{"sheet":"Gennaio","index":7,"n_rows":12,"n_cols":39,"rows_kept":12,"merged":[[4,34,4,38]]}
["RECORD DI FREQUENZA STUDENTE",{"$nulls":36},"Inizio anno scolastico:",{"$f":"AnnoCalendario","v":2012}]
[]
[null,null,{"$f":"TestoLeggendaColori","v":"LEGGENDA COLORI "},{"$f":"Codice1","v":"I"},{"$f":"TestoCodice1","v":"In ritardo"},null,null,{"$f":"Codice2","v":"G"},{"$f":"TestoCodice2","v":"Giustificato"},null,null,{"$f":"Codice3","v":"N"},{"$f":"TestoCodice3","v":"Non giustificato"},null,null,{"$f":"Codice4","v":"P"},{"$f":"TestoCodice4","v":"Presente"},null,null,{"$f":"Codice5","v":"S"},{"$f":"TestoCodice5","v":"Scuola chiusa"}]
[]
[null,{"$f":"DATE(AnnoCalendario+1,1,1)","v":"2013-01-01"},null,{"$f":"TEXT(WEEKDAY(DATE(AnnoCalendario+1,1,1),1),\"[$-410]aaa\")","v":"mar"},{"$f":"TEXT(WEEKDAY(DATE(AnnoCalendario+1,1,2),1),\"[$-410]aaa\")","v":"mer"},{"$f":"TEXT(WEEKDAY(DATE(AnnoCalendario+1,1,3),1),\"[$-410]aaa\")","v":"gio"},{"$f":"TEXT(WEEKDAY(DATE(AnnoCalendario+1,1,4),1),\"[$-410]aaa\")","v":"ven"},{"$f":"TEXT(WEEKDAY(DATE(AnnoCalendario+1,1,5),1),\"[$-410]aaa\")","v":"sab"},{"$f":"TEXT(WEEKDAY(DATE(AnnoCalendario+1,1,6),1),\"[$-410]aaa\")","v":"dom"},{"$f":"TEXT(WEEKDAY(DATE(AnnoCalendario+1,1,7),1),\"[$-410]aaa\")","v":"lun"},{"$f":"TEXT(WEEKDAY(DATE(AnnoCalendario+1,1,8),1),\"[$-410]aaa\")","v":"mar"},{"$f":"TEXT(WEEKDAY(DATE(AnnoCalendario+1,1,9),1),\"[$-410]aaa\")","v":"mer"},{"$f":"TEXT(WEEKDAY(DATE(AnnoCalendario+1,1,10),1),\"[$-410]aaa\")","v":"gio"},{"$f":"TEXT(WEEKDAY(DATE(AnnoCalendario+1,1,11),1),\"[$-410]aaa\")","v":"ven"},{"$f":"TEXT(WEEKDAY(DATE(AnnoCalendario+1,1,12),1),\"[$-410]aaa\")","v":"sab"},{"$f":"TEXT(WEEKDAY(DATE(AnnoCalendario+1,1,13),1),\"[$-410]aaa\")","v":"dom"},{"$f":"TEXT(WEEKDAY(DATE(AnnoCalendario+1,1,14),1),\"[$-410]aaa\")","v":"lun"},{"$f":"TEXT(WEEKDAY(DATE(AnnoCalendario+1,1,15),1),\"[$-410]aaa\")","v":"mar"},{"$f":"TEXT(WEEKDAY(DATE(AnnoCalendario+1,1,16),1),\"[$-410]aaa\")","v":"mer"},{"$f":"TEXT(WEEKDAY(DATE(AnnoCalendario+1,1,17),1),\"[$-410]aaa\")","v":"gio"},{"$f":"TEXT(WEEKDAY(DATE(AnnoCalendario+1,1,18),1),\"[$-410]aaa\")","v":"ven"},{"$f":"TEXT(WEEKDAY(DATE(AnnoCalendario+1,1,19),1),\"[$-410]aaa\")","v":"sab"},{"$f":"TEXT(WEEKDAY(DATE(AnnoCalendario+1,1,20),1),\"[$-410]aaa\")","v":"dom"},{"$f":"TEXT(WEEKDAY(DATE(AnnoCalendario+1,1,21),1),\"[$-410]aaa\")","v":"lun"},{"$f":"TEXT(WEEKDAY(DATE(AnnoCalendario+1,1,22),1),\"[$-410]aaa\")","v":"mar"},{"$f":"TEXT(WEEKDAY(DATE(AnnoCalendario+1,1,23),1),\"[$-410]aaa\")","v":"mer"},{"$f":"TEXT(WEEKDAY(DATE(AnnoCalendario+1,1,24),1),\"[$-410]aaa\")","v":"gio"},{"$f":"TEXT(WEEKDAY(DATE(AnnoCalendario+1,1,25),1),\"[$-410]aaa\")","v":"ven"},{"$f":"TEXT(WEEKDAY(DATE(AnnoCalendario+1,1,26),1),\"[$-410]aaa\")","v":"sab"},{"$f":"TEXT(WEEKDAY(DATE(AnnoCalendario+1,1,27),1),\"[$-410]aaa\")","v":"dom"},{"$f":"TEXT(WEEKDAY(DATE(AnnoCalendario+1,1,28),1),\"[$-410]aaa\")","v":"lun"},{"$f":"TEXT(WEEKDAY(DATE(AnnoCalendario+1,1,29),1),\"[$-410]aaa\")","v":"mar"},{"$f":"TEXT(WEEKDAY(DATE(AnnoCalendario+1,1,30),1),\"[$-410]aaa\")","v":"mer"},{"$f":"TEXT(WEEKDAY(DATE(AnnoCalendario+1,1,31),1),\"[$-410]aaa\")","v":"gio"},"Totale"]
[null,"ID studente","Nome studente","1","2","3","4","5","6","7","8","9","10","11","12","13","14","15","16","17","18","19","20","21","22","23","24","25","26","27","28","29","30","31","I","N","G","P","Giorni di assenza"]
[null,null,{"$f":"IFERROR(VLOOKUP(FrequenzaGennaio[[#This Row],[ID studente]],ElencoStudenti[],18,FALSE),\"\")","v":""},{"$nulls":31},{"$f":"COUNTIF(FrequenzaGennaio[[#This Row],[1]:[31]],Codice1)","v":0},{"$f":"COUNTIF(FrequenzaGennaio[[#This Row],[1]:[31]],Codice2)","v":0},{"$f":"COUNTIF(FrequenzaGennaio[[#This Row],[1]:[31]],Codice3)","v":0},{"$f":"COUNTIF(FrequenzaGennaio[[#This Row],[1]:[31]],Codice4)","v":0},{"$f":"SUM(FrequenzaGennaio[[#This Row],[N]:[G]])","v":0}]
[null,null,{"$f":"IFERROR(VLOOKUP(FrequenzaGennaio[[#This Row],[ID studente]],ElencoStudenti[],18,FALSE),\"\")","v":""},{"$nulls":31},{"$f":"COUNTIF(FrequenzaGennaio[[#This Row],[1]:[31]],Codice1)","v":0},{"$f":"COUNTIF(FrequenzaGennaio[[#This Row],[1]:[31]],Codice2)","v":0},{"$f":"COUNTIF(FrequenzaGennaio[[#This Row],[1]:[31]],Codice3)","v":0},{"$f":"COUNTIF(FrequenzaGennaio[[#This Row],[1]:[31]],Codice4)","v":0},{"$f":"SUM(FrequenzaGennaio[[#This Row],[N]:[G]])","v":0}]
[null,null,{"$f":"IFERROR(VLOOKUP(FrequenzaGennaio[[#This Row],[ID studente]],ElencoStudenti[],18,FALSE),\"\")","v":""},{"$nulls":31},{"$f":"COUNTIF(FrequenzaGennaio[[#This Row],[1]:[31]],Codice1)","v":0},{"$f":"COUNTIF(FrequenzaGennaio[[#This Row],[1]:[31]],Codice2)","v":0},{"$f":"COUNTIF(FrequenzaGennaio[[#This Row],[1]:[31]],Codice3)","v":0},{"$f":"COUNTIF(FrequenzaGennaio[[#This Row],[1]:[31]],Codice4)","v":0},{"$f":"SUM(FrequenzaGennaio[[#This Row],[N]:[G]])","v":0}]
[null,null,{"$f":"IFERROR(VLOOKUP(FrequenzaGennaio[[#This Row],[ID studente]],ElencoStudenti[],18,FALSE),\"\")","v":""},{"$nulls":31},{"$f":"COUNTIF(FrequenzaGennaio[[#This Row],[1]:[31]],Codice1)","v":0},{"$f":"COUNTIF(FrequenzaGennaio[[#This Row],[1]:[31]],Codice2)","v":0},{"$f":"COUNTIF(FrequenzaGennaio[[#This Row],[1]:[31]],Codice3)","v":0},{"$f":"COUNTIF(FrequenzaGennaio[[#This Row],[1]:[31]],Codice4)","v":0},{"$f":"SUM(FrequenzaGennaio[[#This Row],[N]:[G]])","v":0}]
[null,null,{"$f":"IFERROR(VLOOKUP(FrequenzaGennaio[[#This Row],[ID studente]],ElencoStudenti[],18,FALSE),\"\")","v":""},{"$nulls":31},{"$f":"COUNTIF(FrequenzaGennaio[[#This Row],[1]:[31]],Codice1)","v":0},{"$f":"COUNTIF(FrequenzaGennaio[[#This Row],[1]:[31]],Codice2)","v":0},{"$f":"COUNTIF(FrequenzaGennaio[[#This Row],[1]:[31]],Codice3)","v":0},{"$f":"COUNTIF(FrequenzaGennaio[[#This Row],[1]:[31]],Codice4)","v":0},{"$f":"SUM(FrequenzaGennaio[[#This Row],[N]:[G]])","v":0}]
[null,null,"Totale giorni di assenza",{"$f":"COUNTIF(FrequenzaGennaio[1],\"N\")+COUNTIF(FrequenzaGennaio[1],\"G\")","v":0},{"$f":"COUNTIF(FrequenzaGennaio[2],\"N\")+COUNTIF(FrequenzaGennaio[2],\"G\")","v":0},{"$f":"COUNTIF(FrequenzaGennaio[3],\"N\")+COUNTIF(FrequenzaGennaio[3],\"G\")","v":0},{"$f":"COUNTIF(FrequenzaGennaio[4],\"N\")+COUNTIF(FrequenzaGennaio[4],\"G\")","v":0},{"$f":"COUNTIF(FrequenzaGennaio[5],\"N\")+COUNTIF(FrequenzaGennaio[5],\"G\")","v":0},{"$f":"COUNTIF(FrequenzaGennaio[6],\"N\")+COUNTIF(FrequenzaGennaio[6],\"G\")","v":0},{"$f":"COUNTIF(FrequenzaGennaio[7],\"N\")+COUNTIF(FrequenzaGennaio[7],\"G\")","v":0},{"$f":"COUNTIF(FrequenzaGennaio[8],\"N\")+COUNTIF(FrequenzaGennaio[8],\"G\")","v":0},{"$f":"COUNTIF(FrequenzaGennaio[9],\"N\")+COUNTIF(FrequenzaGennaio[9],\"G\")","v":0},{"$f":"COUNTIF(FrequenzaGennaio[10],\"N\")+COUNTIF(FrequenzaGennaio[10],\"G\")","v":0},{"$f":"COUNTIF(FrequenzaGennaio[11],\"N\")+COUNTIF(FrequenzaGennaio[11],\"G\")","v":0},{"$f":"COUNTIF(FrequenzaGennaio[12],\"N\")+COUNTIF(FrequenzaGennaio[12],\"G\")","v":0},{"$f":"COUNTIF(FrequenzaGennaio[13],\"N\")+COUNTIF(FrequenzaGennaio[13],\"G\")","v":0},{"$f":"COUNTIF(FrequenzaGennaio[14],\"N\")+COUNTIF(FrequenzaGennaio[14],\"G\")","v":0},{"$f":"COUNTIF(FrequenzaGennaio[15],\"N\")+COUNTIF(FrequenzaGennaio[15],\"G\")","v":0},{"$f":"COUNTIF(FrequenzaGennaio[16],\"N\")+COUNTIF(FrequenzaGennaio[16],\"G\")","v":0},{"$f":"COUNTIF(FrequenzaGennaio[17],\"N\")+COUNTIF(FrequenzaGennaio[17],\"G\")","v":0},{"$f":"COUNTIF(FrequenzaGennaio[18],\"N\")+COUNTIF(FrequenzaGennaio[18],\"G\")","v":0},{"$f":"COUNTIF(FrequenzaGennaio[19],\"N\")+COUNTIF(FrequenzaGennaio[19],\"G\")","v":0},{"$f":"COUNTIF(FrequenzaGennaio[20],\"N\")+COUNTIF(FrequenzaGennaio[20],\"G\")","v":0},{"$f":"COUNTIF(FrequenzaGennaio[21],\"N\")+COUNTIF(FrequenzaGennaio[21],\"G\")","v":0},{"$f":"COUNTIF(FrequenzaGennaio[22],\"N\")+COUNTIF(FrequenzaGennaio[22],\"G\")","v":0},{"$f":"COUNTIF(FrequenzaGennaio[23],\"N\")+COUNTIF(FrequenzaGennaio[23],\"G\")","v":0},{"$f":"COUNTIF(FrequenzaGennaio[24],\"N\")+COUNTIF(FrequenzaGennaio[24],\"G\")","v":0},{"$f":"COUNTIF(FrequenzaGennaio[25],\"N\")+COUNTIF(FrequenzaGennaio[25],\"G\")","v":0},{"$f":"COUNTIF(FrequenzaGennaio[26],\"N\")+COUNTIF(FrequenzaGennaio[26],\"G\")","v":0},{"$f":"COUNTIF(FrequenzaGennaio[27],\"N\")+COUNTIF(FrequenzaGennaio[27],\"G\")","v":0},{"$f":"COUNTIF(FrequenzaGennaio[28],\"N\")+COUNTIF(FrequenzaGennaio[28],\"G\")","v":0},{"$f":"COUNTIF(FrequenzaGennaio[29],\"N\")+COUNTIF(FrequenzaGennaio[29],\"G\")","v":0},{"$f":"COUNTIF(FrequenzaGennaio[30],\"N\")+COUNTIF(FrequenzaGennaio[30],\"G\")","v":0},{"$f":"COUNTIF(FrequenzaGennaio[31],\"N\")+COUNTIF(FrequenzaGennaio[31],\"G\")","v":0},{"$f":"SUBTOTAL(109,FrequenzaGennaio[I])","v":0},{"$f":"SUBTOTAL(109,FrequenzaGennaio[N])","v":0},{"$f":"SUBTOTAL(109,FrequenzaGennaio[G])","v":0},{"$f":"SUBTOTAL(109,FrequenzaGennaio[P])","v":0},{"$f":"SUBTOTAL(109,FrequenzaGennaio[Giorni di assenza])","v":0}]

{"sheet":"Febbraio","index":8,"n_rows":13,"n_cols":39,"rows_kept":13,"merged":[[4,34,4,38]]}
["RECORD DI FREQUENZA STUDENTE",{"$nulls":36},"Inizio anno scolastico:",{"$f":"AnnoCalendario","v":2012}]
[]
[null,null,{"$f":"TestoLeggendaColori","v":"LEGGENDA COLORI "},{"$f":"Codice1","v":"I"},{"$f":"TestoCodice1","v":"In ritardo"},null,null,{"$f":"Codice2","v":"G"},{"$f":"TestoCodice2","v":"Giustificato"},null,null,{"$f":"Codice3","v":"N"},{"$f":"TestoCodice3","v":"Non giustificato"},null,null,{"$f":"Codice4","v":"P"},{"$f":"TestoCodice4","v":"Presente"},null,null,{"$f":"Codice5","v":"S"},{"$f":"TestoCodice5","v":"Scuola chiusa"}]
[]
[null,{"$f":"DATE(AnnoCalendario+1,2,1)","v":"2013-02-01"},null,{"$f":"TEXT(WEEKDAY(DATE(AnnoCalendario+1,2,1),1),\"[$-410]aaa\")","v":"ven"},{"$f":"TEXT(WEEKDAY(DATE(AnnoCalendario+1,2,2),1),\"[$-410]aaa\")","v":"sab"},{"$f":"TEXT(WEEKDAY(DATE(AnnoCalendario+1,2,3),1),\"[$-410]aaa\")","v":"dom"},{"$f":"TEXT(WEEKDAY(DATE(AnnoCalendario+1,2,4),1),\"[$-410]aaa\")","v":"lun"},{"$f":"TEXT(WEEKDAY(DATE(AnnoCalendario+1,2,5),1),\"[$-410]aaa\")","v":"mar"},{"$f":"TEXT(WEEKDAY(DATE(AnnoCalendario+1,2,6),1),\"[$-410]aaa\")","v":"mer"},{"$f":"TEXT(WEEKDAY(DATE(AnnoCalendario+1,2,7),1),\"[$-410]aaa\")","v":"gio"},{"$f":"TEXT(WEEKDAY(DATE(AnnoCalendario+1,2,8),1),\"[$-410]aaa\")","v":"ven"},{"$f":"TEXT(WEEKDAY(DATE(AnnoCalendario+1,2,9),1),\"[$-410]aaa\")","v":"sab"},{"$f":"TEXT(WEEKDAY(DATE(AnnoCalendario+1,2,10),1),\"[$-410]aaa\")","v":"dom"},{"$f":"TEXT(WEEKDAY(DATE(AnnoCalendario+1,2,11),1),\"[$-410]aaa\")","v":"lun"},{"$f":"TEXT(WEEKDAY(DATE(AnnoCalendario+1,2,12),1),\"[$-410]aaa\")","v":"mar"},{"$f":"TEXT(WEEKDAY(DATE(AnnoCalendario+1,2,13),1),\"[$-410]aaa\")","v":"mer"},{"$f":"TEXT(WEEKDAY(DATE(AnnoCalendario+1,2,14),1),\"[$-410]aaa\")","v":"gio"},{"$f":"TEXT(WEEKDAY(DATE(AnnoCalendario+1,2,15),1),\"[$-410]aaa\")","v":"ven"},{"$f":"TEXT(WEEKDAY(DATE(AnnoCalendario+1,2,16),1),\"[$-410]aaa\")","v":"sab"},{"$f":"TEXT(WEEKDAY(DATE(AnnoCalendario+1,2,17),1),\"[$-410]aaa\")","v":"dom"},{"$f":"TEXT(WEEKDAY(DATE(AnnoCalendario+1,2,18),1),\"[$-410]aaa\")","v":"lun"},{"$f":"TEXT(WEEKDAY(DATE(AnnoCalendario+1,2,19),1),\"[$-410]aaa\")","v":"mar"},{"$f":"TEXT(WEEKDAY(DATE(AnnoCalendario+1,2,20),1),\"[$-410]aaa\")","v":"mer"},{"$f":"TEXT(WEEKDAY(DATE(AnnoCalendario+1,2,21),1),\"[$-410]aaa\")","v":"gio"},{"$f":"TEXT(WEEKDAY(DATE(AnnoCalendario+1,2,22),1),\"[$-410]aaa\")","v":"ven"},{"$f":"TEXT(WEEKDAY(DATE(AnnoCalendario+1,2,23),1),\"[$-410]aaa\")","v":"sab"},{"$f":"TEXT(WEEKDAY(DATE(AnnoCalendario+1,2,24),1),\"[$-410]aaa\")","v":"dom"},{"$f":"TEXT(WEEKDAY(DATE(AnnoCalendario+1,2,25),1),\"[$-410]aaa\")","v":"lun"},{"$f":"TEXT(WEEKDAY(DATE(AnnoCalendario+1,2,26),1),\"[$-410]aaa\")","v":"mar"},{"$f":"TEXT(WEEKDAY(DATE(AnnoCalendario+1,2,27),1),\"[$-410]aaa\")","v":"mer"},{"$f":"TEXT(WEEKDAY(DATE(AnnoCalendario+1,2,28),1),\"[$-410]aaa\")","v":"gio"},{"$f":"TEXT(WEEKDAY(DATE(AnnoCalendario+1,2,29),1),\"aaa\")","v":"Fri"},null,null,"Totale"]
[null,"ID studente","Nome studente","1","2","3","4","5","6","7","8","9","10","11","12","13","14","15","16","17","18","19","20","21","22","23","24","25","26","27","28","29","30","31","I","N","G","P","Giorni di assenza"]
[null,null,{"$f":"IFERROR(VLOOKUP(FrequenzaFebbraio[[#This Row],[ID studente]],ElencoStudenti[],18,FALSE),\"\")","v":""},{"$nulls":31},{"$f":"COUNTIF(FrequenzaFebbraio[[#This Row],[1]:[31]],Codice1)","v":0},{"$f":"COUNTIF(FrequenzaFebbraio[[#This Row],[1]:[31]],Codice2)","v":0},{"$f":"COUNTIF(FrequenzaFebbraio[[#This Row],[1]:[31]],Codice3)","v":0},{"$f":"COUNTIF(FrequenzaFebbraio[[#This Row],[1]:[31]],Codice4)","v":0},{"$f":"SUM(FrequenzaFebbraio[[#This Row],[N]:[G]])","v":0}]
[null,null,{"$f":"IFERROR(VLOOKUP(FrequenzaFebbraio[[#This Row],[ID studente]],ElencoStudenti[],18,FALSE),\"\")","v":""},{"$nulls":31},{"$f":"COUNTIF(FrequenzaFebbraio[[#This Row],[1]:[31]],Codice1)","v":0},{"$f":"COUNTIF(FrequenzaFebbraio[[#This Row],[1]:[31]],Codice2)","v":0},{"$f":"COUNTIF(FrequenzaFebbraio[[#This Row],[1]:[31]],Codice3)","v":0},{"$f":"COUNTIF(FrequenzaFebbraio[[#This Row],[1]:[31]],Codice4)","v":0},{"$f":"SUM(FrequenzaFebbraio[[#This Row],[N]:[G]])","v":0}]
[null,null,{"$f":"IFERROR(VLOOKUP(FrequenzaFebbraio[[#This Row],[ID studente]],ElencoStudenti[],18,FALSE),\"\")","v":""},{"$nulls":31},{"$f":"COUNTIF(FrequenzaFebbraio[[#This Row],[1]:[31]],Codice1)","v":0},{"$f":"COUNTIF(FrequenzaFebbraio[[#This Row],[1]:[31]],Codice2)","v":0},{"$f":"COUNTIF(FrequenzaFebbraio[[#This Row],[1]:[31]],Codice3)","v":0},{"$f":"COUNTIF(FrequenzaFebbraio[[#This Row],[1]:[31]],Codice4)","v":0},{"$f":"SUM(FrequenzaFebbraio[[#This Row],[N]:[G]])","v":0}]
[null,null,{"$f":"IFERROR(VLOOKUP(FrequenzaFebbraio[[#This Row],[ID studente]],ElencoStudenti[],18,FALSE),\"\")","v":""},{"$nulls":31},{"$f":"COUNTIF(FrequenzaFebbraio[[#This Row],[1]:[31]],Codice1)","v":0},{"$f":"COUNTIF(FrequenzaFebbraio[[#This Row],[1]:[31]],Codice2)","v":0},{"$f":"COUNTIF(FrequenzaFebbraio[[#This Row],[1]:[31]],Codice3)","v":0},{"$f":"COUNTIF(FrequenzaFebbraio[[#This Row],[1]:[31]],Codice4)","v":0},{"$f":"SUM(FrequenzaFebbraio[[#This Row],[N]:[G]])","v":0}]
[null,null,{"$f":"IFERROR(VLOOKUP(FrequenzaFebbraio[[#This Row],[ID studente]],ElencoStudenti[],18,FALSE),\"\")","v":""},{"$nulls":31},{"$f":"COUNTIF(FrequenzaFebbraio[[#This Row],[1]:[31]],Codice1)","v":0},{"$f":"COUNTIF(FrequenzaFebbraio[[#This Row],[1]:[31]],Codice2)","v":0},{"$f":"COUNTIF(FrequenzaFebbraio[[#This Row],[1]:[31]],Codice3)","v":0},{"$f":"COUNTIF(FrequenzaFebbraio[[#This Row],[1]:[31]],Codice4)","v":0},{"$f":"SUM(FrequenzaFebbraio[[#This Row],[N]:[G]])","v":0}]
[null,null,"Totale giorni di assenza",{"$f":"COUNTIF(FrequenzaFebbraio[1],\"N\")+COUNTIF(FrequenzaFebbraio[1],\"G\")","v":0},{"$f":"COUNTIF(FrequenzaFebbraio[2],\"N\")+COUNTIF(FrequenzaFebbraio[2],\"G\")","v":0},{"$f":"COUNTIF(FrequenzaFebbraio[3],\"N\")+COUNTIF(FrequenzaFebbraio[3],\"G\")","v":0},{"$f":"COUNTIF(FrequenzaFebbraio[4],\"N\")+COUNTIF(FrequenzaFebbraio[4],\"G\")","v":0},{"$f":"COUNTIF(FrequenzaFebbraio[5],\"N\")+COUNTIF(FrequenzaFebbraio[5],\"G\")","v":0},{"$f":"COUNTIF(FrequenzaFebbraio[6],\"N\")+COUNTIF(FrequenzaFebbraio[6],\"G\")","v":0},{"$f":"COUNTIF(FrequenzaFebbraio[7],\"N\")+COUNTIF(FrequenzaFebbraio[7],\"G\")","v":0},{"$f":"COUNTIF(FrequenzaFebbraio[8],\"N\")+COUNTIF(FrequenzaFebbraio[8],\"G\")","v":0},{"$f":"COUNTIF(FrequenzaFebbraio[9],\"N\")+COUNTIF(FrequenzaFebbraio[9],\"G\")","v":0},{"$f":"COUNTIF(FrequenzaFebbraio[10],\"N\")+COUNTIF(FrequenzaFebbraio[10],\"G\")","v":0},{"$f":"COUNTIF(FrequenzaFebbraio[11],\"N\")+COUNTIF(FrequenzaFebbraio[11],\"G\")","v":0},{"$f":"COUNTIF(FrequenzaFebbraio[12],\"N\")+COUNTIF(FrequenzaFebbraio[12],\"G\")","v":0},{"$f":"COUNTIF(FrequenzaFebbraio[13],\"N\")+COUNTIF(FrequenzaFebbraio[13],\"G\")","v":0},{"$f":"COUNTIF(FrequenzaFebbraio[14],\"N\")+COUNTIF(FrequenzaFebbraio[14],\"G\")","v":0},{"$f":"COUNTIF(FrequenzaFebbraio[15],\"N\")+COUNTIF(FrequenzaFebbraio[15],\"G\")","v":0},{"$f":"COUNTIF(FrequenzaFebbraio[16],\"N\")+COUNTIF(FrequenzaFebbraio[16],\"G\")","v":0},{"$f":"COUNTIF(FrequenzaFebbraio[17],\"N\")+COUNTIF(FrequenzaFebbraio[17],\"G\")","v":0},{"$f":"COUNTIF(FrequenzaFebbraio[18],\"N\")+COUNTIF(FrequenzaFebbraio[18],\"G\")","v":0},{"$f":"COUNTIF(FrequenzaFebbraio[19],\"N\")+COUNTIF(FrequenzaFebbraio[19],\"G\")","v":0},{"$f":"COUNTIF(FrequenzaFebbraio[20],\"N\")+COUNTIF(FrequenzaFebbraio[20],\"G\")","v":0},{"$f":"COUNTIF(FrequenzaFebbraio[21],\"N\")+COUNTIF(FrequenzaFebbraio[21],\"G\")","v":0},{"$f":"COUNTIF(FrequenzaFebbraio[22],\"N\")+COUNTIF(FrequenzaFebbraio[22],\"G\")","v":0},{"$f":"COUNTIF(FrequenzaFebbraio[23],\"N\")+COUNTIF(FrequenzaFebbraio[23],\"G\")","v":0},{"$f":"COUNTIF(FrequenzaFebbraio[24],\"N\")+COUNTIF(FrequenzaFebbraio[24],\"G\")","v":0},{"$f":"COUNTIF(FrequenzaFebbraio[25],\"N\")+COUNTIF(FrequenzaFebbraio[25],\"G\")","v":0},{"$f":"COUNTIF(FrequenzaFebbraio[26],\"N\")+COUNTIF(FrequenzaFebbraio[26],\"G\")","v":0},{"$f":"COUNTIF(FrequenzaFebbraio[27],\"N\")+COUNTIF(FrequenzaFebbraio[27],\"G\")","v":0},{"$f":"COUNTIF(FrequenzaFebbraio[28],\"N\")+COUNTIF(FrequenzaFebbraio[28],\"G\")","v":0},{"$nulls":3},{"$f":"SUBTOTAL(109,FrequenzaFebbraio[I])","v":0},{"$f":"SUBTOTAL(109,FrequenzaFebbraio[N])","v":0},{"$f":"SUBTOTAL(109,FrequenzaFebbraio[G])","v":0},{"$f":"SUBTOTAL(109,FrequenzaFebbraio[P])","v":0},{"$f":"SUBTOTAL(109,FrequenzaFebbraio[Giorni di assenza])","v":0}]
[{"$nulls":3},{"$f":"COUNTIF(FrequenzaFebbraio[1],\"U\")+COUNTIF(FrequenzaFebbraio[1],\"E\")","v":0},{"$f":"COUNTIF(FrequenzaFebbraio[2],\"U\")+COUNTIF(FrequenzaFebbraio[2],\"E\")","v":0},{"$f":"COUNTIF(FrequenzaFebbraio[3],\"U\")+COUNTIF(FrequenzaFebbraio[3],\"E\")","v":0},{"$f":"COUNTIF(FrequenzaFebbraio[4],\"U\")+COUNTIF(FrequenzaFebbraio[4],\"E\")","v":0},{"$f":"COUNTIF(FrequenzaFebbraio[5],\"U\")+COUNTIF(FrequenzaFebbraio[5],\"E\")","v":0},{"$f":"COUNTIF(FrequenzaFebbraio[6],\"U\")+COUNTIF(FrequenzaFebbraio[6],\"E\")","v":0},{"$f":"COUNTIF(FrequenzaFebbraio[7],\"U\")+COUNTIF(FrequenzaFebbraio[7],\"E\")","v":0},{"$f":"COUNTIF(FrequenzaFebbraio[8],\"U\")+COUNTIF(FrequenzaFebbraio[8],\"E\")","v":0},{"$f":"COUNTIF(FrequenzaFebbraio[9],\"U\")+COUNTIF(FrequenzaFebbraio[9],\"E\")","v":0},{"$f":"COUNTIF(FrequenzaFebbraio[10],\"U\")+COUNTIF(FrequenzaFebbraio[10],\"E\")","v":0},{"$f":"COUNTIF(FrequenzaFebbraio[11],\"U\")+COUNTIF(FrequenzaFebbraio[11],\"E\")","v":0},{"$f":"COUNTIF(FrequenzaFebbraio[12],\"U\")+COUNTIF(FrequenzaFebbraio[12],\"E\")","v":0},{"$f":"COUNTIF(FrequenzaFebbraio[13],\"U\")+COUNTIF(FrequenzaFebbraio[13],\"E\")","v":0},{"$f":"COUNTIF(FrequenzaFebbraio[14],\"U\")+COUNTIF(FrequenzaFebbraio[14],\"E\")","v":0},{"$f":"COUNTIF(FrequenzaFebbraio[15],\"U\")+COUNTIF(FrequenzaFebbraio[15],\"E\")","v":0},{"$f":"COUNTIF(FrequenzaFebbraio[16],\"U\")+COUNTIF(FrequenzaFebbraio[16],\"E\")","v":0},{"$f":"COUNTIF(FrequenzaFebbraio[17],\"U\")+COUNTIF(FrequenzaFebbraio[17],\"E\")","v":0},{"$f":"COUNTIF(FrequenzaFebbraio[18],\"U\")+COUNTIF(FrequenzaFebbraio[18],\"E\")","v":0},{"$f":"COUNTIF(FrequenzaFebbraio[19],\"U\")+COUNTIF(FrequenzaFebbraio[19],\"E\")","v":0},{"$f":"COUNTIF(FrequenzaFebbraio[20],\"U\")+COUNTIF(FrequenzaFebbraio[20],\"E\")","v":0},{"$f":"COUNTIF(FrequenzaFebbraio[21],\"U\")+COUNTIF(FrequenzaFebbraio[21],\"E\")","v":0},{"$f":"COUNTIF(FrequenzaFebbraio[22],\"U\")+COUNTIF(FrequenzaFebbraio[22],\"E\")","v":0},{"$f":"COUNTIF(FrequenzaFebbraio[23],\"U\")+COUNTIF(FrequenzaFebbraio[23],\"E\")","v":0},{"$f":"COUNTIF(FrequenzaFebbraio[24],\"U\")+COUNTIF(FrequenzaFebbraio[24],\"E\")","v":0},{"$f":"COUNTIF(FrequenzaFebbraio[25],\"U\")+COUNTIF(FrequenzaFebbraio[25],\"E\")","v":0},{"$f":"COUNTIF(FrequenzaFebbraio[26],\"U\")+COUNTIF(FrequenzaFebbraio[26],\"E\")","v":0},{"$f":"COUNTIF(FrequenzaFebbraio[27],\"U\")+COUNTIF(FrequenzaFebbraio[27],\"E\")","v":0},{"$f":"COUNTIF(FrequenzaFebbraio[28],\"U\")+COUNTIF(FrequenzaFebbraio[28],\"E\")","v":0},{"$f":"COUNTIF(FrequenzaFebbraio[29],\"U\")+COUNTIF(FrequenzaFebbraio[29],\"E\")","v":0},null,null,{"$f":"SUBTOTAL(109,FrequenzaFebbraio[I])","v":0},{"$f":"SUBTOTAL(109,FrequenzaFebbraio[N])","v":0},{"$f":"SUBTOTAL(109,FrequenzaFebbraio[G])","v":0},{"$f":"SUBTOTAL(109,FrequenzaFebbraio[P])","v":0}]

{"sheet":"Marzo","index":9,"n_rows":12,"n_cols":39,"rows_kept":12,"merged":[[4,34,4,38]]}
["RECORD DI FREQUENZA STUDENTE",{"$nulls":36},"Inizio anno scolastico:",{"$f":"AnnoCalendario","v":2012}]
[]
[null,null,{"$f":"TestoLeggendaColori","v":"LEGGENDA COLORI "},{"$f":"Codice1","v":"I"},{"$f":"TestoCodice1","v":"In ritardo"},null,null,{"$f":"Codice2","v":"G"},{"$f":"TestoCodice2","v":"Giustificato"},null,null,{"$f":"Codice3","v":"N"},{"$f":"TestoCodice3","v":"Non giustificato"},null,null,{"$f":"Codice4","v":"P"},{"$f":"TestoCodice4","v":"Presente"},null,null,{"$f":"Codice5","v":"S"},{"$f":"TestoCodice5","v":"Scuola chiusa"}]
[]
[null,{"$f":"DATE(AnnoCalendario+1,3,1)","v":"2013-03-01"},null,{"$f":"TEXT(WEEKDAY(DATE(AnnoCalendario+1,3,1),1),\"[$-410]aaa\")","v":"ven"},{"$f":"TEXT(WEEKDAY(DATE(AnnoCalendario+1,3,2),1),\"[$-410]aaa\")","v":"sab"},{"$f":"TEXT(WEEKDAY(DATE(AnnoCalendario+1,3,3),1),\"[$-410]aaa\")","v":"dom"},{"$f":"TEXT(WEEKDAY(DATE(AnnoCalendario+1,3,4),1),\"[$-410]aaa\")","v":"lun"},{"$f":"TEXT(WEEKDAY(DATE(AnnoCalendario+1,3,5),1),\"[$-410]aaa\")","v":"mar"},{"$f":"TEXT(WEEKDAY(DATE(AnnoCalendario+1,3,6),1),\"[$-410]aaa\")","v":"mer"},{"$f":"TEXT(WEEKDAY(DATE(AnnoCalendario+1,3,7),1),\"[$-410]aaa\")","v":"gio"},{"$f":"TEXT(WEEKDAY(DATE(AnnoCalendario+1,3,8),1),\"[$-410]aaa\")","v":"ven"},{"$f":"TEXT(WEEKDAY(DATE(AnnoCalendario+1,3,9),1),\"[$-410]aaa\")","v":"sab"},{"$f":"TEXT(WEEKDAY(DATE(AnnoCalendario+1,3,10),1),\"[$-410]aaa\")","v":"dom"},{"$f":"TEXT(WEEKDAY(DATE(AnnoCalendario+1,3,11),1),\"[$-410]aaa\")","v":"lun"},{"$f":"TEXT(WEEKDAY(DATE(AnnoCalendario+1,3,12),1),\"[$-410]aaa\")","v":"mar"},{"$f":"TEXT(WEEKDAY(DATE(AnnoCalendario+1,3,13),1),\"[$-410]aaa\")","v":"mer"},{"$f":"TEXT(WEEKDAY(DATE(AnnoCalendario+1,3,14),1),\"[$-410]aaa\")","v":"gio"},{"$f":"TEXT(WEEKDAY(DATE(AnnoCalendario+1,3,15),1),\"[$-410]aaa\")","v":"ven"},{"$f":"TEXT(WEEKDAY(DATE(AnnoCalendario+1,3,16),1),\"[$-410]aaa\")","v":"sab"},{"$f":"TEXT(WEEKDAY(DATE(AnnoCalendario+1,3,17),1),\"[$-410]aaa\")","v":"dom"},{"$f":"TEXT(WEEKDAY(DATE(AnnoCalendario+1,3,18),1),\"[$-410]aaa\")","v":"lun"},{"$f":"TEXT(WEEKDAY(DATE(AnnoCalendario+1,3,19),1),\"[$-410]aaa\")","v":"mar"},{"$f":"TEXT(WEEKDAY(DATE(AnnoCalendario+1,3,20),1),\"[$-410]aaa\")","v":"mer"},{"$f":"TEXT(WEEKDAY(DATE(AnnoCalendario+1,3,21),1),\"[$-410]aaa\")","v":"gio"},{"$f":"TEXT(WEEKDAY(DATE(AnnoCalendario+1,3,22),1),\"[$-410]aaa\")","v":"ven"},{"$f":"TEXT(WEEKDAY(DATE(AnnoCalendario+1,3,23),1),\"[$-410]aaa\")","v":"sab"},{"$f":"TEXT(WEEKDAY(DATE(AnnoCalendario+1,3,24),1),\"[$-410]aaa\")","v":"dom"},{"$f":"TEXT(WEEKDAY(DATE(AnnoCalendario+1,3,25),1),\"[$-410]aaa\")","v":"lun"},{"$f":"TEXT(WEEKDAY(DATE(AnnoCalendario+1,3,26),1),\"[$-410]aaa\")","v":"mar"},{"$f":"TEXT(WEEKDAY(DATE(AnnoCalendario+1,3,27),1),\"[$-410]aaa\")","v":"mer"},{"$f":"TEXT(WEEKDAY(DATE(AnnoCalendario+1,3,28),1),\"[$-410]aaa\")","v":"gio"},{"$f":"TEXT(WEEKDAY(DATE(AnnoCalendario+1,3,29),1),\"[$-410]aaa\")","v":"ven"},{"$f":"TEXT(WEEKDAY(DATE(AnnoCalendario+1,3,30),1),\"[$-410]aaa\")","v":"sab"},{"$f":"TEXT(WEEKDAY(DATE(AnnoCalendario+1,3,31),1),\"[$-410]aaa\")","v":"dom"},"Totale"]
[null,"ID studente","Nome studente","1","2","3","4","5","6","7","8","9","10","11","12","13","14","15","16","17","18","19","20","21","22","23","24","25","26","27","28","29","30","31","I","N","G","P","Giorni di assenza"]
[null,null,{"$f":"IFERROR(VLOOKUP(FrequenzaMarzo[[#This Row],[ID studente]],ElencoStudenti[],18,FALSE),\"\")","v":""},{"$nulls":31},{"$f":"COUNTIF(FrequenzaMarzo[[#This Row],[1]:[31]],Codice1)","v":0},{"$f":"COUNTIF(FrequenzaMarzo[[#This Row],[1]:[31]],Codice2)","v":0},{"$f":"COUNTIF(FrequenzaMarzo[[#This Row],[1]:[31]],Codice3)","v":0},{"$f":"COUNTIF(FrequenzaMarzo[[#This Row],[1]:[31]],Codice4)","v":0},{"$f":"SUM(FrequenzaMarzo[[#This Row],[N]:[G]])","v":0}]
[null,null,{"$f":"IFERROR(VLOOKUP(FrequenzaMarzo[[#This Row],[ID studente]],ElencoStudenti[],18,FALSE),\"\")","v":""},{"$nulls":31},{"$f":"COUNTIF(FrequenzaMarzo[[#This Row],[1]:[31]],Codice1)","v":0},{"$f":"COUNTIF(FrequenzaMarzo[[#This Row],[1]:[31]],Codice2)","v":0},{"$f":"COUNTIF(FrequenzaMarzo[[#This Row],[1]:[31]],Codice3)","v":0},{"$f":"COUNTIF(FrequenzaMarzo[[#This Row],[1]:[31]],Codice4)","v":0},{"$f":"SUM(FrequenzaMarzo[[#This Row],[N]:[G]])","v":0}]
[null,null,{"$f":"IFERROR(VLOOKUP(FrequenzaMarzo[[#This Row],[ID studente]],ElencoStudenti[],18,FALSE),\"\")","v":""},{"$nulls":31},{"$f":"COUNTIF(FrequenzaMarzo[[#This Row],[1]:[31]],Codice1)","v":0},{"$f":"COUNTIF(FrequenzaMarzo[[#This Row],[1]:[31]],Codice2)","v":0},{"$f":"COUNTIF(FrequenzaMarzo[[#This Row],[1]:[31]],Codice3)","v":0},{"$f":"COUNTIF(FrequenzaMarzo[[#This Row],[1]:[31]],Codice4)","v":0},{"$f":"SUM(FrequenzaMarzo[[#This Row],[N]:[G]])","v":0}]
[null,null,{"$f":"IFERROR(VLOOKUP(FrequenzaMarzo[[#This Row],[ID studente]],ElencoStudenti[],18,FALSE),\"\")","v":""},{"$nulls":31},{"$f":"COUNTIF(FrequenzaMarzo[[#This Row],[1]:[31]],Codice1)","v":0},{"$f":"COUNTIF(FrequenzaMarzo[[#This Row],[1]:[31]],Codice2)","v":0},{"$f":"COUNTIF(FrequenzaMarzo[[#This Row],[1]:[31]],Codice3)","v":0},{"$f":"COUNTIF(FrequenzaMarzo[[#This Row],[1]:[31]],Codice4)","v":0},{"$f":"SUM(FrequenzaMarzo[[#This Row],[N]:[G]])","v":0}]
[null,null,{"$f":"IFERROR(VLOOKUP(FrequenzaMarzo[[#This Row],[ID studente]],ElencoStudenti[],18,FALSE),\"\")","v":""},{"$nulls":31},{"$f":"COUNTIF(FrequenzaMarzo[[#This Row],[1]:[31]],Codice1)","v":0},{"$f":"COUNTIF(FrequenzaMarzo[[#This Row],[1]:[31]],Codice2)","v":0},{"$f":"COUNTIF(FrequenzaMarzo[[#This Row],[1]:[31]],Codice3)","v":0},{"$f":"COUNTIF(FrequenzaMarzo[[#This Row],[1]:[31]],Codice4)","v":0},{"$f":"SUM(FrequenzaMarzo[[#This Row],[N]:[G]])","v":0}]
[null,null,"Totale giorni di assenza",{"$f":"COUNTIF(FrequenzaMarzo[1],\"N\")+COUNTIF(FrequenzaMarzo[1],\"G\")","v":0},{"$f":"COUNTIF(FrequenzaMarzo[2],\"N\")+COUNTIF(FrequenzaMarzo[2],\"G\")","v":0},{"$f":"COUNTIF(FrequenzaMarzo[3],\"N\")+COUNTIF(FrequenzaMarzo[3],\"G\")","v":0},{"$f":"COUNTIF(FrequenzaMarzo[4],\"N\")+COUNTIF(FrequenzaMarzo[4],\"G\")","v":0},{"$f":"COUNTIF(FrequenzaMarzo[5],\"N\")+COUNTIF(FrequenzaMarzo[5],\"G\")","v":0},{"$f":"COUNTIF(FrequenzaMarzo[6],\"N\")+COUNTIF(FrequenzaMarzo[6],\"G\")","v":0},{"$f":"COUNTIF(FrequenzaMarzo[7],\"N\")+COUNTIF(FrequenzaMarzo[7],\"G\")","v":0},{"$f":"COUNTIF(FrequenzaMarzo[8],\"N\")+COUNTIF(FrequenzaMarzo[8],\"G\")","v":0},{"$f":"COUNTIF(FrequenzaMarzo[9],\"N\")+COUNTIF(FrequenzaMarzo[9],\"G\")","v":0},{"$f":"COUNTIF(FrequenzaMarzo[10],\"N\")+COUNTIF(FrequenzaMarzo[10],\"G\")","v":0},{"$f":"COUNTIF(FrequenzaMarzo[11],\"N\")+COUNTIF(FrequenzaMarzo[11],\"G\")","v":0},{"$f":"COUNTIF(FrequenzaMarzo[12],\"N\")+COUNTIF(FrequenzaMarzo[12],\"G\")","v":0},{"$f":"COUNTIF(FrequenzaMarzo[13],\"N\")+COUNTIF(FrequenzaMarzo[13],\"G\")","v":0},{"$f":"COUNTIF(FrequenzaMarzo[14],\"N\")+COUNTIF(FrequenzaMarzo[14],\"G\")","v":0},{"$f":"COUNTIF(FrequenzaMarzo[15],\"N\")+COUNTIF(FrequenzaMarzo[15],\"G\")","v":0},{"$f":"COUNTIF(FrequenzaMarzo[16],\"N\")+COUNTIF(FrequenzaMarzo[16],\"G\")","v":0},{"$f":"COUNTIF(FrequenzaMarzo[17],\"N\")+COUNTIF(FrequenzaMarzo[17],\"G\")","v":0},{"$f":"COUNTIF(FrequenzaMarzo[18],\"N\")+COUNTIF(FrequenzaMarzo[18],\"G\")","v":0},{"$f":"COUNTIF(FrequenzaMarzo[19],\"N\")+COUNTIF(FrequenzaMarzo[19],\"G\")","v":0},{"$f":"COUNTIF(FrequenzaMarzo[20],\"N\")+COUNTIF(FrequenzaMarzo[20],\"G\")","v":0},{"$f":"COUNTIF(FrequenzaMarzo[21],\"N\")+COUNTIF(FrequenzaMarzo[21],\"G\")","v":0},{"$f":"COUNTIF(FrequenzaMarzo[22],\"N\")+COUNTIF(FrequenzaMarzo[22],\"G\")","v":0},{"$f":"COUNTIF(FrequenzaMarzo[23],\"N\")+COUNTIF(FrequenzaMarzo[23],\"G\")","v":0},{"$f":"COUNTIF(FrequenzaMarzo[24],\"N\")+COUNTIF(FrequenzaMarzo[24],\"G\")","v":0},{"$f":"COUNTIF(FrequenzaMarzo[25],\"N\")+COUNTIF(FrequenzaMarzo[25],\"G\")","v":0},{"$f":"COUNTIF(FrequenzaMarzo[26],\"N\")+COUNTIF(FrequenzaMarzo[26],\"G\")","v":0},{"$f":"COUNTIF(FrequenzaMarzo[27],\"N\")+COUNTIF(FrequenzaMarzo[27],\"G\")","v":0},{"$f":"COUNTIF(FrequenzaMarzo[28],\"N\")+COUNTIF(FrequenzaMarzo[28],\"G\")","v":0},{"$f":"COUNTIF(FrequenzaMarzo[29],\"N\")+COUNTIF(FrequenzaMarzo[29],\"G\")","v":0},{"$f":"COUNTIF(FrequenzaMarzo[30],\"N\")+COUNTIF(FrequenzaMarzo[30],\"G\")","v":0},{"$f":"COUNTIF(FrequenzaMarzo[31],\"N\")+COUNTIF(FrequenzaMarzo[31],\"G\")","v":0},{"$f":"SUBTOTAL(109,FrequenzaMarzo[I])","v":0},{"$f":"SUBTOTAL(109,FrequenzaMarzo[N])","v":0},{"$f":"SUBTOTAL(109,FrequenzaMarzo[G])","v":0},{"$f":"SUBTOTAL(109,FrequenzaMarzo[P])","v":0},{"$f":"SUBTOTAL(109,FrequenzaMarzo[Giorni di assenza])","v":0}]

{"sheet":"Aprile","index":10,"n_rows":12,"n_cols":39,"rows_kept":12,"merged":[[4,34,4,38]]}
["RECORD DI FREQUENZA STUDENTE",{"$nulls":36},"Inizio anno scolastico:",{"$f":"AnnoCalendario","v":2012}]
[]
[null,null,{"$f":"TestoLeggendaColori","v":"LEGGENDA COLORI "},{"$f":"Codice1","v":"I"},{"$f":"TestoCodice1","v":"In ritardo"},null,null,{"$f":"Codice2","v":"G"},{"$f":"TestoCodice2","v":"Giustificato"},null,null,{"$f":"Codice3","v":"N"},{"$f":"TestoCodice3","v":"Non giustificato"},null,null,{"$f":"Codice4","v":"P"},{"$f":"TestoCodice4","v":"Presente"},null,null,{"$f":"Codice5","v":"S"},{"$f":"TestoCodice5","v":"Scuola chiusa"}]
[]
[null,{"$f":"DATE(AnnoCalendario+1,4,1)","v":"2013-04-01"},null,{"$f":"TEXT(WEEKDAY(DATE(AnnoCalendario+1,4,1),1),\"[$-410]aaa\")","v":"lun"},{"$f":"TEXT(WEEKDAY(DATE(AnnoCalendario+1,4,2),1),\"[$-410]aaa\")","v":"mar"},{"$f":"TEXT(WEEKDAY(DATE(AnnoCalendario+1,4,3),1),\"[$-410]aaa\")","v":"mer"},{"$f":"TEXT(WEEKDAY(DATE(AnnoCalendario+1,4,4),1),\"[$-410]aaa\")","v":"gio"},{"$f":"TEXT(WEEKDAY(DATE(AnnoCalendario+1,4,5),1),\"[$-410]aaa\")","v":"ven"},{"$f":"TEXT(WEEKDAY(DATE(AnnoCalendario+1,4,6),1),\"[$-410]aaa\")","v":"sab"},{"$f":"TEXT(WEEKDAY(DATE(AnnoCalendario+1,4,7),1),\"[$-410]aaa\")","v":"dom"},{"$f":"TEXT(WEEKDAY(DATE(AnnoCalendario+1,4,8),1),\"[$-410]aaa\")","v":"lun"},{"$f":"TEXT(WEEKDAY(DATE(AnnoCalendario+1,4,9),1),\"[$-410]aaa\")","v":"mar"},{"$f":"TEXT(WEEKDAY(DATE(AnnoCalendario+1,4,10),1),\"[$-410]aaa\")","v":"mer"},{"$f":"TEXT(WEEKDAY(DATE(AnnoCalendario+1,4,11),1),\"[$-410]aaa\")","v":"gio"},{"$f":"TEXT(WEEKDAY(DATE(AnnoCalendario+1,4,12),1),\"[$-410]aaa\")","v":"ven"},{"$f":"TEXT(WEEKDAY(DATE(AnnoCalendario+1,4,13),1),\"[$-410]aaa\")","v":"sab"},{"$f":"TEXT(WEEKDAY(DATE(AnnoCalendario+1,4,14),1),\"[$-410]aaa\")","v":"dom"},{"$f":"TEXT(WEEKDAY(DATE(AnnoCalendario+1,4,15),1),\"[$-410]aaa\")","v":"lun"},{"$f":"TEXT(WEEKDAY(DATE(AnnoCalendario+1,4,16),1),\"[$-410]aaa\")","v":"mar"},{"$f":"TEXT(WEEKDAY(DATE(AnnoCalendario+1,4,17),1),\"[$-410]aaa\")","v":"mer"},{"$f":"TEXT(WEEKDAY(DATE(AnnoCalendario+1,4,18),1),\"[$-410]aaa\")","v":"gio"},{"$f":"TEXT(WEEKDAY(DATE(AnnoCalendario+1,4,19),1),\"[$-410]aaa\")","v":"ven"},{"$f":"TEXT(WEEKDAY(DATE(AnnoCalendario+1,4,20),1),\"[$-410]aaa\")","v":"sab"},{"$f":"TEXT(WEEKDAY(DATE(AnnoCalendario+1,4,21),1),\"[$-410]aaa\")","v":"dom"},{"$f":"TEXT(WEEKDAY(DATE(AnnoCalendario+1,4,22),1),\"[$-410]aaa\")","v":"lun"},{"$f":"TEXT(WEEKDAY(DATE(AnnoCalendario+1,4,23),1),\"[$-410]aaa\")","v":"mar"},{"$f":"TEXT(WEEKDAY(DATE(AnnoCalendario+1,4,24),1),\"[$-410]aaa\")","v":"mer"},{"$f":"TEXT(WEEKDAY(DATE(AnnoCalendario+1,4,25),1),\"[$-410]aaa\")","v":"gio"},{"$f":"TEXT(WEEKDAY(DATE(AnnoCalendario+1,4,26),1),\"[$-410]aaa\")","v":"ven"},{"$f":"TEXT(WEEKDAY(DATE(AnnoCalendario+1,4,27),1),\"[$-410]aaa\")","v":"sab"},{"$f":"TEXT(WEEKDAY(DATE(AnnoCalendario+1,4,28),1),\"[$-410]aaa\")","v":"dom"},{"$f":"TEXT(WEEKDAY(DATE(AnnoCalendario+1,4,29),1),\"[$-410]aaa\")","v":"lun"},{"$f":"TEXT(WEEKDAY(DATE(AnnoCalendario+1,4,30),1),\"[$-410]aaa\")","v":"mar"},null,"Totale"]
[null,"ID studente","Nome studente","1","2","3","4","5","6","7","8","9","10","11","12","13","14","15","16","17","18","19","20","21","22","23","24","25","26","27","28","29","30"," ","I","N","G","P","Giorni di assenza"]
[null,null,{"$f":"IFERROR(VLOOKUP(FrequenzaAprile[[#This Row],[ID studente]],ElencoStudenti[],18,FALSE),\"\")","v":""},{"$nulls":31},{"$f":"COUNTIF(FrequenzaAprile[[#This Row],[1]:[ ]],Codice1)","v":0},{"$f":"COUNTIF(FrequenzaAprile[[#This Row],[1]:[ ]],Codice2)","v":0},{"$f":"COUNTIF(FrequenzaAprile[[#This Row],[1]:[ ]],Codice3)","v":0},{"$f":"COUNTIF(FrequenzaAprile[[#This Row],[1]:[ ]],Codice4)","v":0},{"$f":"SUM(FrequenzaAprile[[#This Row],[N]:[G]])","v":0}]
[null,null,{"$f":"IFERROR(VLOOKUP(FrequenzaAprile[[#This Row],[ID studente]],ElencoStudenti[],18,FALSE),\"\")","v":""},{"$nulls":31},{"$f":"COUNTIF(FrequenzaAprile[[#This Row],[1]:[ ]],Codice1)","v":0},{"$f":"COUNTIF(FrequenzaAprile[[#This Row],[1]:[ ]],Codice2)","v":0},{"$f":"COUNTIF(FrequenzaAprile[[#This Row],[1]:[ ]],Codice3)","v":0},{"$f":"COUNTIF(FrequenzaAprile[[#This Row],[1]:[ ]],Codice4)","v":0},{"$f":"SUM(FrequenzaAprile[[#This Row],[N]:[G]])","v":0}]
[null,null,{"$f":"IFERROR(VLOOKUP(FrequenzaAprile[[#This Row],[ID studente]],ElencoStudenti[],18,FALSE),\"\")","v":""},{"$nulls":31},{"$f":"COUNTIF(FrequenzaAprile[[#This Row],[1]:[ ]],Codice1)","v":0},{"$f":"COUNTIF(FrequenzaAprile[[#This Row],[1]:[ ]],Codice2)","v":0},{"$f":"COUNTIF(FrequenzaAprile[[#This Row],[1]:[ ]],Codice3)","v":0},{"$f":"COUNTIF(FrequenzaAprile[[#This Row],[1]:[ ]],Codice4)","v":0},{"$f":"SUM(FrequenzaAprile[[#This Row],[N]:[G]])","v":0}]
[null,null,{"$f":"IFERROR(VLOOKUP(FrequenzaAprile[[#This Row],[ID studente]],ElencoStudenti[],18,FALSE),\"\")","v":""},{"$nulls":31},{"$f":"COUNTIF(FrequenzaAprile[[#This Row],[1]:[ ]],Codice1)","v":0},{"$f":"COUNTIF(FrequenzaAprile[[#This Row],[1]:[ ]],Codice2)","v":0},{"$f":"COUNTIF(FrequenzaAprile[[#This Row],[1]:[ ]],Codice3)","v":0},{"$f":"COUNTIF(FrequenzaAprile[[#This Row],[1]:[ ]],Codice4)","v":0},{"$f":"SUM(FrequenzaAprile[[#This Row],[N]:[G]])","v":0}]
[null,null,{"$f":"IFERROR(VLOOKUP(FrequenzaAprile[[#This Row],[ID studente]],ElencoStudenti[],18,FALSE),\"\")","v":""},{"$nulls":31},{"$f":"COUNTIF(FrequenzaAprile[[#This Row],[1]:[ ]],Codice1)","v":0},{"$f":"COUNTIF(FrequenzaAprile[[#This Row],[1]:[ ]],Codice2)","v":0},{"$f":"COUNTIF(FrequenzaAprile[[#This Row],[1]:[ ]],Codice3)","v":0},{"$f":"COUNTIF(FrequenzaAprile[[#This Row],[1]:[ ]],Codice4)","v":0},{"$f":"SUM(FrequenzaAprile[[#This Row],[N]:[G]])","v":0}]
[null,null,"Totale giorni di assenza",{"$f":"COUNTIF(FrequenzaAprile[1],\"N\")+COUNTIF(FrequenzaAprile[1],\"G\")","v":0},{"$f":"COUNTIF(FrequenzaAprile[2],\"N\")+COUNTIF(FrequenzaAprile[2],\"G\")","v":0},{"$f":"COUNTIF(FrequenzaAprile[3],\"N\")+COUNTIF(FrequenzaAprile[3],\"G\")","v":0},{"$f":"COUNTIF(FrequenzaAprile[4],\"N\")+COUNTIF(FrequenzaAprile[4],\"G\")","v":0},{"$f":"COUNTIF(FrequenzaAprile[5],\"N\")+COUNTIF(FrequenzaAprile[5],\"G\")","v":0},{"$f":"COUNTIF(FrequenzaAprile[6],\"N\")+COUNTIF(FrequenzaAprile[6],\"G\")","v":0},{"$f":"COUNTIF(FrequenzaAprile[7],\"N\")+COUNTIF(FrequenzaAprile[7],\"G\")","v":0},{"$f":"COUNTIF(FrequenzaAprile[8],\"N\")+COUNTIF(FrequenzaAprile[8],\"G\")","v":0},{"$f":"COUNTIF(FrequenzaAprile[9],\"N\")+COUNTIF(FrequenzaAprile[9],\"G\")","v":0},{"$f":"COUNTIF(FrequenzaAprile[10],\"N\")+COUNTIF(FrequenzaAprile[10],\"G\")","v":0},{"$f":"COUNTIF(FrequenzaAprile[11],\"N\")+COUNTIF(FrequenzaAprile[11],\"G\")","v":0},{"$f":"COUNTIF(FrequenzaAprile[12],\"N\")+COUNTIF(FrequenzaAprile[12],\"G\")","v":0},{"$f":"COUNTIF(FrequenzaAprile[13],\"N\")+COUNTIF(FrequenzaAprile[13],\"G\")","v":0},{"$f":"COUNTIF(FrequenzaAprile[14],\"N\")+COUNTIF(FrequenzaAprile[14],\"G\")","v":0},{"$f":"COUNTIF(FrequenzaAprile[15],\"N\")+COUNTIF(FrequenzaAprile[15],\"G\")","v":0},{"$f":"COUNTIF(FrequenzaAprile[16],\"N\")+COUNTIF(FrequenzaAprile[16],\"G\")","v":0},{"$f":"COUNTIF(FrequenzaAprile[17],\"N\")+COUNTIF(FrequenzaAprile[17],\"G\")","v":0},{"$f":"COUNTIF(FrequenzaAprile[18],\"N\")+COUNTIF(FrequenzaAprile[18],\"G\")","v":0},{"$f":"COUNTIF(FrequenzaAprile[19],\"N\")+COUNTIF(FrequenzaAprile[19],\"G\")","v":0},{"$f":"COUNTIF(FrequenzaAprile[20],\"N\")+COUNTIF(FrequenzaAprile[20],\"G\")","v":0},{"$f":"COUNTIF(FrequenzaAprile[21],\"N\")+COUNTIF(FrequenzaAprile[21],\"G\")","v":0},{"$f":"COUNTIF(FrequenzaAprile[22],\"N\")+COUNTIF(FrequenzaAprile[22],\"G\")","v":0},{"$f":"COUNTIF(FrequenzaAprile[23],\"N\")+COUNTIF(FrequenzaAprile[23],\"G\")","v":0},{"$f":"COUNTIF(FrequenzaAprile[24],\"N\")+COUNTIF(FrequenzaAprile[24],\"G\")","v":0},{"$f":"COUNTIF(FrequenzaAprile[25],\"N\")+COUNTIF(FrequenzaAprile[25],\"G\")","v":0},{"$f":"COUNTIF(FrequenzaAprile[26],\"N\")+COUNTIF(FrequenzaAprile[26],\"G\")","v":0},{"$f":"COUNTIF(FrequenzaAprile[27],\"N\")+COUNTIF(FrequenzaAprile[27],\"G\")","v":0},{"$f":"COUNTIF(FrequenzaAprile[28],\"N\")+COUNTIF(FrequenzaAprile[28],\"G\")","v":0},{"$f":"COUNTIF(FrequenzaAprile[29],\"N\")+COUNTIF(FrequenzaAprile[29],\"G\")","v":0},{"$f":"COUNTIF(FrequenzaAprile[30],\"N\")+COUNTIF(FrequenzaAprile[30],\"G\")","v":0},null,{"$f":"SUBTOTAL(109,FrequenzaAprile[I])","v":0},{"$f":"SUBTOTAL(109,FrequenzaAprile[N])","v":0},{"$f":"SUBTOTAL(109,FrequenzaAprile[G])","v":0},{"$f":"SUBTOTAL(109,FrequenzaAprile[P])","v":0},{"$f":"SUBTOTAL(109,FrequenzaAprile[Giorni di assenza])","v":0}]

{"sheet":"Maggio","index":11,"n_rows":12,"n_cols":39,"rows_kept":12,"merged":[[4,34,4,38]]}
["RECORD DI FREQUENZA STUDENTE",{"$nulls":36},"Inizio anno scolastico:",{"$f":"AnnoCalendario","v":2012}]
[]
[null,null,{"$f":"TestoLeggendaColori","v":"LEGGENDA COLORI "},{"$f":"Codice1","v":"I"},{"$f":"TestoCodice1","v":"In ritardo"},null,null,{"$f":"Codice2","v":"G"},{"$f":"TestoCodice2","v":"Giustificato"},null,null,{"$f":"Codice3","v":"N"},{"$f":"TestoCodice3","v":"Non giustificato"},null,null,{"$f":"Codice4","v":"P"},{"$f":"TestoCodice4","v":"Presente"},null,null,{"$f":"Codice5","v":"S"},{"$f":"TestoCodice5","v":"Scuola chiusa"}]
[]
[null,{"$f":"DATE(AnnoCalendario+1,5,1)","v":"2013-05-01"},null,{"$f":"TEXT(WEEKDAY(DATE(AnnoCalendario+1,5,1),1),\"[$-410]aaa\")","v":"mer"},{"$f":"TEXT(WEEKDAY(DATE(AnnoCalendario+1,5,2),1),\"[$-410]aaa\")","v":"gio"},{"$f":"TEXT(WEEKDAY(DATE(AnnoCalendario+1,5,3),1),\"[$-410]aaa\")","v":"ven"},{"$f":"TEXT(WEEKDAY(DATE(AnnoCalendario+1,5,4),1),\"[$-410]aaa\")","v":"sab"},{"$f":"TEXT(WEEKDAY(DATE(AnnoCalendario+1,5,5),1),\"[$-410]aaa\")","v":"dom"},{"$f":"TEXT(WEEKDAY(DATE(AnnoCalendario+1,5,6),1),\"[$-410]aaa\")","v":"lun"},{"$f":"TEXT(WEEKDAY(DATE(AnnoCalendario+1,5,7),1),\"[$-410]aaa\")","v":"mar"},{"$f":"TEXT(WEEKDAY(DATE(AnnoCalendario+1,5,8),1),\"[$-410]aaa\")","v":"mer"},{"$f":"TEXT(WEEKDAY(DATE(AnnoCalendario+1,5,9),1),\"[$-410]aaa\")","v":"gio"},{"$f":"TEXT(WEEKDAY(DATE(AnnoCalendario+1,5,10),1),\"[$-410]aaa\")","v":"ven"},{"$f":"TEXT(WEEKDAY(DATE(AnnoCalendario+1,5,11),1),\"[$-410]aaa\")","v":"sab"},{"$f":"TEXT(WEEKDAY(DATE(AnnoCalendario+1,5,12),1),\"[$-410]aaa\")","v":"dom"},{"$f":"TEXT(WEEKDAY(DATE(AnnoCalendario+1,5,13),1),\"[$-410]aaa\")","v":"lun"},{"$f":"TEXT(WEEKDAY(DATE(AnnoCalendario+1,5,14),1),\"[$-410]aaa\")","v":"mar"},{"$f":"TEXT(WEEKDAY(DATE(AnnoCalendario+1,5,15),1),\"[$-410]aaa\")","v":"mer"},{"$f":"TEXT(WEEKDAY(DATE(AnnoCalendario+1,5,16),1),\"[$-410]aaa\")","v":"gio"},{"$f":"TEXT(WEEKDAY(DATE(AnnoCalendario+1,5,17),1),\"[$-410]aaa\")","v":"ven"},{"$f":"TEXT(WEEKDAY(DATE(AnnoCalendario+1,5,18),1),\"[$-410]aaa\")","v":"sab"},{"$f":"TEXT(WEEKDAY(DATE(AnnoCalendario+1,5,19),1),\"[$-410]aaa\")","v":"dom"},{"$f":"TEXT(WEEKDAY(DATE(AnnoCalendario+1,5,20),1),\"[$-410]aaa\")","v":"lun"},{"$f":"TEXT(WEEKDAY(DATE(AnnoCalendario+1,5,21),1),\"[$-410]aaa\")","v":"mar"},{"$f":"TEXT(WEEKDAY(DATE(AnnoCalendario+1,5,22),1),\"[$-410]aaa\")","v":"mer"},{"$f":"TEXT(WEEKDAY(DATE(AnnoCalendario+1,5,23),1),\"[$-410]aaa\")","v":"gio"},{"$f":"TEXT(WEEKDAY(DATE(AnnoCalendario+1,5,24),1),\"[$-410]aaa\")","v":"ven"},{"$f":"TEXT(WEEKDAY(DATE(AnnoCalendario+1,5,25),1),\"[$-410]aaa\")","v":"sab"},{"$f":"TEXT(WEEKDAY(DATE(AnnoCalendario+1,5,26),1),\"[$-410]aaa\")","v":"dom"},{"$f":"TEXT(WEEKDAY(DATE(AnnoCalendario+1,5,27),1),\"[$-410]aaa\")","v":"lun"},{"$f":"TEXT(WEEKDAY(DATE(AnnoCalendario+1,5,28),1),\"[$-410]aaa\")","v":"mar"},{"$f":"TEXT(WEEKDAY(DATE(AnnoCalendario+1,5,29),1),\"[$-410]aaa\")","v":"mer"},{"$f":"TEXT(WEEKDAY(DATE(AnnoCalendario+1,5,30),1),\"[$-410]aaa\")","v":"gio"},{"$f":"TEXT(WEEKDAY(DATE(AnnoCalendario+1,5,31),1),\"[$-410]aaa\")","v":"ven"},"Totale"]
[null,"ID studente","Nome studente","1","2","3","4","5","6","7","8","9","10","11","12","13","14","15","16","17","18","19","20","21","22","23","24","25","26","27","28","29","30","31","I","N","G","P","Giorni di assenza"]
[null,null,{"$f":"IFERROR(VLOOKUP(FrequenzaMaggio[[#This Row],[ID studente]],ElencoStudenti[],18,FALSE),\"\")","v":""},{"$nulls":31},{"$f":"COUNTIF(FrequenzaMaggio[[#This Row],[1]:[31]],Codice1)","v":0},{"$f":"COUNTIF(FrequenzaMaggio[[#This Row],[1]:[31]],Codice2)","v":0},{"$f":"COUNTIF(FrequenzaMaggio[[#This Row],[1]:[31]],Codice3)","v":0},{"$f":"COUNTIF(FrequenzaMaggio[[#This Row],[1]:[31]],Codice4)","v":0},{"$f":"SUM(FrequenzaMaggio[[#This Row],[N]:[G]])","v":0}]
[null,null,{"$f":"IFERROR(VLOOKUP(FrequenzaMaggio[[#This Row],[ID studente]],ElencoStudenti[],18,FALSE),\"\")","v":""},{"$nulls":31},{"$f":"COUNTIF(FrequenzaMaggio[[#This Row],[1]:[31]],Codice1)","v":0},{"$f":"COUNTIF(FrequenzaMaggio[[#This Row],[1]:[31]],Codice2)","v":0},{"$f":"COUNTIF(FrequenzaMaggio[[#This Row],[1]:[31]],Codice3)","v":0},{"$f":"COUNTIF(FrequenzaMaggio[[#This Row],[1]:[31]],Codice4)","v":0},{"$f":"SUM(FrequenzaMaggio[[#This Row],[N]:[G]])","v":0}]
[null,null,{"$f":"IFERROR(VLOOKUP(FrequenzaMaggio[[#This Row],[ID studente]],ElencoStudenti[],18,FALSE),\"\")","v":""},{"$nulls":31},{"$f":"COUNTIF(FrequenzaMaggio[[#This Row],[1]:[31]],Codice1)","v":0},{"$f":"COUNTIF(FrequenzaMaggio[[#This Row],[1]:[31]],Codice2)","v":0},{"$f":"COUNTIF(FrequenzaMaggio[[#This Row],[1]:[31]],Codice3)","v":0},{"$f":"COUNTIF(FrequenzaMaggio[[#This Row],[1]:[31]],Codice4)","v":0},{"$f":"SUM(FrequenzaMaggio[[#This Row],[N]:[G]])","v":0}]
[null,null,{"$f":"IFERROR(VLOOKUP(FrequenzaMaggio[[#This Row],[ID studente]],ElencoStudenti[],18,FALSE),\"\")","v":""},{"$nulls":31},{"$f":"COUNTIF(FrequenzaMaggio[[#This Row],[1]:[31]],Codice1)","v":0},{"$f":"COUNTIF(FrequenzaMaggio[[#This Row],[1]:[31]],Codice2)","v":0},{"$f":"COUNTIF(FrequenzaMaggio[[#This Row],[1]:[31]],Codice3)","v":0},{"$f":"COUNTIF(FrequenzaMaggio[[#This Row],[1]:[31]],Codice4)","v":0},{"$f":"SUM(FrequenzaMaggio[[#This Row],[N]:[G]])","v":0}]
[null,null,{"$f":"IFERROR(VLOOKUP(FrequenzaMaggio[[#This Row],[ID studente]],ElencoStudenti[],18,FALSE),\"\")","v":""},{"$nulls":31},{"$f":"COUNTIF(FrequenzaMaggio[[#This Row],[1]:[31]],Codice1)","v":0},{"$f":"COUNTIF(FrequenzaMaggio[[#This Row],[1]:[31]],Codice2)","v":0},{"$f":"COUNTIF(FrequenzaMaggio[[#This Row],[1]:[31]],Codice3)","v":0},{"$f":"COUNTIF(FrequenzaMaggio[[#This Row],[1]:[31]],Codice4)","v":0},{"$f":"SUM(FrequenzaMaggio[[#This Row],[N]:[G]])","v":0}]
[null,null,"Totale giorni di assenza",{"$f":"COUNTIF(FrequenzaMaggio[1],\"N\")+COUNTIF(FrequenzaMaggio[1],\"G\")","v":0},{"$f":"COUNTIF(FrequenzaMaggio[2],\"N\")+COUNTIF(FrequenzaMaggio[2],\"G\")","v":0},{"$f":"COUNTIF(FrequenzaMaggio[3],\"N\")+COUNTIF(FrequenzaMaggio[3],\"G\")","v":0},{"$f":"COUNTIF(FrequenzaMaggio[4],\"N\")+COUNTIF(FrequenzaMaggio[4],\"G\")","v":0},{"$f":"COUNTIF(FrequenzaMaggio[5],\"N\")+COUNTIF(FrequenzaMaggio[5],\"G\")","v":0},{"$f":"COUNTIF(FrequenzaMaggio[6],\"N\")+COUNTIF(FrequenzaMaggio[6],\"G\")","v":0},{"$f":"COUNTIF(FrequenzaMaggio[7],\"N\")+COUNTIF(FrequenzaMaggio[7],\"G\")","v":0},{"$f":"COUNTIF(FrequenzaMaggio[8],\"N\")+COUNTIF(FrequenzaMaggio[8],\"G\")","v":0},{"$f":"COUNTIF(FrequenzaMaggio[9],\"N\")+COUNTIF(FrequenzaMaggio[9],\"G\")","v":0},{"$f":"COUNTIF(FrequenzaMaggio[10],\"N\")+COUNTIF(FrequenzaMaggio[10],\"G\")","v":0},{"$f":"COUNTIF(FrequenzaMaggio[11],\"N\")+COUNTIF(FrequenzaMaggio[11],\"G\")","v":0},{"$f":"COUNTIF(FrequenzaMaggio[12],\"N\")+COUNTIF(FrequenzaMaggio[12],\"G\")","v":0},{"$f":"COUNTIF(FrequenzaMaggio[13],\"N\")+COUNTIF(FrequenzaMaggio[13],\"G\")","v":0},{"$f":"COUNTIF(FrequenzaMaggio[14],\"N\")+COUNTIF(FrequenzaMaggio[14],\"G\")","v":0},{"$f":"COUNTIF(FrequenzaMaggio[15],\"N\")+COUNTIF(FrequenzaMaggio[15],\"G\")","v":0},{"$f":"COUNTIF(FrequenzaMaggio[16],\"N\")+COUNTIF(FrequenzaMaggio[16],\"G\")","v":0},{"$f":"COUNTIF(FrequenzaMaggio[17],\"N\")+COUNTIF(FrequenzaMaggio[17],\"G\")","v":0},{"$f":"COUNTIF(FrequenzaMaggio[18],\"N\")+COUNTIF(FrequenzaMaggio[18],\"G\")","v":0},{"$f":"COUNTIF(FrequenzaMaggio[19],\"N\")+COUNTIF(FrequenzaMaggio[19],\"G\")","v":0},{"$f":"COUNTIF(FrequenzaMaggio[20],\"N\")+COUNTIF(FrequenzaMaggio[20],\"G\")","v":0},{"$f":"COUNTIF(FrequenzaMaggio[21],\"N\")+COUNTIF(FrequenzaMaggio[21],\"G\")","v":0},{"$f":"COUNTIF(FrequenzaMaggio[22],\"N\")+COUNTIF(FrequenzaMaggio[22],\"G\")","v":0},{"$f":"COUNTIF(FrequenzaMaggio[23],\"N\")+COUNTIF(FrequenzaMaggio[23],\"G\")","v":0},{"$f":"COUNTIF(FrequenzaMaggio[24],\"N\")+COUNTIF(FrequenzaMaggio[24],\"G\")","v":0},{"$f":"COUNTIF(FrequenzaMaggio[25],\"N\")+COUNTIF(FrequenzaMaggio[25],\"G\")","v":0},{"$f":"COUNTIF(FrequenzaMaggio[26],\"N\")+COUNTIF(FrequenzaMaggio[26],\"G\")","v":0},{"$f":"COUNTIF(FrequenzaMaggio[27],\"N\")+COUNTIF(FrequenzaMaggio[27],\"G\")","v":0},{"$f":"COUNTIF(FrequenzaMaggio[28],\"N\")+COUNTIF(FrequenzaMaggio[28],\"G\")","v":0},{"$f":"COUNTIF(FrequenzaMaggio[29],\"N\")+COUNTIF(FrequenzaMaggio[29],\"G\")","v":0},{"$f":"COUNTIF(FrequenzaMaggio[30],\"N\")+COUNTIF(FrequenzaMaggio[30],\"G\")","v":0},{"$f":"COUNTIF(FrequenzaMaggio[31],\"N\")+COUNTIF(FrequenzaMaggio[31],\"G\")","v":0},{"$f":"SUBTOTAL(109,FrequenzaMaggio[I])","v":0},{"$f":"SUBTOTAL(109,FrequenzaMaggio[N])","v":0},{"$f":"SUBTOTAL(109,FrequenzaMaggio[G])","v":0},{"$f":"SUBTOTAL(109,FrequenzaMaggio[P])","v":0},{"$f":"SUBTOTAL(109,FrequenzaMaggio[Giorni di assenza])","v":0}]

{"sheet":"Giugno","index":12,"n_rows":12,"n_cols":39,"rows_kept":12,"merged":[[4,34,4,38]]}
["RECORD DI FREQUENZA STUDENTE",{"$nulls":36},"Inizio anno scolastico:",{"$f":"AnnoCalendario","v":2012}]
[]
[null,null,{"$f":"TestoLeggendaColori","v":"LEGGENDA COLORI "},{"$f":"Codice1","v":"I"},{"$f":"TestoCodice1","v":"In ritardo"},null,null,{"$f":"Codice2","v":"G"},{"$f":"TestoCodice2","v":"Giustificato"},null,null,{"$f":"Codice3","v":"N"},{"$f":"TestoCodice3","v":"Non giustificato"},null,null,{"$f":"Codice4","v":"P"},{"$f":"TestoCodice4","v":"Presente"},null,null,{"$f":"Codice5","v":"S"},{"$f":"TestoCodice5","v":"Scuola chiusa"}]
[]
[null,{"$f":"DATE(AnnoCalendario+1,6,1)","v":"2013-06-01"},null,{"$f":"TEXT(WEEKDAY(DATE(AnnoCalendario+1,6,1),1),\"[$-410]aaa\")","v":"sab"},{"$f":"TEXT(WEEKDAY(DATE(AnnoCalendario+1,6,2),1),\"[$-410]aaa\")","v":"dom"},{"$f":"TEXT(WEEKDAY(DATE(AnnoCalendario+1,6,3),1),\"[$-410]aaa\")","v":"lun"},{"$f":"TEXT(WEEKDAY(DATE(AnnoCalendario+1,6,4),1),\"[$-410]aaa\")","v":"mar"},{"$f":"TEXT(WEEKDAY(DATE(AnnoCalendario+1,6,5),1),\"[$-410]aaa\")","v":"mer"},{"$f":"TEXT(WEEKDAY(DATE(AnnoCalendario+1,6,6),1),\"[$-410]aaa\")","v":"gio"},{"$f":"TEXT(WEEKDAY(DATE(AnnoCalendario+1,6,7),1),\"[$-410]aaa\")","v":"ven"},{"$f":"TEXT(WEEKDAY(DATE(AnnoCalendario+1,6,8),1),\"[$-410]aaa\")","v":"sab"},{"$f":"TEXT(WEEKDAY(DATE(AnnoCalendario+1,6,9),1),\"[$-410]aaa\")","v":"dom"},{"$f":"TEXT(WEEKDAY(DATE(AnnoCalendario+1,6,10),1),\"[$-410]aaa\")","v":"lun"},{"$f":"TEXT(WEEKDAY(DATE(AnnoCalendario+1,6,11),1),\"[$-410]aaa\")","v":"mar"},{"$f":"TEXT(WEEKDAY(DATE(AnnoCalendario+1,6,12),1),\"[$-410]aaa\")","v":"mer"},{"$f":"TEXT(WEEKDAY(DATE(AnnoCalendario+1,6,13),1),\"[$-410]aaa\")","v":"gio"},{"$f":"TEXT(WEEKDAY(DATE(AnnoCalendario+1,6,14),1),\"[$-410]aaa\")","v":"ven"},{"$f":"TEXT(WEEKDAY(DATE(AnnoCalendario+1,6,15),1),\"[$-410]aaa\")","v":"sab"},{"$f":"TEXT(WEEKDAY(DATE(AnnoCalendario+1,6,16),1),\"[$-410]aaa\")","v":"dom"},{"$f":"TEXT(WEEKDAY(DATE(AnnoCalendario+1,6,17),1),\"[$-410]aaa\")","v":"lun"},{"$f":"TEXT(WEEKDAY(DATE(AnnoCalendario+1,6,18),1),\"[$-410]aaa\")","v":"mar"},{"$f":"TEXT(WEEKDAY(DATE(AnnoCalendario+1,6,19),1),\"[$-410]aaa\")","v":"mer"},{"$f":"TEXT(WEEKDAY(DATE(AnnoCalendario+1,6,20),1),\"[$-410]aaa\")","v":"gio"},{"$f":"TEXT(WEEKDAY(DATE(AnnoCalendario+1,6,21),1),\"[$-410]aaa\")","v":"ven"},{"$f":"TEXT(WEEKDAY(DATE(AnnoCalendario+1,6,22),1),\"[$-410]aaa\")","v":"sab"},{"$f":"TEXT(WEEKDAY(DATE(AnnoCalendario+1,6,23),1),\"[$-410]aaa\")","v":"dom"},{"$f":"TEXT(WEEKDAY(DATE(AnnoCalendario+1,6,24),1),\"[$-410]aaa\")","v":"lun"},{"$f":"TEXT(WEEKDAY(DATE(AnnoCalendario+1,6,25),1),\"[$-410]aaa\")","v":"mar"},{"$f":"TEXT(WEEKDAY(DATE(AnnoCalendario+1,6,26),1),\"[$-410]aaa\")","v":"mer"},{"$f":"TEXT(WEEKDAY(DATE(AnnoCalendario+1,6,27),1),\"[$-410]aaa\")","v":"gio"},{"$f":"TEXT(WEEKDAY(DATE(AnnoCalendario+1,6,28),1),\"[$-410]aaa\")","v":"ven"},{"$f":"TEXT(WEEKDAY(DATE(AnnoCalendario+1,6,29),1),\"[$-410]aaa\")","v":"sab"},{"$f":"TEXT(WEEKDAY(DATE(AnnoCalendario+1,6,30),1),\"[$-410]aaa\")","v":"dom"},null,"Totale"]
[null,"ID studente","Nome studente","1","2","3","4","5","6","7","8","9","10","11","12","13","14","15","16","17","18","19","20","21","22","23","24","25","26","27","28","29","30"," ","I","N","G","P","Giorni di assenza"]
[null,null,{"$f":"IFERROR(VLOOKUP(FrequenzaGiugno[[#This Row],[ID studente]],ElencoStudenti[],18,FALSE),\"\")","v":""},{"$nulls":31},{"$f":"COUNTIF(FrequenzaGiugno[[#This Row],[1]:[ ]],Codice1)","v":0},{"$f":"COUNTIF(FrequenzaGiugno[[#This Row],[1]:[ ]],Codice2)","v":0},{"$f":"COUNTIF(FrequenzaGiugno[[#This Row],[1]:[ ]],Codice3)","v":0},{"$f":"COUNTIF(FrequenzaGiugno[[#This Row],[1]:[ ]],Codice4)","v":0},{"$f":"SUM(FrequenzaGiugno[[#This Row],[N]:[G]])","v":0}]
[null,null,{"$f":"IFERROR(VLOOKUP(FrequenzaGiugno[[#This Row],[ID studente]],ElencoStudenti[],18,FALSE),\"\")","v":""},{"$nulls":31},{"$f":"COUNTIF(FrequenzaGiugno[[#This Row],[1]:[ ]],Codice1)","v":0},{"$f":"COUNTIF(FrequenzaGiugno[[#This Row],[1]:[ ]],Codice2)","v":0},{"$f":"COUNTIF(FrequenzaGiugno[[#This Row],[1]:[ ]],Codice3)","v":0},{"$f":"COUNTIF(FrequenzaGiugno[[#This Row],[1]:[ ]],Codice4)","v":0},{"$f":"SUM(FrequenzaGiugno[[#This Row],[N]:[G]])","v":0}]
[null,null,{"$f":"IFERROR(VLOOKUP(FrequenzaGiugno[[#This Row],[ID studente]],ElencoStudenti[],18,FALSE),\"\")","v":""},{"$nulls":31},{"$f":"COUNTIF(FrequenzaGiugno[[#This Row],[1]:[ ]],Codice1)","v":0},{"$f":"COUNTIF(FrequenzaGiugno[[#This Row],[1]:[ ]],Codice2)","v":0},{"$f":"COUNTIF(FrequenzaGiugno[[#This Row],[1]:[ ]],Codice3)","v":0},{"$f":"COUNTIF(FrequenzaGiugno[[#This Row],[1]:[ ]],Codice4)","v":0},{"$f":"SUM(FrequenzaGiugno[[#This Row],[N]:[G]])","v":0}]
[null,null,{"$f":"IFERROR(VLOOKUP(FrequenzaGiugno[[#This Row],[ID studente]],ElencoStudenti[],18,FALSE),\"\")","v":""},{"$nulls":31},{"$f":"COUNTIF(FrequenzaGiugno[[#This Row],[1]:[ ]],Codice1)","v":0},{"$f":"COUNTIF(FrequenzaGiugno[[#This Row],[1]:[ ]],Codice2)","v":0},{"$f":"COUNTIF(FrequenzaGiugno[[#This Row],[1]:[ ]],Codice3)","v":0},{"$f":"COUNTIF(FrequenzaGiugno[[#This Row],[1]:[ ]],Codice4)","v":0},{"$f":"SUM(FrequenzaGiugno[[#This Row],[N]:[G]])","v":0}]
[null,null,{"$f":"IFERROR(VLOOKUP(FrequenzaGiugno[[#This Row],[ID studente]],ElencoStudenti[],18,FALSE),\"\")","v":""},{"$nulls":31},{"$f":"COUNTIF(FrequenzaGiugno[[#This Row],[1]:[ ]],Codice1)","v":0},{"$f":"COUNTIF(FrequenzaGiugno[[#This Row],[1]:[ ]],Codice2)","v":0},{"$f":"COUNTIF(FrequenzaGiugno[[#This Row],[1]:[ ]],Codice3)","v":0},{"$f":"COUNTIF(FrequenzaGiugno[[#This Row],[1]:[ ]],Codice4)","v":0},{"$f":"SUM(FrequenzaGiugno[[#This Row],[N]:[G]])","v":0}]
[null,null,"Totale giorni di assenza",{"$f":"COUNTIF(FrequenzaGiugno[1],\"N\")+COUNTIF(FrequenzaGiugno[1],\"G\")","v":0},{"$f":"COUNTIF(FrequenzaGiugno[2],\"N\")+COUNTIF(FrequenzaGiugno[2],\"G\")","v":0},{"$f":"COUNTIF(FrequenzaGiugno[3],\"N\")+COUNTIF(FrequenzaGiugno[3],\"G\")","v":0},{"$f":"COUNTIF(FrequenzaGiugno[4],\"N\")+COUNTIF(FrequenzaGiugno[4],\"G\")","v":0},{"$f":"COUNTIF(FrequenzaGiugno[5],\"N\")+COUNTIF(FrequenzaGiugno[5],\"G\")","v":0},{"$f":"COUNTIF(FrequenzaGiugno[6],\"N\")+COUNTIF(FrequenzaGiugno[6],\"G\")","v":0},{"$f":"COUNTIF(FrequenzaGiugno[7],\"N\")+COUNTIF(FrequenzaGiugno[7],\"G\")","v":0},{"$f":"COUNTIF(FrequenzaGiugno[8],\"N\")+COUNTIF(FrequenzaGiugno[8],\"G\")","v":0},{"$f":"COUNTIF(FrequenzaGiugno[9],\"N\")+COUNTIF(FrequenzaGiugno[9],\"G\")","v":0},{"$f":"COUNTIF(FrequenzaGiugno[10],\"N\")+COUNTIF(FrequenzaGiugno[10],\"G\")","v":0},{"$f":"COUNTIF(FrequenzaGiugno[11],\"N\")+COUNTIF(FrequenzaGiugno[11],\"G\")","v":0},{"$f":"COUNTIF(FrequenzaGiugno[12],\"N\")+COUNTIF(FrequenzaGiugno[12],\"G\")","v":0},{"$f":"COUNTIF(FrequenzaGiugno[13],\"N\")+COUNTIF(FrequenzaGiugno[13],\"G\")","v":0},{"$f":"COUNTIF(FrequenzaGiugno[14],\"N\")+COUNTIF(FrequenzaGiugno[14],\"G\")","v":0},{"$f":"COUNTIF(FrequenzaGiugno[15],\"N\")+COUNTIF(FrequenzaGiugno[15],\"G\")","v":0},{"$f":"COUNTIF(FrequenzaGiugno[16],\"N\")+COUNTIF(FrequenzaGiugno[16],\"G\")","v":0},{"$f":"COUNTIF(FrequenzaGiugno[17],\"N\")+COUNTIF(FrequenzaGiugno[17],\"G\")","v":0},{"$f":"COUNTIF(FrequenzaGiugno[18],\"N\")+COUNTIF(FrequenzaGiugno[18],\"G\")","v":0},{"$f":"COUNTIF(FrequenzaGiugno[19],\"N\")+COUNTIF(FrequenzaGiugno[19],\"G\")","v":0},{"$f":"COUNTIF(FrequenzaGiugno[20],\"N\")+COUNTIF(FrequenzaGiugno[20],\"G\")","v":0},{"$f":"COUNTIF(FrequenzaGiugno[21],\"N\")+COUNTIF(FrequenzaGiugno[21],\"G\")","v":0},{"$f":"COUNTIF(FrequenzaGiugno[22],\"N\")+COUNTIF(FrequenzaGiugno[22],\"G\")","v":0},{"$f":"COUNTIF(FrequenzaGiugno[23],\"N\")+COUNTIF(FrequenzaGiugno[23],\"G\")","v":0},{"$f":"COUNTIF(FrequenzaGiugno[24],\"N\")+COUNTIF(FrequenzaGiugno[24],\"G\")","v":0},{"$f":"COUNTIF(FrequenzaGiugno[25],\"N\")+COUNTIF(FrequenzaGiugno[25],\"G\")","v":0},{"$f":"COUNTIF(FrequenzaGiugno[26],\"N\")+COUNTIF(FrequenzaGiugno[26],\"G\")","v":0},{"$f":"COUNTIF(FrequenzaGiugno[27],\"N\")+COUNTIF(FrequenzaGiugno[27],\"G\")","v":0},{"$f":"COUNTIF(FrequenzaGiugno[28],\"N\")+COUNTIF(FrequenzaGiugno[28],\"G\")","v":0},{"$f":"COUNTIF(FrequenzaGiugno[29],\"N\")+COUNTIF(FrequenzaGiugno[29],\"G\")","v":0},{"$f":"COUNTIF(FrequenzaGiugno[30],\"N\")+COUNTIF(FrequenzaGiugno[30],\"G\")","v":0},null,{"$f":"SUBTOTAL(109,FrequenzaGiugno[I])","v":0},{"$f":"SUBTOTAL(105,FrequenzaGiugno[N])","v":0},{"$f":"SUBTOTAL(109,FrequenzaGiugno[G])","v":0},{"$f":"SUBTOTAL(109,FrequenzaGiugno[P])","v":0},{"$f":"SUBTOTAL(109,FrequenzaGiugno[Giorni di assenza])","v":0}]

{"sheet":"Luglio","index":13,"n_rows":12,"n_cols":39,"rows_kept":12,"merged":[[4,34,4,38]]}
["RECORD DI FREQUENZA STUDENTE",{"$nulls":36},"Inizio anno scolastico:",{"$f":"AnnoCalendario","v":2012}]
[]
[null,null,{"$f":"TestoLeggendaColori","v":"LEGGENDA COLORI "},{"$f":"Codice1","v":"I"},{"$f":"TestoCodice1","v":"In ritardo"},null,null,{"$f":"Codice2","v":"G"},{"$f":"TestoCodice2","v":"Giustificato"},null,null,{"$f":"Codice3","v":"N"},{"$f":"TestoCodice3","v":"Non giustificato"},null,null,{"$f":"Codice4","v":"P"},{"$f":"TestoCodice4","v":"Presente"},null,null,{"$f":"Codice5","v":"S"},{"$f":"TestoCodice5","v":"Scuola chiusa"}]
[]
[null,{"$f":"DATE(AnnoCalendario+1,7,1)","v":"2013-07-01"},null,{"$f":"TEXT(WEEKDAY(DATE(AnnoCalendario+1,7,1),1),\"[$-410]aaa\")","v":"lun"},{"$f":"TEXT(WEEKDAY(DATE(AnnoCalendario+1,7,2),1),\"[$-410]aaa\")","v":"mar"},{"$f":"TEXT(WEEKDAY(DATE(AnnoCalendario+1,7,3),1),\"[$-410]aaa\")","v":"mer"},{"$f":"TEXT(WEEKDAY(DATE(AnnoCalendario+1,7,4),1),\"[$-410]aaa\")","v":"gio"},{"$f":"TEXT(WEEKDAY(DATE(AnnoCalendario+1,7,5),1),\"[$-410]aaa\")","v":"ven"},{"$f":"TEXT(WEEKDAY(DATE(AnnoCalendario+1,7,6),1),\"[$-410]aaa\")","v":"sab"},{"$f":"TEXT(WEEKDAY(DATE(AnnoCalendario+1,7,7),1),\"[$-410]aaa\")","v":"dom"},{"$f":"TEXT(WEEKDAY(DATE(AnnoCalendario+1,7,8),1),\"[$-410]aaa\")","v":"lun"},{"$f":"TEXT(WEEKDAY(DATE(AnnoCalendario+1,7,9),1),\"[$-410]aaa\")","v":"mar"},{"$f":"TEXT(WEEKDAY(DATE(AnnoCalendario+1,7,10),1),\"[$-410]aaa\")","v":"mer"},{"$f":"TEXT(WEEKDAY(DATE(AnnoCalendario+1,7,11),1),\"[$-410]aaa\")","v":"gio"},{"$f":"TEXT(WEEKDAY(DATE(AnnoCalendario+1,7,12),1),\"[$-410]aaa\")","v":"ven"},{"$f":"TEXT(WEEKDAY(DATE(AnnoCalendario+1,7,13),1),\"[$-410]aaa\")","v":"sab"},{"$f":"TEXT(WEEKDAY(DATE(AnnoCalendario+1,7,14),1),\"[$-410]aaa\")","v":"dom"},{"$f":"TEXT(WEEKDAY(DATE(AnnoCalendario+1,7,15),1),\"[$-410]aaa\")","v":"lun"},{"$f":"TEXT(WEEKDAY(DATE(AnnoCalendario+1,7,16),1),\"[$-410]aaa\")","v":"mar"},{"$f":"TEXT(WEEKDAY(DATE(AnnoCalendario+1,7,17),1),\"[$-410]aaa\")","v":"mer"},{"$f":"TEXT(WEEKDAY(DATE(AnnoCalendario+1,7,18),1),\"[$-410]aaa\")","v":"gio"},{"$f":"TEXT(WEEKDAY(DATE(AnnoCalendario+1,7,19),1),\"[$-410]aaa\")","v":"ven"},{"$f":"TEXT(WEEKDAY(DATE(AnnoCalendario+1,7,20),1),\"[$-410]aaa\")","v":"sab"},{"$f":"TEXT(WEEKDAY(DATE(AnnoCalendario+1,7,21),1),\"[$-410]aaa\")","v":"dom"},{"$f":"TEXT(WEEKDAY(DATE(AnnoCalendario+1,7,22),1),\"[$-410]aaa\")","v":"lun"},{"$f":"TEXT(WEEKDAY(DATE(AnnoCalendario+1,7,23),1),\"[$-410]aaa\")","v":"mar"},{"$f":"TEXT(WEEKDAY(DATE(AnnoCalendario+1,7,24),1),\"[$-410]aaa\")","v":"mer"},{"$f":"TEXT(WEEKDAY(DATE(AnnoCalendario+1,7,25),1),\"[$-410]aaa\")","v":"gio"},{"$f":"TEXT(WEEKDAY(DATE(AnnoCalendario+1,7,26),1),\"[$-410]aaa\")","v":"ven"},{"$f":"TEXT(WEEKDAY(DATE(AnnoCalendario+1,7,27),1),\"[$-410]aaa\")","v":"sab"},{"$f":"TEXT(WEEKDAY(DATE(AnnoCalendario+1,7,28),1),\"[$-410]aaa\")","v":"dom"},{"$f":"TEXT(WEEKDAY(DATE(AnnoCalendario+1,7,29),1),\"[$-410]aaa\")","v":"lun"},{"$f":"TEXT(WEEKDAY(DATE(AnnoCalendario+1,7,30),1),\"[$-410]aaa\")","v":"mar"},{"$f":"TEXT(WEEKDAY(DATE(AnnoCalendario+1,7,31),1),\"[$-410]aaa\")","v":"mer"},"Totale"]
[null,"ID studente","Nome studente","1","2","3","4","5","6","7","8","9","10","11","12","13","14","15","16","17","18","19","20","21","22","23","24","25","26","27","28","29","30","31","I","N","G","P","Giorni di assenza"]
[null,null,{"$f":"IFERROR(VLOOKUP(FrequenzaLuglio[[#This Row],[ID studente]],ElencoStudenti[],18,FALSE),\"\")","v":""},{"$nulls":31},{"$f":"COUNTIF(FrequenzaLuglio[[#This Row],[1]:[31]],Codice1)","v":0},{"$f":"COUNTIF(FrequenzaLuglio[[#This Row],[1]:[31]],Codice2)","v":0},{"$f":"COUNTIF(FrequenzaLuglio[[#This Row],[1]:[31]],Codice3)","v":0},{"$f":"COUNTIF(FrequenzaLuglio[[#This Row],[1]:[31]],Codice4)","v":0},{"$f":"SUM(FrequenzaLuglio[[#This Row],[N]:[G]])","v":0}]
[null,null,{"$f":"IFERROR(VLOOKUP(FrequenzaLuglio[[#This Row],[ID studente]],ElencoStudenti[],18,FALSE),\"\")","v":""},{"$nulls":31},{"$f":"COUNTIF(FrequenzaLuglio[[#This Row],[1]:[31]],Codice1)","v":0},{"$f":"COUNTIF(FrequenzaLuglio[[#This Row],[1]:[31]],Codice2)","v":0},{"$f":"COUNTIF(FrequenzaLuglio[[#This Row],[1]:[31]],Codice3)","v":0},{"$f":"COUNTIF(FrequenzaLuglio[[#This Row],[1]:[31]],Codice4)","v":0},{"$f":"SUM(FrequenzaLuglio[[#This Row],[N]:[G]])","v":0}]
[null,null,{"$f":"IFERROR(VLOOKUP(FrequenzaLuglio[[#This Row],[ID studente]],ElencoStudenti[],18,FALSE),\"\")","v":""},{"$nulls":31},{"$f":"COUNTIF(FrequenzaLuglio[[#This Row],[1]:[31]],Codice1)","v":0},{"$f":"COUNTIF(FrequenzaLuglio[[#This Row],[1]:[31]],Codice2)","v":0},{"$f":"COUNTIF(FrequenzaLuglio[[#This Row],[1]:[31]],Codice3)","v":0},{"$f":"COUNTIF(FrequenzaLuglio[[#This Row],[1]:[31]],Codice4)","v":0},{"$f":"SUM(FrequenzaLuglio[[#This Row],[N]:[G]])","v":0}]
[null,null,{"$f":"IFERROR(VLOOKUP(FrequenzaLuglio[[#This Row],[ID studente]],ElencoStudenti[],18,FALSE),\"\")","v":""},{"$nulls":31},{"$f":"COUNTIF(FrequenzaLuglio[[#This Row],[1]:[31]],Codice1)","v":0},{"$f":"COUNTIF(FrequenzaLuglio[[#This Row],[1]:[31]],Codice2)","v":0},{"$f":"COUNTIF(FrequenzaLuglio[[#This Row],[1]:[31]],Codice3)","v":0},{"$f":"COUNTIF(FrequenzaLuglio[[#This Row],[1]:[31]],Codice4)","v":0},{"$f":"SUM(FrequenzaLuglio[[#This Row],[N]:[G]])","v":0}]
[null,null,{"$f":"IFERROR(VLOOKUP(FrequenzaLuglio[[#This Row],[ID studente]],ElencoStudenti[],18,FALSE),\"\")","v":""},{"$nulls":31},{"$f":"COUNTIF(FrequenzaLuglio[[#This Row],[1]:[31]],Codice1)","v":0},{"$f":"COUNTIF(FrequenzaLuglio[[#This Row],[1]:[31]],Codice2)","v":0},{"$f":"COUNTIF(FrequenzaLuglio[[#This Row],[1]:[31]],Codice3)","v":0},{"$f":"COUNTIF(FrequenzaLuglio[[#This Row],[1]:[31]],Codice4)","v":0},{"$f":"SUM(FrequenzaLuglio[[#This Row],[N]:[G]])","v":0}]
[null,null,"Totale giorni di assenza",{"$f":"COUNTIF(FrequenzaLuglio[1],\"N\")+COUNTIF(FrequenzaLuglio[1],\"G\")","v":0},{"$f":"COUNTIF(FrequenzaLuglio[2],\"N\")+COUNTIF(FrequenzaLuglio[2],\"G\")","v":0},{"$f":"COUNTIF(FrequenzaLuglio[3],\"N\")+COUNTIF(FrequenzaLuglio[3],\"G\")","v":0},{"$f":"COUNTIF(FrequenzaLuglio[4],\"N\")+COUNTIF(FrequenzaLuglio[4],\"G\")","v":0},{"$f":"COUNTIF(FrequenzaLuglio[5],\"N\")+COUNTIF(FrequenzaLuglio[5],\"G\")","v":0},{"$f":"COUNTIF(FrequenzaLuglio[6],\"N\")+COUNTIF(FrequenzaLuglio[6],\"G\")","v":0},{"$f":"COUNTIF(FrequenzaLuglio[7],\"N\")+COUNTIF(FrequenzaLuglio[7],\"G\")","v":0},{"$f":"COUNTIF(FrequenzaLuglio[8],\"N\")+COUNTIF(FrequenzaLuglio[8],\"G\")","v":0},{"$f":"COUNTIF(FrequenzaLuglio[9],\"N\")+COUNTIF(FrequenzaLuglio[9],\"G\")","v":0},{"$f":"COUNTIF(FrequenzaLuglio[10],\"N\")+COUNTIF(FrequenzaLuglio[10],\"G\")","v":0},{"$f":"COUNTIF(FrequenzaLuglio[11],\"N\")+COUNTIF(FrequenzaLuglio[11],\"G\")","v":0},{"$f":"COUNTIF(FrequenzaLuglio[12],\"N\")+COUNTIF(FrequenzaLuglio[12],\"G\")","v":0},{"$f":"COUNTIF(FrequenzaLuglio[13],\"N\")+COUNTIF(FrequenzaLuglio[13],\"G\")","v":0},{"$f":"COUNTIF(FrequenzaLuglio[14],\"N\")+COUNTIF(FrequenzaLuglio[14],\"G\")","v":0},{"$f":"COUNTIF(FrequenzaLuglio[15],\"N\")+COUNTIF(FrequenzaLuglio[15],\"G\")","v":0},{"$f":"COUNTIF(FrequenzaLuglio[16],\"N\")+COUNTIF(FrequenzaLuglio[16],\"G\")","v":0},{"$f":"COUNTIF(FrequenzaLuglio[17],\"N\")+COUNTIF(FrequenzaLuglio[17],\"G\")","v":0},{"$f":"COUNTIF(FrequenzaLuglio[18],\"N\")+COUNTIF(FrequenzaLuglio[18],\"G\")","v":0},{"$f":"COUNTIF(FrequenzaLuglio[19],\"N\")+COUNTIF(FrequenzaLuglio[19],\"G\")","v":0},{"$f":"COUNTIF(FrequenzaLuglio[20],\"N\")+COUNTIF(FrequenzaLuglio[20],\"G\")","v":0},{"$f":"COUNTIF(FrequenzaLuglio[21],\"N\")+COUNTIF(FrequenzaLuglio[21],\"G\")","v":0},{"$f":"COUNTIF(FrequenzaLuglio[22],\"N\")+COUNTIF(FrequenzaLuglio[22],\"G\")","v":0},{"$f":"COUNTIF(FrequenzaLuglio[23],\"N\")+COUNTIF(FrequenzaLuglio[23],\"G\")","v":0},{"$f":"COUNTIF(FrequenzaLuglio[24],\"N\")+COUNTIF(FrequenzaLuglio[24],\"G\")","v":0},{"$f":"COUNTIF(FrequenzaLuglio[25],\"N\")+COUNTIF(FrequenzaLuglio[25],\"G\")","v":0},{"$f":"COUNTIF(FrequenzaLuglio[26],\"N\")+COUNTIF(FrequenzaLuglio[26],\"G\")","v":0},{"$f":"COUNTIF(FrequenzaLuglio[27],\"N\")+COUNTIF(FrequenzaLuglio[27],\"G\")","v":0},{"$f":"COUNTIF(FrequenzaLuglio[28],\"N\")+COUNTIF(FrequenzaLuglio[28],\"G\")","v":0},{"$f":"COUNTIF(FrequenzaLuglio[29],\"N\")+COUNTIF(FrequenzaLuglio[29],\"G\")","v":0},{"$f":"COUNTIF(FrequenzaLuglio[30],\"N\")+COUNTIF(FrequenzaLuglio[30],\"G\")","v":0},{"$f":"COUNTIF(FrequenzaLuglio[31],\"N\")+COUNTIF(FrequenzaLuglio[31],\"G\")","v":0},{"$f":"SUBTOTAL(109,FrequenzaLuglio[I])","v":0},{"$f":"SUBTOTAL(109,FrequenzaLuglio[N])","v":0},{"$f":"SUBTOTAL(109,FrequenzaLuglio[G])","v":0},{"$f":"SUBTOTAL(109,FrequenzaLuglio[P])","v":0},{"$f":"SUBTOTAL(109,FrequenzaLuglio[Giorni di assenza])","v":0}]

{"sheet":"Report di frequenza studenti","index":14,"n_rows":40,"n_cols":37,"rows_kept":40,"merged":[[2,3,2,14],[2,15,2,17],[2,18,2,21],[2,22,2,29],[2,30,2,31],[2,32,2,35],[3,1,3,2],[3,3,3,14],[3,15,3,17],[3,18,3,21],[3,22,3,29],[3,30,3,31],[3,32,3,35],[4,1,4,9],[4,10,4,21],[4,22,4,29],[4,30,4,36],[5,1,5,9],[5,10,5,21],[5,22,5,29],[5,30,5,36],[6,1,6,9],[6,10,6,21],[6,22,6,29],[6,30,6,36],[7,1,7,9],[7,10,7,21],[7,22,7,29],[7,30,7,36],[8,1,8,9],[8,10,8,21],[8,22,8,29],[8,30,8,36],[9,1,9,9],[9,10,9,21],[9,22,9,29],[9,30,9,36],[13,1,14,32],[13,33,13,36],[15,1,16,1],[15,33,16,33],[15,34,16,34],[15,35,16,35],[15,36,16,36],[17,1,18,1],[17,33,18,33],[17,34,18,34],[17,35,18,35],[17,36,18,36],[19,1,20,1],[19,33,20,33],[19,34,20,34],[19,35,20,35],[19,36,20,36],[21,1,22,1],[21,33,22,33],[21,34,22,34],[21,35,22,35],[21,36,22,36],[23,1,24,1],[23,33,24,33],[23,34,24,34],[23,35,24,35],[23,36,24,36],[25,1,26,1],[25,33,26,33],[25,34,26,34],[25,35,26,35],[25,36,26,36],[27,1,28,1],[27,33,28,33],[27,34,28,34],[27,35,28,35],[27,36,28,36],[29,1,30,1],[29,33,30,33],[29,34,30,34],[29,35,30,35],[29,36,30,36],[31,1,32,1],[31,33,32,33],[31,34,32,34],[31,35,32,35],[31,36,32,36],[33,1,34,1],[33,33,34,33],[33,34,34,34],[33,35,34,35],[33,36,34,36],[35,1,36,1],[35,33,36,33],[35,34,36,34],[35,35,36,35],[35,36,36,36],[37,1,38,1],[37,33,38,33],[37,34,38,34],[37,35,38,35],[37,36,38,36],[39,30,39,32]]}
[{"$f":"\"Registro presenze per \"","v":"Registro presenze per "},{"$nulls":7},{"$f":"D4","v":"Davide Alessandri"}]
[]
[null,"ID studente",null,"Nome studente",{"$nulls":11},"Sesso",null,null,"Data di nascita",{"$nulls":3},"Scuola",{"$nulls":7},"Voto",null,"Insegnante",{"$nulls":3},"Stanza"]
[null,"S001",null,{"$f":"IFERROR(VLOOKUP(RicercaStudente,ElencoStudenti[],18,FALSE),\"\")","v":"Davide Alessandri"},{"$nulls":11},{"$f":"IFERROR(VLOOKUP(RicercaStudente,ElencoStudenti[],4,FALSE),\"\")","v":"M"},null,null,{"$f":"IFERROR(VLOOKUP(RicercaStudente,ElencoStudenti[],5,FALSE),\"\")","v":"1997-03-28"},{"$nulls":3},"Liceo Artistico ",{"$nulls":7},7,null,"Luca Argentiero",{"$nulls":3},123]
[null,"Nome genitore o tutore 1",{"$nulls":8},"Relazione",{"$nulls":11},"Telefono ufficio",{"$nulls":7},"Telefono abitazione"]
[null,{"$f":"IFERROR(VLOOKUP(RicercaStudente,ElencoStudenti[],6,FALSE),\"\")","v":"Daniela"},{"$nulls":8},{"$f":"IFERROR(VLOOKUP(RicercaStudente,ElencoStudenti[],7,FALSE),\"\")","v":"Alessandri"},{"$nulls":11},{"$f":"IFERROR(VLOOKUP(RicercaStudente,ElencoStudenti[],8,FALSE),\"\")","v":1235550134},{"$nulls":7},{"$f":"IFERROR(VLOOKUP(RicercaStudente,ElencoStudenti[],9,FALSE),\"\")","v":2345550134}]
[null,"Nome genitore o tutore 2",{"$nulls":8},"Relazione",{"$nulls":11},"Telefono ufficio",{"$nulls":7},"Telefono abitazione"]
[null,{"$f":"IFERROR(VLOOKUP(RicercaStudente,ElencoStudenti[],10,FALSE),\"\")","v":"Michele Alessandri"},{"$nulls":8},{"$f":"IFERROR(VLOOKUP(RicercaStudente,ElencoStudenti[],11,FALSE),\"\")","v":"Padre"},{"$nulls":11},{"$f":"IFERROR(VLOOKUP(RicercaStudente,ElencoStudenti[],12,FALSE),\"\")","v":1235550134},{"$nulls":7},{"$f":"IFERROR(VLOOKUP(RicercaStudente,ElencoStudenti[],13,FALSE),\"\")","v":2345550134}]
[null,"Contatto emergenze",{"$nulls":8},"Relazione",{"$nulls":11},"Telefono ufficio",{"$nulls":7},"Telefono abitazione"]
[null,{"$f":"IFERROR(VLOOKUP(RicercaStudente,ElencoStudenti[],14,FALSE),\"\")","v":"Davide Ruspini"},{"$nulls":8},{"$f":"IFERROR(VLOOKUP(RicercaStudente,ElencoStudenti[],15,FALSE),\"\")","v":"Nonno"},{"$nulls":11},{"$f":"IFERROR(VLOOKUP(RicercaStudente,ElencoStudenti[],16,FALSE),\"\")","v":7895550189},{"$nulls":7},{"$f":"IFERROR(VLOOKUP(RicercaStudente,ElencoStudenti[],17,FALSE),\"\")","v":7895550134}]
[]
[null,{"$f":"Agosto!C3","v":"LEGGENDA COLORI "},{"$f":"Agosto!D3","v":"I"},{"$f":"Agosto!E3","v":"In ritardo"},null,null,{"$f":"Agosto!H3","v":"G"},{"$f":"Agosto!I3","v":"Giustificato"},null,null,{"$f":"Agosto!L3","v":"N"},{"$f":"Agosto!M3","v":"Non giustificato"},{"$nulls":3},{"$f":"Agosto!P3","v":"P"},{"$f":"Agosto!Q3","v":"Presente"},null,null,{"$f":"Agosto!T3","v":"S"},{"$f":"Agosto!U3","v":"Scuola chiusa"}]
[]
[null,"Frequenza",{"$nulls":31},"Totali frequenza"]
[{"$nulls":33},"I","G","N","P"]
[null,"Agosto",1,2,3,4,5,6,7,8,9,10,11,12,13,14,15,16,17,18,19,20,21,22,23,24,25,26,27,28,29,30,31,{"$f":"COUNTIF($D17:$AH17,Codice1)","v":2},{"$f":"COUNTIF($D17:$AH17,Codice2)","v":1},{"$f":"COUNTIF($D17:$AH17,Codice3)","v":0},{"$f":"COUNTIF($D17:$AH17,Codice4)","v":19}]
[null,null,{"$f":"IFERROR(VLOOKUP(RicercaStudente,FrequenzaAgosto[],3,FALSE),\"\")","v":"P"},{"$f":"IFERROR(VLOOKUP(RicercaStudente,FrequenzaAgosto[],4,FALSE),\"\")","v":"P"},{"$f":"IFERROR(VLOOKUP(RicercaStudente,FrequenzaAgosto[],5,FALSE),\"\")","v":"I"},{"$f":"IFERROR(VLOOKUP(RicercaStudente,FrequenzaAgosto[],6,FALSE),\"\")","v":"I"},{"$f":"IFERROR(VLOOKUP(RicercaStudente,FrequenzaAgosto[],7,FALSE),\"\")","v":"P"},{"$f":"IFERROR(VLOOKUP(RicercaStudente,FrequenzaAgosto[],8,FALSE),\"\")","v":"S"},{"$f":"IFERROR(VLOOKUP(RicercaStudente,FrequenzaAgosto[],9,FALSE),\"\")","v":"S"},{"$f":"IFERROR(VLOOKUP(RicercaStudente,FrequenzaAgosto[],10,FALSE),\"\")","v":"P"},{"$f":"IFERROR(VLOOKUP(RicercaStudente,FrequenzaAgosto[],11,FALSE),\"\")","v":"P"},{"$f":"IFERROR(VLOOKUP(RicercaStudente,FrequenzaAgosto[],12,FALSE),\"\")","v":"G"},{"$f":"IFERROR(VLOOKUP(RicercaStudente,FrequenzaAgosto[],13,FALSE),\"\")","v":"P"},{"$f":"IFERROR(VLOOKUP(RicercaStudente,FrequenzaAgosto[],14,FALSE),\"\")","v":"P"},{"$f":"IFERROR(VLOOKUP(RicercaStudente,FrequenzaAgosto[],15,FALSE),\"\")","v":"S"},{"$f":"IFERROR(VLOOKUP(RicercaStudente,FrequenzaAgosto[],16,FALSE),\"\")","v":"S"},{"$f":"IFERROR(VLOOKUP(RicercaStudente,FrequenzaAgosto[],17,FALSE),\"\")","v":"P"},{"$f":"IFERROR(VLOOKUP(RicercaStudente,FrequenzaAgosto[],18,FALSE),\"\")","v":"P"},{"$f":"IFERROR(VLOOKUP(RicercaStudente,FrequenzaAgosto[],19,FALSE),\"\")","v":"P"},{"$f":"IFERROR(VLOOKUP(RicercaStudente,FrequenzaAgosto[],20,FALSE),\"\")","v":"P"},{"$f":"IFERROR(VLOOKUP(RicercaStudente,FrequenzaAgosto[],21,FALSE),\"\")","v":"P"},{"$f":"IFERROR(VLOOKUP(RicercaStudente,FrequenzaAgosto[],22,FALSE),\"\")","v":"S"},{"$f":"IFERROR(VLOOKUP(RicercaStudente,FrequenzaAgosto[],23,FALSE),\"\")","v":"S"},{"$f":"IFERROR(VLOOKUP(RicercaStudente,FrequenzaAgosto[],24,FALSE),\"\")","v":"P"},{"$f":"IFERROR(VLOOKUP(RicercaStudente,FrequenzaAgosto[],25,FALSE),\"\")","v":"P"},{"$f":"IFERROR(VLOOKUP(RicercaStudente,FrequenzaAgosto[],26,FALSE),\"\")","v":"P"},{"$f":"IFERROR(VLOOKUP(RicercaStudente,FrequenzaAgosto[],27,FALSE),\"\")","v":"P"},{"$f":"IFERROR(VLOOKUP(RicercaStudente,FrequenzaAgosto[],28,FALSE),\"\")","v":"P"},{"$f":"IFERROR(VLOOKUP(RicercaStudente,FrequenzaAgosto[],29,FALSE),\"\")","v":"S"},{"$f":"IFERROR(VLOOKUP(RicercaStudente,FrequenzaAgosto[],30,FALSE),\"\")","v":"S"},{"$f":"IFERROR(VLOOKUP(RicercaStudente,FrequenzaAgosto[],31,FALSE),\"\")","v":"P"},{"$f":"IFERROR(VLOOKUP(RicercaStudente,FrequenzaAgosto[],32,FALSE),\"\")","v":"P"},{"$f":"IFERROR(VLOOKUP(RicercaStudente,FrequenzaAgosto[],33,FALSE),\"\")","v":"P"}]
[null,"Settembre",1,2,3,4,5,6,7,8,9,10,11,12,13,14,15,16,17,18,19,20,21,22,23,24,25,26,27,28,29,30,null,{"$f":"COUNTIF($D19:$AH19,Codice1)","v":0},{"$f":"COUNTIF($D19:$AH19,Codice2)","v":0},{"$f":"COUNTIF($D19:$AH19,Codice3)","v":0},{"$f":"COUNTIF($D19:$AH19,Codice4)","v":0}]
[null,null,{"$f":"IFERROR(VLOOKUP(RicercaStudente,FrequenzaSettembre[],3,FALSE),\"\")","v":""},{"$f":"IFERROR(VLOOKUP(RicercaStudente,FrequenzaSettembre[],4,FALSE),\"\")","v":""},{"$f":"IFERROR(VLOOKUP(RicercaStudente,FrequenzaSettembre[],5,FALSE),\"\")","v":""},{"$f":"IFERROR(VLOOKUP(RicercaStudente,FrequenzaSettembre[],6,FALSE),\"\")","v":""},{"$f":"IFERROR(VLOOKUP(RicercaStudente,FrequenzaSettembre[],7,FALSE),\"\")","v":""},{"$f":"IFERROR(VLOOKUP(RicercaStudente,FrequenzaSettembre[],8,FALSE),\"\")","v":""},{"$f":"IFERROR(VLOOKUP(RicercaStudente,FrequenzaSettembre[],9,FALSE),\"\")","v":""},{"$f":"IFERROR(VLOOKUP(RicercaStudente,FrequenzaSettembre[],10,FALSE),\"\")","v":""},{"$f":"IFERROR(VLOOKUP(RicercaStudente,FrequenzaSettembre[],11,FALSE),\"\")","v":""},{"$f":"IFERROR(VLOOKUP(RicercaStudente,FrequenzaSettembre[],12,FALSE),\"\")","v":""},{"$f":"IFERROR(VLOOKUP(RicercaStudente,FrequenzaSettembre[],13,FALSE),\"\")","v":""},{"$f":"IFERROR(VLOOKUP(RicercaStudente,FrequenzaSettembre[],14,FALSE),\"\")","v":""},{"$f":"IFERROR(VLOOKUP(RicercaStudente,FrequenzaSettembre[],15,FALSE),\"\")","v":""},{"$f":"IFERROR(VLOOKUP(RicercaStudente,FrequenzaSettembre[],16,FALSE),\"\")","v":""},{"$f":"IFERROR(VLOOKUP(RicercaStudente,FrequenzaSettembre[],17,FALSE),\"\")","v":""},{"$f":"IFERROR(VLOOKUP(RicercaStudente,FrequenzaSettembre[],18,FALSE),\"\")","v":""},{"$f":"IFERROR(VLOOKUP(RicercaStudente,FrequenzaSettembre[],19,FALSE),\"\")","v":""},{"$f":"IFERROR(VLOOKUP(RicercaStudente,FrequenzaSettembre[],20,FALSE),\"\")","v":""},{"$f":"IFERROR(VLOOKUP(RicercaStudente,FrequenzaSettembre[],21,FALSE),\"\")","v":""},{"$f":"IFERROR(VLOOKUP(RicercaStudente,FrequenzaSettembre[],22,FALSE),\"\")","v":""},{"$f":"IFERROR(VLOOKUP(RicercaStudente,FrequenzaSettembre[],23,FALSE),\"\")","v":""},{"$f":"IFERROR(VLOOKUP(RicercaStudente,FrequenzaSettembre[],24,FALSE),\"\")","v":""},{"$f":"IFERROR(VLOOKUP(RicercaStudente,FrequenzaSettembre[],25,FALSE),\"\")","v":""},{"$f":"IFERROR(VLOOKUP(RicercaStudente,FrequenzaSettembre[],26,FALSE),\"\")","v":""},{"$f":"IFERROR(VLOOKUP(RicercaStudente,FrequenzaSettembre[],27,FALSE),\"\")","v":""},{"$f":"IFERROR(VLOOKUP(RicercaStudente,FrequenzaSettembre[],28,FALSE),\"\")","v":""},{"$f":"IFERROR(VLOOKUP(RicercaStudente,FrequenzaSettembre[],29,FALSE),\"\")","v":""},{"$f":"IFERROR(VLOOKUP(RicercaStudente,FrequenzaSettembre[],30,FALSE),\"\")","v":""},{"$f":"IFERROR(VLOOKUP(RicercaStudente,FrequenzaSettembre[],31,FALSE),\"\")","v":""},{"$f":"IFERROR(VLOOKUP(RicercaStudente,FrequenzaSettembre[],32,FALSE),\"\")","v":""}]
[null,"Ottobre",1,2,3,4,5,6,7,8,9,10,11,12,13,14,15,16,17,18,19,20,21,22,23,24,25,26,27,28,29,30,31,{"$f":"COUNTIF($D21:$AH21,Codice1)","v":0},{"$f":"COUNTIF($D21:$AH21,Codice2)","v":0},{"$f":"COUNTIF($D21:$AH21,Codice3)","v":0},{"$f":"COUNTIF($D21:$AH21,Codice4)","v":0}]
[null,null,{"$f":"IFERROR(VLOOKUP(RicercaStudente,FrequenzaOttobre[],3,FALSE),\"\")","v":""},{"$f":"IFERROR(VLOOKUP(RicercaStudente,FrequenzaOttobre[],4,FALSE),\"\")","v":""},{"$f":"IFERROR(VLOOKUP(RicercaStudente,FrequenzaOttobre[],5,FALSE),\"\")","v":""},{"$f":"IFERROR(VLOOKUP(RicercaStudente,FrequenzaOttobre[],6,FALSE),\"\")","v":""},{"$f":"IFERROR(VLOOKUP(RicercaStudente,FrequenzaOttobre[],7,FALSE),\"\")","v":""},{"$f":"IFERROR(VLOOKUP(RicercaStudente,FrequenzaOttobre[],8,FALSE),\"\")","v":""},{"$f":"IFERROR(VLOOKUP(RicercaStudente,FrequenzaOttobre[],9,FALSE),\"\")","v":""},{"$f":"IFERROR(VLOOKUP(RicercaStudente,FrequenzaOttobre[],10,FALSE),\"\")","v":""},{"$f":"IFERROR(VLOOKUP(RicercaStudente,FrequenzaOttobre[],11,FALSE),\"\")","v":""},{"$f":"IFERROR(VLOOKUP(RicercaStudente,FrequenzaOttobre[],12,FALSE),\"\")","v":""},{"$f":"IFERROR(VLOOKUP(RicercaStudente,FrequenzaOttobre[],13,FALSE),\"\")","v":""},{"$f":"IFERROR(VLOOKUP(RicercaStudente,FrequenzaOttobre[],14,FALSE),\"\")","v":""},{"$f":"IFERROR(VLOOKUP(RicercaStudente,FrequenzaOttobre[],15,FALSE),\"\")","v":""},{"$f":"IFERROR(VLOOKUP(RicercaStudente,FrequenzaOttobre[],16,FALSE),\"\")","v":""},{"$f":"IFERROR(VLOOKUP(RicercaStudente,FrequenzaOttobre[],17,FALSE),\"\")","v":""},{"$f":"IFERROR(VLOOKUP(RicercaStudente,FrequenzaOttobre[],18,FALSE),\"\")","v":""},{"$f":"IFERROR(VLOOKUP(RicercaStudente,FrequenzaOttobre[],19,FALSE),\"\")","v":""},{"$f":"IFERROR(VLOOKUP(RicercaStudente,FrequenzaOttobre[],20,FALSE),\"\")","v":""},{"$f":"IFERROR(VLOOKUP(RicercaStudente,FrequenzaOttobre[],21,FALSE),\"\")","v":""},{"$f":"IFERROR(VLOOKUP(RicercaStudente,FrequenzaOttobre[],22,FALSE),\"\")","v":""},{"$f":"IFERROR(VLOOKUP(RicercaStudente,FrequenzaOttobre[],23,FALSE),\"\")","v":""},{"$f":"IFERROR(VLOOKUP(RicercaStudente,FrequenzaOttobre[],24,FALSE),\"\")","v":""},{"$f":"IFERROR(VLOOKUP(RicercaStudente,FrequenzaOttobre[],25,FALSE),\"\")","v":""},{"$f":"IFERROR(VLOOKUP(RicercaStudente,FrequenzaOttobre[],26,FALSE),\"\")","v":""},{"$f":"IFERROR(VLOOKUP(RicercaStudente,FrequenzaOttobre[],27,FALSE),\"\")","v":""},{"$f":"IFERROR(VLOOKUP(RicercaStudente,FrequenzaOttobre[],28,FALSE),\"\")","v":""},{"$f":"IFERROR(VLOOKUP(RicercaStudente,FrequenzaOttobre[],29,FALSE),\"\")","v":""},{"$f":"IFERROR(VLOOKUP(RicercaStudente,FrequenzaOttobre[],30,FALSE),\"\")","v":""},{"$f":"IFERROR(VLOOKUP(RicercaStudente,FrequenzaOttobre[],31,FALSE),\"\")","v":""},{"$f":"IFERROR(VLOOKUP(RicercaStudente,FrequenzaOttobre[],32,FALSE),\"\")","v":""},{"$f":"IFERROR(VLOOKUP(RicercaStudente,FrequenzaOttobre[],33,FALSE),\"\")","v":""}]
[null,"Novembre",1,2,3,4,5,6,7,8,9,10,11,12,13,14,15,16,17,18,19,20,21,22,23,24,25,26,27,28,29,30,null,{"$f":"COUNTIF($D23:$AH23,Codice1)","v":0},{"$f":"COUNTIF($D23:$AH23,Codice2)","v":0},{"$f":"COUNTIF($D23:$AH23,Codice3)","v":0},{"$f":"COUNTIF($D23:$AH23,Codice4)","v":0}]
[null,null,{"$f":"IFERROR(VLOOKUP(RicercaStudente,FrequenzaNovembre[],3,FALSE),\"\")","v":""},{"$f":"IFERROR(VLOOKUP(RicercaStudente,FrequenzaNovembre[],4,FALSE),\"\")","v":""},{"$f":"IFERROR(VLOOKUP(RicercaStudente,FrequenzaNovembre[],5,FALSE),\"\")","v":""},{"$f":"IFERROR(VLOOKUP(RicercaStudente,FrequenzaNovembre[],6,FALSE),\"\")","v":""},{"$f":"IFERROR(VLOOKUP(RicercaStudente,FrequenzaNovembre[],7,FALSE),\"\")","v":""},{"$f":"IFERROR(VLOOKUP(RicercaStudente,FrequenzaNovembre[],8,FALSE),\"\")","v":""},{"$f":"IFERROR(VLOOKUP(RicercaStudente,FrequenzaNovembre[],9,FALSE),\"\")","v":""},{"$f":"IFERROR(VLOOKUP(RicercaStudente,FrequenzaNovembre[],10,FALSE),\"\")","v":""},{"$f":"IFERROR(VLOOKUP(RicercaStudente,FrequenzaNovembre[],11,FALSE),\"\")","v":""},{"$f":"IFERROR(VLOOKUP(RicercaStudente,FrequenzaNovembre[],12,FALSE),\"\")","v":""},{"$f":"IFERROR(VLOOKUP(RicercaStudente,FrequenzaNovembre[],13,FALSE),\"\")","v":""},{"$f":"IFERROR(VLOOKUP(RicercaStudente,FrequenzaNovembre[],14,FALSE),\"\")","v":""},{"$f":"IFERROR(VLOOKUP(RicercaStudente,FrequenzaNovembre[],15,FALSE),\"\")","v":""},{"$f":"IFERROR(VLOOKUP(RicercaStudente,FrequenzaNovembre[],16,FALSE),\"\")","v":""},{"$f":"IFERROR(VLOOKUP(RicercaStudente,FrequenzaNovembre[],17,FALSE),\"\")","v":""},{"$f":"IFERROR(VLOOKUP(RicercaStudente,FrequenzaNovembre[],18,FALSE),\"\")","v":""},{"$f":"IFERROR(VLOOKUP(RicercaStudente,FrequenzaNovembre[],19,FALSE),\"\")","v":""},{"$f":"IFERROR(VLOOKUP(RicercaStudente,FrequenzaNovembre[],20,FALSE),\"\")","v":""},{"$f":"IFERROR(VLOOKUP(RicercaStudente,FrequenzaNovembre[],21,FALSE),\"\")","v":""},{"$f":"IFERROR(VLOOKUP(RicercaStudente,FrequenzaNovembre[],22,FALSE),\"\")","v":""},{"$f":"IFERROR(VLOOKUP(RicercaStudente,FrequenzaNovembre[],23,FALSE),\"\")","v":""},{"$f":"IFERROR(VLOOKUP(RicercaStudente,FrequenzaNovembre[],24,FALSE),\"\")","v":""},{"$f":"IFERROR(VLOOKUP(RicercaStudente,FrequenzaNovembre[],25,FALSE),\"\")","v":""},{"$f":"IFERROR(VLOOKUP(RicercaStudente,FrequenzaNovembre[],26,FALSE),\"\")","v":""},{"$f":"IFERROR(VLOOKUP(RicercaStudente,FrequenzaNovembre[],27,FALSE),\"\")","v":""},{"$f":"IFERROR(VLOOKUP(RicercaStudente,FrequenzaNovembre[],28,FALSE),\"\")","v":""},{"$f":"IFERROR(VLOOKUP(RicercaStudente,FrequenzaNovembre[],29,FALSE),\"\")","v":""},{"$f":"IFERROR(VLOOKUP(RicercaStudente,FrequenzaNovembre[],30,FALSE),\"\")","v":""},{"$f":"IFERROR(VLOOKUP(RicercaStudente,FrequenzaNovembre[],31,FALSE),\"\")","v":""},{"$f":"IFERROR(VLOOKUP(RicercaStudente,FrequenzaNovembre[],32,FALSE),\"\")","v":""}]
[null,"Dicembre",1,2,3,4,5,6,7,8,9,10,11,12,13,14,15,16,17,18,19,20,21,22,23,24,25,26,27,28,29,30,31,{"$f":"COUNTIF($D25:$AH25,Codice1)","v":0},{"$f":"COUNTIF($D25:$AH25,Codice2)","v":0},{"$f":"COUNTIF($D25:$AH25,Codice3)","v":0},{"$f":"COUNTIF($D25:$AH25,Codice4)","v":0}]
[null,null,{"$f":"IFERROR(VLOOKUP(RicercaStudente,FrequenzaDicembre[],3,FALSE),\"\")","v":""},{"$f":"IFERROR(VLOOKUP(RicercaStudente,FrequenzaDicembre[],4,FALSE),\"\")","v":""},{"$f":"IFERROR(VLOOKUP(RicercaStudente,FrequenzaDicembre[],5,FALSE),\"\")","v":""},{"$f":"IFERROR(VLOOKUP(RicercaStudente,FrequenzaDicembre[],6,FALSE),\"\")","v":""},{"$f":"IFERROR(VLOOKUP(RicercaStudente,FrequenzaDicembre[],7,FALSE),\"\")","v":""},{"$f":"IFERROR(VLOOKUP(RicercaStudente,FrequenzaDicembre[],8,FALSE),\"\")","v":""},{"$f":"IFERROR(VLOOKUP(RicercaStudente,FrequenzaDicembre[],9,FALSE),\"\")","v":""},{"$f":"IFERROR(VLOOKUP(RicercaStudente,FrequenzaDicembre[],10,FALSE),\"\")","v":""},{"$f":"IFERROR(VLOOKUP(RicercaStudente,FrequenzaDicembre[],11,FALSE),\"\")","v":""},{"$f":"IFERROR(VLOOKUP(RicercaStudente,FrequenzaDicembre[],12,FALSE),\"\")","v":""},{"$f":"IFERROR(VLOOKUP(RicercaStudente,FrequenzaDicembre[],13,FALSE),\"\")","v":""},{"$f":"IFERROR(VLOOKUP(RicercaStudente,FrequenzaDicembre[],14,FALSE),\"\")","v":""},{"$f":"IFERROR(VLOOKUP(RicercaStudente,FrequenzaDicembre[],15,FALSE),\"\")","v":""},{"$f":"IFERROR(VLOOKUP(RicercaStudente,FrequenzaDicembre[],16,FALSE),\"\")","v":""},{"$f":"IFERROR(VLOOKUP(RicercaStudente,FrequenzaDicembre[],17,FALSE),\"\")","v":""},{"$f":"IFERROR(VLOOKUP(RicercaStudente,FrequenzaDicembre[],18,FALSE),\"\")","v":""},{"$f":"IFERROR(VLOOKUP(RicercaStudente,FrequenzaDicembre[],19,FALSE),\"\")","v":""},{"$f":"IFERROR(VLOOKUP(RicercaStudente,FrequenzaDicembre[],20,FALSE),\"\")","v":""},{"$f":"IFERROR(VLOOKUP(RicercaStudente,FrequenzaDicembre[],21,FALSE),\"\")","v":""},{"$f":"IFERROR(VLOOKUP(RicercaStudente,FrequenzaDicembre[],22,FALSE),\"\")","v":""},{"$f":"IFERROR(VLOOKUP(RicercaStudente,FrequenzaDicembre[],23,FALSE),\"\")","v":""},{"$f":"IFERROR(VLOOKUP(RicercaStudente,FrequenzaDicembre[],24,FALSE),\"\")","v":""},{"$f":"IFERROR(VLOOKUP(RicercaStudente,FrequenzaDicembre[],25,FALSE),\"\")","v":""},{"$f":"IFERROR(VLOOKUP(RicercaStudente,FrequenzaDicembre[],26,FALSE),\"\")","v":""},{"$f":"IFERROR(VLOOKUP(RicercaStudente,FrequenzaDicembre[],27,FALSE),\"\")","v":""},{"$f":"IFERROR(VLOOKUP(RicercaStudente,FrequenzaDicembre[],28,FALSE),\"\")","v":""},{"$f":"IFERROR(VLOOKUP(RicercaStudente,FrequenzaDicembre[],29,FALSE),\"\")","v":""},{"$f":"IFERROR(VLOOKUP(RicercaStudente,FrequenzaDicembre[],30,FALSE),\"\")","v":""},{"$f":"IFERROR(VLOOKUP(RicercaStudente,FrequenzaDicembre[],31,FALSE),\"\")","v":""},{"$f":"IFERROR(VLOOKUP(RicercaStudente,FrequenzaDicembre[],32,FALSE),\"\")","v":""},{"$f":"IFERROR(VLOOKUP(RicercaStudente,FrequenzaDicembre[],33,FALSE),\"\")","v":""}]
[null,"Gennaio",1,2,3,4,5,6,7,8,9,10,11,12,13,14,15,16,17,18,19,20,21,22,23,24,25,26,27,28,29,30,31,{"$f":"COUNTIF($D27:$AH27,Codice1)","v":0},{"$f":"COUNTIF($D27:$AH27,Codice2)","v":0},{"$f":"COUNTIF($D27:$AH27,Codice3)","v":0},{"$f":"COUNTIF($D27:$AH27,Codice4)","v":0}]
[null,null,{"$f":"IFERROR(VLOOKUP(RicercaStudente,FrequenzaGennaio[],3,FALSE),\"\")","v":""},{"$f":"IFERROR(VLOOKUP(RicercaStudente,FrequenzaGennaio[],4,FALSE),\"\")","v":""},{"$f":"IFERROR(VLOOKUP(RicercaStudente,FrequenzaGennaio[],5,FALSE),\"\")","v":""},{"$f":"IFERROR(VLOOKUP(RicercaStudente,FrequenzaGennaio[],6,FALSE),\"\")","v":""},{"$f":"IFERROR(VLOOKUP(RicercaStudente,FrequenzaGennaio[],7,FALSE),\"\")","v":""},{"$f":"IFERROR(VLOOKUP(RicercaStudente,FrequenzaGennaio[],8,FALSE),\"\")","v":""},{"$f":"IFERROR(VLOOKUP(RicercaStudente,FrequenzaGennaio[],9,FALSE),\"\")","v":""},{"$f":"IFERROR(VLOOKUP(RicercaStudente,FrequenzaGennaio[],10,FALSE),\"\")","v":""},{"$f":"IFERROR(VLOOKUP(RicercaStudente,FrequenzaGennaio[],11,FALSE),\"\")","v":""},{"$f":"IFERROR(VLOOKUP(RicercaStudente,FrequenzaGennaio[],12,FALSE),\"\")","v":""},{"$f":"IFERROR(VLOOKUP(RicercaStudente,FrequenzaGennaio[],13,FALSE),\"\")","v":""},{"$f":"IFERROR(VLOOKUP(RicercaStudente,FrequenzaGennaio[],14,FALSE),\"\")","v":""},{"$f":"IFERROR(VLOOKUP(RicercaStudente,FrequenzaGennaio[],15,FALSE),\"\")","v":""},{"$f":"IFERROR(VLOOKUP(RicercaStudente,FrequenzaGennaio[],16,FALSE),\"\")","v":""},{"$f":"IFERROR(VLOOKUP(RicercaStudente,FrequenzaGennaio[],17,FALSE),\"\")","v":""},{"$f":"IFERROR(VLOOKUP(RicercaStudente,FrequenzaGennaio[],18,FALSE),\"\")","v":""},{"$f":"IFERROR(VLOOKUP(RicercaStudente,FrequenzaGennaio[],19,FALSE),\"\")","v":""},{"$f":"IFERROR(VLOOKUP(RicercaStudente,FrequenzaGennaio[],20,FALSE),\"\")","v":""},{"$f":"IFERROR(VLOOKUP(RicercaStudente,FrequenzaGennaio[],21,FALSE),\"\")","v":""},{"$f":"IFERROR(VLOOKUP(RicercaStudente,FrequenzaGennaio[],22,FALSE),\"\")","v":""},{"$f":"IFERROR(VLOOKUP(RicercaStudente,FrequenzaGennaio[],23,FALSE),\"\")","v":""},{"$f":"IFERROR(VLOOKUP(RicercaStudente,FrequenzaGennaio[],24,FALSE),\"\")","v":""},{"$f":"IFERROR(VLOOKUP(RicercaStudente,FrequenzaGennaio[],25,FALSE),\"\")","v":""},{"$f":"IFERROR(VLOOKUP(RicercaStudente,FrequenzaGennaio[],26,FALSE),\"\")","v":""},{"$f":"IFERROR(VLOOKUP(RicercaStudente,FrequenzaGennaio[],27,FALSE),\"\")","v":""},{"$f":"IFERROR(VLOOKUP(RicercaStudente,FrequenzaGennaio[],28,FALSE),\"\")","v":""},{"$f":"IFERROR(VLOOKUP(RicercaStudente,FrequenzaGennaio[],29,FALSE),\"\")","v":""},{"$f":"IFERROR(VLOOKUP(RicercaStudente,FrequenzaGennaio[],30,FALSE),\"\")","v":""},{"$f":"IFERROR(VLOOKUP(RicercaStudente,FrequenzaGennaio[],31,FALSE),\"\")","v":""},{"$f":"IFERROR(VLOOKUP(RicercaStudente,FrequenzaGennaio[],32,FALSE),\"\")","v":""},{"$f":"IFERROR(VLOOKUP(RicercaStudente,FrequenzaGennaio[],33,FALSE),\"\")","v":""}]
[null,"Febbraio",1,2,3,4,5,6,7,8,9,10,11,12,13,14,15,16,17,18,19,20,21,22,23,24,25,26,27,28,29,null,null,{"$f":"COUNTIF($D29:$AH29,Codice1)","v":0},{"$f":"COUNTIF($D29:$AH29,Codice2)","v":0},{"$f":"COUNTIF($D29:$AH29,Codice3)","v":0},{"$f":"COUNTIF($D29:$AH29,Codice4)","v":0}]
[null,null,{"$f":"IFERROR(VLOOKUP(RicercaStudente,FrequenzaFebbraio[],3,FALSE),\"\")","v":""},{"$f":"IFERROR(VLOOKUP(RicercaStudente,FrequenzaFebbraio[],4,FALSE),\"\")","v":""},{"$f":"IFERROR(VLOOKUP(RicercaStudente,FrequenzaFebbraio[],5,FALSE),\"\")","v":""},{"$f":"IFERROR(VLOOKUP(RicercaStudente,FrequenzaFebbraio[],6,FALSE),\"\")","v":""},{"$f":"IFERROR(VLOOKUP(RicercaStudente,FrequenzaFebbraio[],7,FALSE),\"\")","v":""},{"$f":"IFERROR(VLOOKUP(RicercaStudente,FrequenzaFebbraio[],8,FALSE),\"\")","v":""},{"$f":"IFERROR(VLOOKUP(RicercaStudente,FrequenzaFebbraio[],9,FALSE),\"\")","v":""},{"$f":"IFERROR(VLOOKUP(RicercaStudente,FrequenzaFebbraio[],10,FALSE),\"\")","v":""},{"$f":"IFERROR(VLOOKUP(RicercaStudente,FrequenzaFebbraio[],11,FALSE),\"\")","v":""},{"$f":"IFERROR(VLOOKUP(RicercaStudente,FrequenzaFebbraio[],12,FALSE),\"\")","v":""},{"$f":"IFERROR(VLOOKUP(RicercaStudente,FrequenzaFebbraio[],13,FALSE),\"\")","v":""},{"$f":"IFERROR(VLOOKUP(RicercaStudente,FrequenzaFebbraio[],14,FALSE),\"\")","v":""},{"$f":"IFERROR(VLOOKUP(RicercaStudente,FrequenzaFebbraio[],15,FALSE),\"\")","v":""},{"$f":"IFERROR(VLOOKUP(RicercaStudente,FrequenzaFebbraio[],16,FALSE),\"\")","v":""},{"$f":"IFERROR(VLOOKUP(RicercaStudente,FrequenzaFebbraio[],17,FALSE),\"\")","v":""},{"$f":"IFERROR(VLOOKUP(RicercaStudente,FrequenzaFebbraio[],18,FALSE),\"\")","v":""},{"$f":"IFERROR(VLOOKUP(RicercaStudente,FrequenzaFebbraio[],19,FALSE),\"\")","v":""},{"$f":"IFERROR(VLOOKUP(RicercaStudente,FrequenzaFebbraio[],20,FALSE),\"\")","v":""},{"$f":"IFERROR(VLOOKUP(RicercaStudente,FrequenzaFebbraio[],21,FALSE),\"\")","v":""},{"$f":"IFERROR(VLOOKUP(RicercaStudente,FrequenzaFebbraio[],22,FALSE),\"\")","v":""},{"$f":"IFERROR(VLOOKUP(RicercaStudente,FrequenzaFebbraio[],23,FALSE),\"\")","v":""},{"$f":"IFERROR(VLOOKUP(RicercaStudente,FrequenzaFebbraio[],24,FALSE),\"\")","v":""},{"$f":"IFERROR(VLOOKUP(RicercaStudente,FrequenzaFebbraio[],25,FALSE),\"\")","v":""},{"$f":"IFERROR(VLOOKUP(RicercaStudente,FrequenzaFebbraio[],26,FALSE),\"\")","v":""},{"$f":"IFERROR(VLOOKUP(RicercaStudente,FrequenzaFebbraio[],27,FALSE),\"\")","v":""},{"$f":"IFERROR(VLOOKUP(RicercaStudente,FrequenzaFebbraio[],28,FALSE),\"\")","v":""},{"$f":"IFERROR(VLOOKUP(RicercaStudente,FrequenzaFebbraio[],29,FALSE),\"\")","v":""},{"$f":"IFERROR(VLOOKUP(RicercaStudente,FrequenzaFebbraio[],30,FALSE),\"\")","v":""},{"$f":"IFERROR(VLOOKUP(RicercaStudente,FrequenzaFebbraio[],31,FALSE),\"\")","v":""}]
[null,"Marzo",1,2,3,4,5,6,7,8,9,10,11,12,13,14,15,16,17,18,19,20,21,22,23,24,25,26,27,28,29,30,31,{"$f":"COUNTIF($D31:$AH31,Codice1)","v":0},{"$f":"COUNTIF($D31:$AH31,Codice2)","v":0},{"$f":"COUNTIF($D31:$AH31,Codice3)","v":0},{"$f":"COUNTIF($D31:$AH31,Codice4)","v":0}]
[null,null,{"$f":"IFERROR(VLOOKUP(RicercaStudente,FrequenzaMarzo[],3,FALSE),\"\")","v":""},{"$f":"IFERROR(VLOOKUP(RicercaStudente,FrequenzaMarzo[],4,FALSE),\"\")","v":""},{"$f":"IFERROR(VLOOKUP(RicercaStudente,FrequenzaMarzo[],5,FALSE),\"\")","v":""},{"$f":"IFERROR(VLOOKUP(RicercaStudente,FrequenzaMarzo[],6,FALSE),\"\")","v":""},{"$f":"IFERROR(VLOOKUP(RicercaStudente,FrequenzaMarzo[],7,FALSE),\"\")","v":""},{"$f":"IFERROR(VLOOKUP(RicercaStudente,FrequenzaMarzo[],8,FALSE),\"\")","v":""},{"$f":"IFERROR(VLOOKUP(RicercaStudente,FrequenzaMarzo[],9,FALSE),\"\")","v":""},{"$f":"IFERROR(VLOOKUP(RicercaStudente,FrequenzaMarzo[],10,FALSE),\"\")","v":""},{"$f":"IFERROR(VLOOKUP(RicercaStudente,FrequenzaMarzo[],11,FALSE),\"\")","v":""},{"$f":"IFERROR(VLOOKUP(RicercaStudente,FrequenzaMarzo[],12,FALSE),\"\")","v":""},{"$f":"IFERROR(VLOOKUP(RicercaStudente,FrequenzaMarzo[],13,FALSE),\"\")","v":""},{"$f":"IFERROR(VLOOKUP(RicercaStudente,FrequenzaMarzo[],14,FALSE),\"\")","v":""},{"$f":"IFERROR(VLOOKUP(RicercaStudente,FrequenzaMarzo[],15,FALSE),\"\")","v":""},{"$f":"IFERROR(VLOOKUP(RicercaStudente,FrequenzaMarzo[],16,FALSE),\"\")","v":""},{"$f":"IFERROR(VLOOKUP(RicercaStudente,FrequenzaMarzo[],17,FALSE),\"\")","v":""},{"$f":"IFERROR(VLOOKUP(RicercaStudente,FrequenzaMarzo[],18,FALSE),\"\")","v":""},{"$f":"IFERROR(VLOOKUP(RicercaStudente,FrequenzaMarzo[],19,FALSE),\"\")","v":""},{"$f":"IFERROR(VLOOKUP(RicercaStudente,FrequenzaMarzo[],20,FALSE),\"\")","v":""},{"$f":"IFERROR(VLOOKUP(RicercaStudente,FrequenzaMarzo[],21,FALSE),\"\")","v":""},{"$f":"IFERROR(VLOOKUP(RicercaStudente,FrequenzaMarzo[],22,FALSE),\"\")","v":""},{"$f":"IFERROR(VLOOKUP(RicercaStudente,FrequenzaMarzo[],23,FALSE),\"\")","v":""},{"$f":"IFERROR(VLOOKUP(RicercaStudente,FrequenzaMarzo[],24,FALSE),\"\")","v":""},{"$f":"IFERROR(VLOOKUP(RicercaStudente,FrequenzaMarzo[],25,FALSE),\"\")","v":""},{"$f":"IFERROR(VLOOKUP(RicercaStudente,FrequenzaMarzo[],26,FALSE),\"\")","v":""},{"$f":"IFERROR(VLOOKUP(RicercaStudente,FrequenzaMarzo[],27,FALSE),\"\")","v":""},{"$f":"IFERROR(VLOOKUP(RicercaStudente,FrequenzaMarzo[],28,FALSE),\"\")","v":""},{"$f":"IFERROR(VLOOKUP(RicercaStudente,FrequenzaMarzo[],29,FALSE),\"\")","v":""},{"$f":"IFERROR(VLOOKUP(RicercaStudente,FrequenzaMarzo[],30,FALSE),\"\")","v":""},{"$f":"IFERROR(VLOOKUP(RicercaStudente,FrequenzaMarzo[],31,FALSE),\"\")","v":""},{"$f":"IFERROR(VLOOKUP(RicercaStudente,FrequenzaMarzo[],32,FALSE),\"\")","v":""},{"$f":"IFERROR(VLOOKUP(RicercaStudente,FrequenzaMarzo[],33,FALSE),\"\")","v":""}]
[null,"Aprile",1,2,3,4,5,6,7,8,9,10,11,12,13,14,15,16,17,18,19,20,21,22,23,24,25,26,27,28,29,30,null,{"$f":"COUNTIF($D33:$AH33,Codice1)","v":0},{"$f":"COUNTIF($D33:$AH33,Codice2)","v":0},{"$f":"COUNTIF($D33:$AH33,Codice3)","v":0},{"$f":"COUNTIF($D33:$AH33,Codice4)","v":0}]
[null,null,{"$f":"IFERROR(VLOOKUP(RicercaStudente,FrequenzaAprile[],3,FALSE),\"\")","v":""},{"$f":"IFERROR(VLOOKUP(RicercaStudente,FrequenzaAprile[],4,FALSE),\"\")","v":""},{"$f":"IFERROR(VLOOKUP(RicercaStudente,FrequenzaAprile[],5,FALSE),\"\")","v":""},{"$f":"IFERROR(VLOOKUP(RicercaStudente,FrequenzaAprile[],6,FALSE),\"\")","v":""},{"$f":"IFERROR(VLOOKUP(RicercaStudente,FrequenzaAprile[],7,FALSE),\"\")","v":""},{"$f":"IFERROR(VLOOKUP(RicercaStudente,FrequenzaAprile[],8,FALSE),\"\")","v":""},{"$f":"IFERROR(VLOOKUP(RicercaStudente,FrequenzaAprile[],9,FALSE),\"\")","v":""},{"$f":"IFERROR(VLOOKUP(RicercaStudente,FrequenzaAprile[],10,FALSE),\"\")","v":""},{"$f":"IFERROR(VLOOKUP(RicercaStudente,FrequenzaAprile[],11,FALSE),\"\")","v":""},{"$f":"IFERROR(VLOOKUP(RicercaStudente,FrequenzaAprile[],12,FALSE),\"\")","v":""},{"$f":"IFERROR(VLOOKUP(RicercaStudente,FrequenzaAprile[],13,FALSE),\"\")","v":""},{"$f":"IFERROR(VLOOKUP(RicercaStudente,FrequenzaAprile[],14,FALSE),\"\")","v":""},{"$f":"IFERROR(VLOOKUP(RicercaStudente,FrequenzaAprile[],15,FALSE),\"\")","v":""},{"$f":"IFERROR(VLOOKUP(RicercaStudente,FrequenzaAprile[],16,FALSE),\"\")","v":""},{"$f":"IFERROR(VLOOKUP(RicercaStudente,FrequenzaAprile[],17,FALSE),\"\")","v":""},{"$f":"IFERROR(VLOOKUP(RicercaStudente,FrequenzaAprile[],18,FALSE),\"\")","v":""},{"$f":"IFERROR(VLOOKUP(RicercaStudente,FrequenzaAprile[],19,FALSE),\"\")","v":""},{"$f":"IFERROR(VLOOKUP(RicercaStudente,FrequenzaAprile[],20,FALSE),\"\")","v":""},{"$f":"IFERROR(VLOOKUP(RicercaStudente,FrequenzaAprile[],21,FALSE),\"\")","v":""},{"$f":"IFERROR(VLOOKUP(RicercaStudente,FrequenzaAprile[],22,FALSE),\"\")","v":""},{"$f":"IFERROR(VLOOKUP(RicercaStudente,FrequenzaAprile[],23,FALSE),\"\")","v":""},{"$f":"IFERROR(VLOOKUP(RicercaStudente,FrequenzaAprile[],24,FALSE),\"\")","v":""},{"$f":"IFERROR(VLOOKUP(RicercaStudente,FrequenzaAprile[],25,FALSE),\"\")","v":""},{"$f":"IFERROR(VLOOKUP(RicercaStudente,FrequenzaAprile[],26,FALSE),\"\")","v":""},{"$f":"IFERROR(VLOOKUP(RicercaStudente,FrequenzaAprile[],27,FALSE),\"\")","v":""},{"$f":"IFERROR(VLOOKUP(RicercaStudente,FrequenzaAprile[],28,FALSE),\"\")","v":""},{"$f":"IFERROR(VLOOKUP(RicercaStudente,FrequenzaAprile[],29,FALSE),\"\")","v":""},{"$f":"IFERROR(VLOOKUP(RicercaStudente,FrequenzaAprile[],30,FALSE),\"\")","v":""},{"$f":"IFERROR(VLOOKUP(RicercaStudente,FrequenzaAprile[],31,FALSE),\"\")","v":""},{"$f":"IFERROR(VLOOKUP(RicercaStudente,FrequenzaAprile[],32,FALSE),\"\")","v":""}]
[null,"Maggio",1,2,3,4,5,6,7,8,9,10,11,12,13,14,15,16,17,18,19,20,21,22,23,24,25,26,27,28,29,30,31,{"$f":"COUNTIF($D35:$AH35,Codice1)","v":0},{"$f":"COUNTIF($D35:$AH35,Codice2)","v":0},{"$f":"COUNTIF($D35:$AH35,Codice3)","v":0},{"$f":"COUNTIF($D35:$AH35,Codice4)","v":0}]
[null,null,{"$f":"IFERROR(VLOOKUP(RicercaStudente,FrequenzaMaggio[],3,FALSE),\"\")","v":""},{"$f":"IFERROR(VLOOKUP(RicercaStudente,FrequenzaMaggio[],4,FALSE),\"\")","v":""},{"$f":"IFERROR(VLOOKUP(RicercaStudente,FrequenzaMaggio[],5,FALSE),\"\")","v":""},{"$f":"IFERROR(VLOOKUP(RicercaStudente,FrequenzaMaggio[],6,FALSE),\"\")","v":""},{"$f":"IFERROR(VLOOKUP(RicercaStudente,FrequenzaMaggio[],7,FALSE),\"\")","v":""},{"$f":"IFERROR(VLOOKUP(RicercaStudente,FrequenzaMaggio[],8,FALSE),\"\")","v":""},{"$f":"IFERROR(VLOOKUP(RicercaStudente,FrequenzaMaggio[],9,FALSE),\"\")","v":""},{"$f":"IFERROR(VLOOKUP(RicercaStudente,FrequenzaMaggio[],10,FALSE),\"\")","v":""},{"$f":"IFERROR(VLOOKUP(RicercaStudente,FrequenzaMaggio[],11,FALSE),\"\")","v":""},{"$f":"IFERROR(VLOOKUP(RicercaStudente,FrequenzaMaggio[],12,FALSE),\"\")","v":""},{"$f":"IFERROR(VLOOKUP(RicercaStudente,FrequenzaMaggio[],13,FALSE),\"\")","v":""},{"$f":"IFERROR(VLOOKUP(RicercaStudente,FrequenzaMaggio[],14,FALSE),\"\")","v":""},{"$f":"IFERROR(VLOOKUP(RicercaStudente,FrequenzaMaggio[],15,FALSE),\"\")","v":""},{"$f":"IFERROR(VLOOKUP(RicercaStudente,FrequenzaMaggio[],16,FALSE),\"\")","v":""},{"$f":"IFERROR(VLOOKUP(RicercaStudente,FrequenzaMaggio[],17,FALSE),\"\")","v":""},{"$f":"IFERROR(VLOOKUP(RicercaStudente,FrequenzaMaggio[],18,FALSE),\"\")","v":""},{"$f":"IFERROR(VLOOKUP(RicercaStudente,FrequenzaMaggio[],19,FALSE),\"\")","v":""},{"$f":"IFERROR(VLOOKUP(RicercaStudente,FrequenzaMaggio[],20,FALSE),\"\")","v":""},{"$f":"IFERROR(VLOOKUP(RicercaStudente,FrequenzaMaggio[],21,FALSE),\"\")","v":""},{"$f":"IFERROR(VLOOKUP(RicercaStudente,FrequenzaMaggio[],22,FALSE),\"\")","v":""},{"$f":"IFERROR(VLOOKUP(RicercaStudente,FrequenzaMaggio[],23,FALSE),\"\")","v":""},{"$f":"IFERROR(VLOOKUP(RicercaStudente,FrequenzaMaggio[],24,FALSE),\"\")","v":""},{"$f":"IFERROR(VLOOKUP(RicercaStudente,FrequenzaMaggio[],25,FALSE),\"\")","v":""},{"$f":"IFERROR(VLOOKUP(RicercaStudente,FrequenzaMaggio[],26,FALSE),\"\")","v":""},{"$f":"IFERROR(VLOOKUP(RicercaStudente,FrequenzaMaggio[],27,FALSE),\"\")","v":""},{"$f":"IFERROR(VLOOKUP(RicercaStudente,FrequenzaMaggio[],28,FALSE),\"\")","v":""},{"$f":"IFERROR(VLOOKUP(RicercaStudente,FrequenzaMaggio[],29,FALSE),\"\")","v":""},{"$f":"IFERROR(VLOOKUP(RicercaStudente,FrequenzaMaggio[],30,FALSE),\"\")","v":""},{"$f":"IFERROR(VLOOKUP(RicercaStudente,FrequenzaMaggio[],31,FALSE),\"\")","v":""},{"$f":"IFERROR(VLOOKUP(RicercaStudente,FrequenzaMaggio[],32,FALSE),\"\")","v":""},{"$f":"IFERROR(VLOOKUP(RicercaStudente,FrequenzaMaggio[],33,FALSE),\"\")","v":""}]
[null,"Giugno",1,2,3,4,5,6,7,8,9,10,11,12,13,14,15,16,17,18,19,20,21,22,23,24,25,26,27,28,29,30,null,{"$f":"COUNTIF($D37:$AH37,Codice1)","v":0},{"$f":"COUNTIF($D37:$AH37,Codice2)","v":0},{"$f":"COUNTIF($D37:$AH37,Codice3)","v":0},{"$f":"COUNTIF($D37:$AH37,Codice4)","v":0}]
[null,null,{"$f":"IFERROR(VLOOKUP(RicercaStudente,FrequenzaGiugno[],3,FALSE),\"\")","v":""},{"$f":"IFERROR(VLOOKUP(RicercaStudente,FrequenzaGiugno[],4,FALSE),\"\")","v":""},{"$f":"IFERROR(VLOOKUP(RicercaStudente,FrequenzaGiugno[],5,FALSE),\"\")","v":""},{"$f":"IFERROR(VLOOKUP(RicercaStudente,FrequenzaGiugno[],6,FALSE),\"\")","v":""},{"$f":"IFERROR(VLOOKUP(RicercaStudente,FrequenzaGiugno[],7,FALSE),\"\")","v":""},{"$f":"IFERROR(VLOOKUP(RicercaStudente,FrequenzaGiugno[],8,FALSE),\"\")","v":""},{"$f":"IFERROR(VLOOKUP(RicercaStudente,FrequenzaGiugno[],9,FALSE),\"\")","v":""},{"$f":"IFERROR(VLOOKUP(RicercaStudente,FrequenzaGiugno[],10,FALSE),\"\")","v":""},{"$f":"IFERROR(VLOOKUP(RicercaStudente,FrequenzaGiugno[],11,FALSE),\"\")","v":""},{"$f":"IFERROR(VLOOKUP(RicercaStudente,FrequenzaGiugno[],12,FALSE),\"\")","v":""},{"$f":"IFERROR(VLOOKUP(RicercaStudente,FrequenzaGiugno[],13,FALSE),\"\")","v":""},{"$f":"IFERROR(VLOOKUP(RicercaStudente,FrequenzaGiugno[],14,FALSE),\"\")","v":""},{"$f":"IFERROR(VLOOKUP(RicercaStudente,FrequenzaGiugno[],15,FALSE),\"\")","v":""},{"$f":"IFERROR(VLOOKUP(RicercaStudente,FrequenzaGiugno[],16,FALSE),\"\")","v":""},{"$f":"IFERROR(VLOOKUP(RicercaStudente,FrequenzaGiugno[],17,FALSE),\"\")","v":""},{"$f":"IFERROR(VLOOKUP(RicercaStudente,FrequenzaGiugno[],18,FALSE),\"\")","v":""},{"$f":"IFERROR(VLOOKUP(RicercaStudente,FrequenzaGiugno[],19,FALSE),\"\")","v":""},{"$f":"IFERROR(VLOOKUP(RicercaStudente,FrequenzaGiugno[],20,FALSE),\"\")","v":""},{"$f":"IFERROR(VLOOKUP(RicercaStudente,FrequenzaGiugno[],21,FALSE),\"\")","v":""},{"$f":"IFERROR(VLOOKUP(RicercaStudente,FrequenzaGiugno[],22,FALSE),\"\")","v":""},{"$f":"IFERROR(VLOOKUP(RicercaStudente,FrequenzaGiugno[],23,FALSE),\"\")","v":""},{"$f":"IFERROR(VLOOKUP(RicercaStudente,FrequenzaGiugno[],24,FALSE),\"\")","v":""},{"$f":"IFERROR(VLOOKUP(RicercaStudente,FrequenzaGiugno[],25,FALSE),\"\")","v":""},{"$f":"IFERROR(VLOOKUP(RicercaStudente,FrequenzaGiugno[],26,FALSE),\"\")","v":""},{"$f":"IFERROR(VLOOKUP(RicercaStudente,FrequenzaGiugno[],27,FALSE),\"\")","v":""},{"$f":"IFERROR(VLOOKUP(RicercaStudente,FrequenzaGiugno[],28,FALSE),\"\")","v":""},{"$f":"IFERROR(VLOOKUP(RicercaStudente,FrequenzaGiugno[],29,FALSE),\"\")","v":""},{"$f":"IFERROR(VLOOKUP(RicercaStudente,FrequenzaGiugno[],30,FALSE),\"\")","v":""},{"$f":"IFERROR(VLOOKUP(RicercaStudente,FrequenzaGiugno[],31,FALSE),\"\")","v":""},{"$f":"IFERROR(VLOOKUP(RicercaStudente,FrequenzaGiugno[],32,FALSE),\"\")","v":""}]
[null,"Luglio",1,2,3,4,5,6,7,8,9,10,11,12,13,14,15,16,17,18,19,20,21,22,23,24,25,26,27,28,29,30,31,{"$f":"COUNTIF($D39:$AH39,Codice1)","v":0},{"$f":"COUNTIF($D39:$AH39,Codice2)","v":0},{"$f":"COUNTIF($D39:$AH39,Codice3)","v":0},{"$f":"COUNTIF($D39:$AH39,Codice4)","v":0}]
[null,null,{"$f":"IFERROR(VLOOKUP(RicercaStudente,FrequenzaLuglio[],3,FALSE),\"\")","v":""},{"$f":"IFERROR(VLOOKUP(RicercaStudente,FrequenzaLuglio[],4,FALSE),\"\")","v":""},{"$f":"IFERROR(VLOOKUP(RicercaStudente,FrequenzaLuglio[],5,FALSE),\"\")","v":""},{"$f":"IFERROR(VLOOKUP(RicercaStudente,FrequenzaLuglio[],6,FALSE),\"\")","v":""},{"$f":"IFERROR(VLOOKUP(RicercaStudente,FrequenzaLuglio[],7,FALSE),\"\")","v":""},{"$f":"IFERROR(VLOOKUP(RicercaStudente,FrequenzaLuglio[],8,FALSE),\"\")","v":""},{"$f":"IFERROR(VLOOKUP(RicercaStudente,FrequenzaLuglio[],9,FALSE),\"\")","v":""},{"$f":"IFERROR(VLOOKUP(RicercaStudente,FrequenzaLuglio[],10,FALSE),\"\")","v":""},{"$f":"IFERROR(VLOOKUP(RicercaStudente,FrequenzaLuglio[],11,FALSE),\"\")","v":""},{"$f":"IFERROR(VLOOKUP(RicercaStudente,FrequenzaLuglio[],12,FALSE),\"\")","v":""},{"$f":"IFERROR(VLOOKUP(RicercaStudente,FrequenzaLuglio[],13,FALSE),\"\")","v":""},{"$f":"IFERROR(VLOOKUP(RicercaStudente,FrequenzaLuglio[],14,FALSE),\"\")","v":""},{"$f":"IFERROR(VLOOKUP(RicercaStudente,FrequenzaLuglio[],15,FALSE),\"\")","v":""},{"$f":"IFERROR(VLOOKUP(RicercaStudente,FrequenzaLuglio[],16,FALSE),\"\")","v":""},{"$f":"IFERROR(VLOOKUP(RicercaStudente,FrequenzaLuglio[],17,FALSE),\"\")","v":""},{"$f":"IFERROR(VLOOKUP(RicercaStudente,FrequenzaLuglio[],18,FALSE),\"\")","v":""},{"$f":"IFERROR(VLOOKUP(RicercaStudente,FrequenzaLuglio[],19,FALSE),\"\")","v":""},{"$f":"IFERROR(VLOOKUP(RicercaStudente,FrequenzaLuglio[],20,FALSE),\"\")","v":""},{"$f":"IFERROR(VLOOKUP(RicercaStudente,FrequenzaLuglio[],21,FALSE),\"\")","v":""},{"$f":"IFERROR(VLOOKUP(RicercaStudente,FrequenzaLuglio[],22,FALSE),\"\")","v":""},{"$f":"IFERROR(VLOOKUP(RicercaStudente,FrequenzaLuglio[],23,FALSE),\"\")","v":""},{"$f":"IFERROR(VLOOKUP(RicercaStudente,FrequenzaLuglio[],24,FALSE),\"\")","v":""},{"$f":"IFERROR(VLOOKUP(RicercaStudente,FrequenzaLuglio[],25,FALSE),\"\")","v":""},{"$f":"IFERROR(VLOOKUP(RicercaStudente,FrequenzaLuglio[],26,FALSE),\"\")","v":""},{"$f":"IFERROR(VLOOKUP(RicercaStudente,FrequenzaLuglio[],27,FALSE),\"\")","v":""},{"$f":"IFERROR(VLOOKUP(RicercaStudente,FrequenzaLuglio[],28,FALSE),\"\")","v":""},{"$f":"IFERROR(VLOOKUP(RicercaStudente,FrequenzaLuglio[],29,FALSE),\"\")","v":""},{"$f":"IFERROR(VLOOKUP(RicercaStudente,FrequenzaLuglio[],30,FALSE),\"\")","v":""},{"$f":"IFERROR(VLOOKUP(RicercaStudente,FrequenzaLuglio[],31,FALSE),\"\")","v":""},{"$f":"IFERROR(VLOOKUP(RicercaStudente,FrequenzaLuglio[],32,FALSE),\"\")","v":""},{"$f":"IFERROR(VLOOKUP(RicercaStudente,FrequenzaLuglio[],33,FALSE),\"\")","v":""}]
[{"$nulls":30},"Totale",null,null,{"$f":"SUM(AH16:AH39)","v":2},{"$f":"SUM(AI16:AI39)","v":1},{"$f":"SUM(AJ16:AJ39)","v":0},{"$f":"SUM(AK16:AK39)","v":19}]